﻿Authority,URI,Payment Date,Service/Directorate,Purpose of Spend,Supplier,Transaction Ref,Amount
Borough Council of Kings Lynn and West Norfolk,E07000146,08/04/2021,Mintlyn Crematorium,Tools And Equipment,BACO-Compak (Norfolk) Ltd,21006128,120.75
Borough Council of Kings Lynn and West Norfolk,E07000146,08/04/2021,Mintlyn Crematorium,Repairs & Maintenance,BACO-Compak (Norfolk) Ltd,21006128,417.00
Borough Council of Kings Lynn and West Norfolk,E07000146,08/04/2021,Mintlyn Crematorium,Repairs & Maintenance,CGM Group (East Anglia) Ltd,21006069,455.00
Borough Council of Kings Lynn and West Norfolk,E07000146,08/04/2021,Community Safety,Corporate Items,Mallard Consultancy Ltd,21005732,990.00
Borough Council of Kings Lynn and West Norfolk,E07000146,08/04/2021,Standard Desktop Refresh,Equipment/Materials,Bechtle Direct Ltd,21005667,"1,852.50"
Borough Council of Kings Lynn and West Norfolk,E07000146,08/04/2021,Car Parks - BCKLWN,Mobile phone hardware,Bechtle Direct Ltd,21005685,717.55
Borough Council of Kings Lynn and West Norfolk,E07000146,08/04/2021,Public Cleansing Vehicles,Equipment/Materials,Bucher Muncipal Ltd,21005505,"135,999.00"
Borough Council of Kings Lynn and West Norfolk,E07000146,08/04/2021,Public Cleansing Vehicles,Equipment/Materials,Bucher Muncipal Ltd,21005505,355.00
Borough Council of Kings Lynn and West Norfolk,E07000146,08/04/2021,Public Cleansing,Contract Repairs,Bucher Muncipal Ltd,22004255,467.22
Borough Council of Kings Lynn and West Norfolk,E07000146,08/04/2021,Public Cleansing,Contract Repairs,Bucher Muncipal Ltd,22004280,161.00
Borough Council of Kings Lynn and West Norfolk,E07000146,08/04/2021,Public Cleansing,Contract Repairs,Bucher Muncipal Ltd,22004280,161.00
Borough Council of Kings Lynn and West Norfolk,E07000146,08/04/2021,Public Cleansing,Contract Repairs,Bucher Muncipal Ltd,22004280,161.00
Borough Council of Kings Lynn and West Norfolk,E07000146,08/04/2021,Public Cleansing,Contract Repairs,Bucher Muncipal Ltd,22004280,251.70
Borough Council of Kings Lynn and West Norfolk,E07000146,08/04/2021,Public Cleansing,Contract Repairs,Bucher Muncipal Ltd,22004280,251.70
Borough Council of Kings Lynn and West Norfolk,E07000146,08/04/2021,Public Cleansing,Sweeper Consumables,Bucher Muncipal Ltd,22004285,735.13
Borough Council of Kings Lynn and West Norfolk,E07000146,08/04/2021,Subscriptions,Membership & Subscription,I&DEA,21005776,"1,075.00"
Borough Council of Kings Lynn and West Norfolk,E07000146,08/04/2021,CCTV,Repairs & Maintenance,Switchshop Ltd,21005870,820.00
Borough Council of Kings Lynn and West Norfolk,E07000146,08/04/2021,Mintlyn Crematorium,Repairs & Maintenance,Facultatieve Technologies Ltd,21005803,"3,776.86"
Borough Council of Kings Lynn and West Norfolk,E07000146,08/04/2021,Mintlyn Crematorium,Repairs & Maintenance,Facultatieve Technologies Ltd,21005752,"1,156.57"
Borough Council of Kings Lynn and West Norfolk,E07000146,08/04/2021,Natl Assist Act Burials,Burial Fees-Nat.Ass.Act,Thornalley Funeral Services Ltd,21006123,"1,344.00"
Borough Council of Kings Lynn and West Norfolk,E07000146,08/04/2021,Register of Electors,Stationery & Office,Kingsfield Computer Product Ltd,21005610,707.49
Borough Council of Kings Lynn and West Norfolk,E07000146,08/04/2021,Register of Electors,Stationery & Office,Kingsfield Computer Product Ltd,21005610,9.95
Borough Council of Kings Lynn and West Norfolk,E07000146,08/04/2021,Register of Electors,Stationery & Office,Hound Envelopes Ltd,22004287,303.75
Borough Council of Kings Lynn and West Norfolk,E07000146,08/04/2021,Parish/B Coun. Elections,Stationery & Office,Hound Envelopes Ltd,22004287,136.25
Borough Council of Kings Lynn and West Norfolk,E07000146,08/04/2021,Hunstanton Southend Road,Contractor Works,Lovell Partnerships Ltd,21006076,"1,247.85"
Borough Council of Kings Lynn and West Norfolk,E07000146,08/04/2021,Salters Road,Contractor Works,Lovell Partnerships Ltd,21006077,"21,294.36"
Borough Council of Kings Lynn and West Norfolk,E07000146,08/04/2021,Parkway - Gaywood,Contractor Works,Lovell Partnerships Ltd,21006078,"21,914.31"
Borough Council of Kings Lynn and West Norfolk,E07000146,08/04/2021,Hunstanton Bus Station & NCC Library,Contractor Works,Lovell Partnerships Ltd,21006079,"102,062.42"
Borough Council of Kings Lynn and West Norfolk,E07000146,08/04/2021,Lynnsport 3,Contractor Works,Lovell Partnerships Ltd,21006080,"15,000.00"
Borough Council of Kings Lynn and West Norfolk,E07000146,08/04/2021,Home Improvements Agency,Agency Staff,Seven Resourcing Ltd,21005889,909.83
Borough Council of Kings Lynn and West Norfolk,E07000146,08/04/2021,Home Improvements Agency,Agency Staff,Seven Resourcing Ltd,21005890,"1,083.25"
Borough Council of Kings Lynn and West Norfolk,E07000146,08/04/2021,Home Improvements Agency,Agency Staff,Seven Resourcing Ltd,21005798,"1,072.90"
Borough Council of Kings Lynn and West Norfolk,E07000146,08/04/2021,Home Improvements Agency,Agency Staff,Seven Resourcing Ltd,21005799,854.55
Borough Council of Kings Lynn and West Norfolk,E07000146,08/04/2021,Corporate Communitcations,Covid 19,Engaging People Company,21006083,825.00
Borough Council of Kings Lynn and West Norfolk,E07000146,08/04/2021,KC Office accom rental,Contract Security,MPD FM Ltd,21005847,"4,755.96"
Borough Council of Kings Lynn and West Norfolk,E07000146,08/04/2021,KC Office accom rental,Contract Security,MPD FM Ltd,21005848,"1,783.98"
Borough Council of Kings Lynn and West Norfolk,E07000146,08/04/2021,Personnel Services,Membership & Subscription,Croner-I-Limited,22004357,"1,098.27"
Borough Council of Kings Lynn and West Norfolk,E07000146,08/04/2021,Cntrl & Community Service,Membership & Subscription,Croner-I-Limited,22004357,"1,098.27"
Borough Council of Kings Lynn and West Norfolk,E07000146,08/04/2021,Crematorium Trading Account,Memorial Plates,Anglia Sign Casting Ltd,21005692,570.53
Borough Council of Kings Lynn and West Norfolk,E07000146,08/04/2021,Public Cleansing,Sweeper Consumables,Aquam Water Services Ltd,21005736,"1,780.00"
Borough Council of Kings Lynn and West Norfolk,E07000146,08/04/2021,ICT,Computer Hardware Maint,4Sight Communications,21005763,"8,749.85"
Borough Council of Kings Lynn and West Norfolk,E07000146,08/04/2021,ICT,Computer Hardware Maint,4Sight Communications,21005764,"10,416.47"
Borough Council of Kings Lynn and West Norfolk,E07000146,08/04/2021,Reopening High Street,Equipment/Materials,Evo Lifestyle Products,21006095,"1,554.00"
Borough Council of Kings Lynn and West Norfolk,E07000146,08/04/2021,Mintlyn Crematorium,Membership & Subscription,"Fed, of Burial & Cremation Authorities",21006127,936.80
Borough Council of Kings Lynn and West Norfolk,E07000146,08/04/2021,Mintlyn Crematorium,Membership & Subscription,"Fed, of Burial & Cremation Authorities",21006127,61.20
Borough Council of Kings Lynn and West Norfolk,E07000146,08/04/2021,Public Cleansing,Contract Repairs,Ford & Slater DAF Kings Lynn,22004413,514.15
Borough Council of Kings Lynn and West Norfolk,E07000146,08/04/2021,Dry Box Collection Scheme,MRF Smoothing Adjustment,Great Yarmouth Borough Council,21006089,"193,872.56"
Borough Council of Kings Lynn and West Norfolk,E07000146,08/04/2021,Parkway - Gaywood,Works,Mott MacDonald Limited,21005858,"9,517.28"
Borough Council of Kings Lynn and West Norfolk,E07000146,08/04/2021,Local Land Charges,Agency,Norfolk County Council,22004417,"6,647.29"
Borough Council of Kings Lynn and West Norfolk,E07000146,08/04/2021,Postage Services K Court,Postages,Royal Mail Group Ltd,22004420,"1,129.85"
Borough Council of Kings Lynn and West Norfolk,E07000146,08/04/2021,Register of Electors,Stationery & Office,Shaw and Sons Ltd,21005792,"3,005.66"
Borough Council of Kings Lynn and West Norfolk,E07000146,08/04/2021,Cold Weather Funding,Grants,The Purfleet Trust,21006096,"1,656.00"
Borough Council of Kings Lynn and West Norfolk,E07000146,08/04/2021,ICT,Computer Software Maint,Idox Software Ltd,21005655,900.00
Borough Council of Kings Lynn and West Norfolk,E07000146,08/04/2021,KL Innovation Centre,Repairs & Maintenance,UPS Systems PLC,21005629,"1,125.00"
Borough Council of Kings Lynn and West Norfolk,E07000146,08/04/2021,ICT,Communications,Adept Technology Group Plc,21006013,"2,772.86"
Borough Council of Kings Lynn and West Norfolk,E07000146,08/04/2021,CCTV,Repairs & Maintenance,Adept Technology Group Plc,21006013,350.00
Borough Council of Kings Lynn and West Norfolk,E07000146,08/04/2021,Corporate,Stationery & Office,Adept Technology Group Plc,21006013,931.92
Borough Council of Kings Lynn and West Norfolk,E07000146,08/04/2021,ICT,Recoverable Fees,Adept Technology Group Plc,21006013,186.17
Borough Council of Kings Lynn and West Norfolk,E07000146,08/04/2021,Balance Sheet,Rechargeable Works Insurance,Adept Technology Group Plc,21006013,197.58
Borough Council of Kings Lynn and West Norfolk,E07000146,08/04/2021,ICT,Telephones,Adept Technology Group Plc,21006007,"5,267.44"
Borough Council of Kings Lynn and West Norfolk,E07000146,08/04/2021,Website & s media mktng,DMS licences data steward,New Vision Group Ltd t/a Simpleview,21005782,"5,440.00"
Borough Council of Kings Lynn and West Norfolk,E07000146,08/04/2021,Trade Refuse,Repairs & Maintenance,UK Container Maintenance Ltd,21005647,"2,811.84"
Borough Council of Kings Lynn and West Norfolk,E07000146,08/04/2021,Food Hygiene General,Shellfish Sampling,Eastern IFCA,21006119,"1,024.00"
Borough Council of Kings Lynn and West Norfolk,E07000146,08/04/2021,KL Innovation Centre,Repairs & Maintenance,Robert Fox,21006115,550.00
Borough Council of Kings Lynn and West Norfolk,E07000146,08/04/2021,KL Innovation Centre,Repairs & Maintenance,Robert Fox,21006115,175.00
Borough Council of Kings Lynn and West Norfolk,E07000146,08/04/2021,Street Lighting,Repairs & Maintenance,Westcotec Ltd,21005761,906.04
Borough Council of Kings Lynn and West Norfolk,E07000146,08/04/2021,NORA Phase 4,Contractor Works,Lovell Partnerships Ltd,21006071,"298,615.98"
Borough Council of Kings Lynn and West Norfolk,E07000146,08/04/2021,Parkway - Gaywood,Contractor Works,Lovell Partnerships Ltd,21006072,"111,488.38"
Borough Council of Kings Lynn and West Norfolk,E07000146,08/04/2021,Lynnsport 4 /5,Contractor Works,Lovell Partnerships Ltd,21006073,"7,000.00"
Borough Council of Kings Lynn and West Norfolk,E07000146,08/04/2021,Lynnsport 4 /5,Contractor Works,Lovell Partnerships Ltd,21006074,"48,708.84"
Borough Council of Kings Lynn and West Norfolk,E07000146,08/04/2021,Lynnsport 3,Contractor Works,Lovell Partnerships Ltd,21006075,"152,292.97"
Borough Council of Kings Lynn and West Norfolk,E07000146,08/04/2021,Coast Defence/Protection,Professional Fees,PAJ Lawton,21005822,"3,594.35"
Borough Council of Kings Lynn and West Norfolk,E07000146,08/04/2021,Performance Review & Efficiency,Professional Fees,Leisure-net Solutions Ltd,21005946,"1,542.00"
Borough Council of Kings Lynn and West Norfolk,E07000146,08/04/2021,Hunstanton Parks for People,Contractor Works,Blakedown Environment & Leisure Ltd,21006041,"15,151.89"
Borough Council of Kings Lynn and West Norfolk,E07000146,08/04/2021,Norfolk Tourism Package,Equipment/Materials,Morton Products Ltd,21006106,"13,340.00"
Borough Council of Kings Lynn and West Norfolk,E07000146,08/04/2021,Lynnsport 3,Works,Norfolk Flooring Ltd,21006484,"7,660.62"
Borough Council of Kings Lynn and West Norfolk,E07000146,12/04/2021,Careline,Tools And Equipment,Tunstall Healthcare (UK) Ltd,22004557,"1,100.00"
Borough Council of Kings Lynn and West Norfolk,E07000146,12/04/2021,Careline,Tools And Equipment,Tunstall Healthcare (UK) Ltd,22004558,"3,747.00"
Borough Council of Kings Lynn and West Norfolk,E07000146,12/04/2021,ICT,Computer Hardware Maint,Dell Corporation Ltd,21006197,473.00
Borough Council of Kings Lynn and West Norfolk,E07000146,12/04/2021,Sail the Wash,Consultants Fees,Fenland District Council,21006171,"18,000.00"
Borough Council of Kings Lynn and West Norfolk,E07000146,12/04/2021,The Walks,Repairs & Maintenance,C G Godfrey Ltd,21006144,45.00
Borough Council of Kings Lynn and West Norfolk,E07000146,12/04/2021,Heacham Workshops,Repairs & Maintenance,C G Godfrey Ltd,21006144,55.00
Borough Council of Kings Lynn and West Norfolk,E07000146,12/04/2021,Parks & Open Spaces,Repairs & Maintenance,C G Godfrey Ltd,21006144,55.00
Borough Council of Kings Lynn and West Norfolk,E07000146,12/04/2021,Sports Grounds South,Repairs & Maintenance,C G Godfrey Ltd,21006144,55.00
Borough Council of Kings Lynn and West Norfolk,E07000146,12/04/2021,Resort Trading Operations,Repairs & Maintenance,C G Godfrey Ltd,21006144,55.00
Borough Council of Kings Lynn and West Norfolk,E07000146,12/04/2021,Lynnsport General Account,Repairs & Maintenance,C G Godfrey Ltd,21006144,115.00
Borough Council of Kings Lynn and West Norfolk,E07000146,12/04/2021,Flitcham Workshops,Repairs & Maintenance,C G Godfrey Ltd,21006144,285.00
Borough Council of Kings Lynn and West Norfolk,E07000146,12/04/2021,Mintlyn Crematorium,Repairs & Maintenance,C G Godfrey Ltd,21006144,470.00
Borough Council of Kings Lynn and West Norfolk,E07000146,12/04/2021,Lynnsport General Account,Repairs & Maintenance,C G Godfrey Ltd,21006144,115.00
Borough Council of Kings Lynn and West Norfolk,E07000146,12/04/2021,Parks & Open Spaces,Repairs & Maintenance,C G Godfrey Ltd,21006144,55.00
Borough Council of Kings Lynn and West Norfolk,E07000146,12/04/2021,The Walks,Repairs & Maintenance,C G Godfrey Ltd,21006144,45.00
Borough Council of Kings Lynn and West Norfolk,E07000146,12/04/2021,Resort Trading Operations,Repairs & Maintenance,C G Godfrey Ltd,21006144,55.00
Borough Council of Kings Lynn and West Norfolk,E07000146,12/04/2021,Heacham Workshops,Repairs & Maintenance,C G Godfrey Ltd,21006144,55.00
Borough Council of Kings Lynn and West Norfolk,E07000146,12/04/2021,Sports Grounds North,Repairs & Maintenance,C G Godfrey Ltd,21006144,55.00
Borough Council of Kings Lynn and West Norfolk,E07000146,12/04/2021,Flitcham Workshops,Repairs & Maintenance,C G Godfrey Ltd,21006144,285.00
Borough Council of Kings Lynn and West Norfolk,E07000146,12/04/2021,Nursery,Materials,Premium Horticultural Ltd,22004459,"2,908.00"
Borough Council of Kings Lynn and West Norfolk,E07000146,12/04/2021,Supplier Holding Account,Vehicle - repairs & Maint,North Street Tyres,22004561,"3,068.42"
Borough Council of Kings Lynn and West Norfolk,E07000146,12/04/2021,Supplier Holding Account,Vehicle - repairs & Maint,North Street Tyres,22004561,70.45
Borough Council of Kings Lynn and West Norfolk,E07000146,12/04/2021,Mintlyn Crematorium,Trade Waste,Facultatieve Technologies Ltd,21005804,957.43
Borough Council of Kings Lynn and West Norfolk,E07000146,12/04/2021,NEWS Depot,Repairs & Maintenance,AMR Electrical Services Ltd,21006155,"1,122.90"
Borough Council of Kings Lynn and West Norfolk,E07000146,12/04/2021,Grounds,Vehicle - repairs & Maint,Ernest Doe & Sons Ltd,22004442,426.22
Borough Council of Kings Lynn and West Norfolk,E07000146,12/04/2021,Grounds,Vehicle - repairs & Maint,Ernest Doe & Sons Ltd,22004443,"1,135.87"
Borough Council of Kings Lynn and West Norfolk,E07000146,12/04/2021,Grounds,Vehicle - repairs & Maint,Ernest Doe & Sons Ltd,22004447,595.02
Borough Council of Kings Lynn and West Norfolk,E07000146,12/04/2021,Grounds,Vehicle - repairs & Maint,Ernest Doe & Sons Ltd,22004452,"1,197.33"
Borough Council of Kings Lynn and West Norfolk,E07000146,12/04/2021,Grounds,Vehicle - repairs & Maint,Ernest Doe & Sons Ltd,22004454,700.02
Borough Council of Kings Lynn and West Norfolk,E07000146,12/04/2021,Kings Court Service Charges,Repairs & Maintenance,UPS Systems PLC,21005786,659.03
Borough Council of Kings Lynn and West Norfolk,E07000146,12/04/2021,Vehicle Recharge on account,Fuel,Worldline IT Services UK Re Fuelgenie,22004560,"9,020.20"
Borough Council of Kings Lynn and West Norfolk,E07000146,12/04/2021,Vehicle Recharge on account,Fuel,Worldline IT Services UK Re Fuelgenie,22004560,0.84
Borough Council of Kings Lynn and West Norfolk,E07000146,12/04/2021,Public Cleansing,Tools And Equipment,ASPLI Safety Ltd,21006151,516.54
Borough Council of Kings Lynn and West Norfolk,E07000146,12/04/2021,Food Hygiene General,Shellfish Sampling,Eastern IFCA,21006199,768.00
Borough Council of Kings Lynn and West Norfolk,E07000146,12/04/2021,GM Southern Area & Lynnsport,Fuel,UK Fuels Ltd,22004559,205.77
Borough Council of Kings Lynn and West Norfolk,E07000146,12/04/2021,GM Southern Area & Lynnsport,Fuel,UK Fuels Ltd,22004559,5.47
Borough Council of Kings Lynn and West Norfolk,E07000146,12/04/2021,GM Southern Area & Lynnsport,Fuel,UK Fuels Ltd,22004559,56.90
Borough Council of Kings Lynn and West Norfolk,E07000146,12/04/2021,Public Cleansing,Fuel,UK Fuels Ltd,22004559,309.43
Borough Council of Kings Lynn and West Norfolk,E07000146,12/04/2021,GM Southern Area & Lynnsport,Fuel,UK Fuels Ltd,22004559,126.63
Borough Council of Kings Lynn and West Norfolk,E07000146,12/04/2021,Grounds,Fuel,UK Fuels Ltd,22004559,29.61
Borough Council of Kings Lynn and West Norfolk,E07000146,12/04/2021,Mintlyn Crematorium,Repairs & Maintenance,S Winter T/A Steve Winter Landscapes,21006160,"2,100.00"
Borough Council of Kings Lynn and West Norfolk,E07000146,12/04/2021,Recycling Composting,Waste Processing Cost,Kier Services Environmental,21006176,"24,432.06"
Borough Council of Kings Lynn and West Norfolk,E07000146,12/04/2021,ICT,Covid 19,Network Utilities (Systems) Ltd,21006054,619.50
Borough Council of Kings Lynn and West Norfolk,E07000146,12/04/2021,Parking Operations - Brgh,Repairs & Maintenance,LWG Services Limited,21006178,"1,216.00"
Borough Council of Kings Lynn and West Norfolk,E07000146,12/04/2021,Parking Operations - Brgh,Repairs & Maintenance,Swarco Traffic Ltd,21005826,"1,850.00"
Borough Council of Kings Lynn and West Norfolk,E07000146,12/04/2021,North Lynn Managed Workshops,Repairs & Maintenance,Lantei Limited,21005846,667.50
Borough Council of Kings Lynn and West Norfolk,E07000146,12/04/2021,Lynnsport 3,Works,Bowie Construction Ltd,21005837,"12,359.51"
Borough Council of Kings Lynn and West Norfolk,E07000146,12/04/2021,CCTV,Computer Equipment,Quality Essential Distribution Ltd,21005823,"3,728.34"
Borough Council of Kings Lynn and West Norfolk,E07000146,12/04/2021,ICT,Covid 19,cloudDNA Ltd,21005810,"21,037.80"
Borough Council of Kings Lynn and West Norfolk,E07000146,12/04/2021,Refuse Vehicles,Works,Dennis Eagle Ltd,21006064,"172,350.00"
Borough Council of Kings Lynn and West Norfolk,E07000146,12/04/2021,Reopening High Street,Equipment/Materials,Safe Fence Ltd,21006146,"1,799.00"
Borough Council of Kings Lynn and West Norfolk,E07000146,12/04/2021,The Walks,Special Events,Safe Fence Ltd,22004467,"5,747.00"
Borough Council of Kings Lynn and West Norfolk,E07000146,12/04/2021,Public Cleansing,Contract Repairs,Ford & Slater DAF Kings Lynn,22004562,685.63
Borough Council of Kings Lynn and West Norfolk,E07000146,12/04/2021,NEWS Depot,Contract Cleaning,Marathon Services Ltd,21006193,"1,540.00"
Borough Council of Kings Lynn and West Norfolk,E07000146,12/04/2021,General Property,Repairs & Maintenance,Neville Godfrey Ltd,21006158,"1,475.00"
Borough Council of Kings Lynn and West Norfolk,E07000146,12/04/2021,EZ- Roads/Infrastructure,External Fees/Consultancy,Norfolk County Council,22004565,"1,117.52"
Borough Council of Kings Lynn and West Norfolk,E07000146,12/04/2021,Postage Services K Court,Postages,Postage By Phone,22004458,"5,005.53"
Borough Council of Kings Lynn and West Norfolk,E07000146,12/04/2021,Postage Services K Court,Postages,Postage By Phone,22004458,11.00
Borough Council of Kings Lynn and West Norfolk,E07000146,15/04/2021,Cashless Pk YT(GY off St),Agency,Great Yarmouth Borough Council,22004587,"3,108.90"
Borough Council of Kings Lynn and West Norfolk,E07000146,15/04/2021,Cashless Pk JF(NN on St),Agency,North Norfolk District Council,22004594,"4,800.10"
Borough Council of Kings Lynn and West Norfolk,E07000146,15/04/2021,Resort Seafront,Repairs & Maintenance,Penty Contractors Ltd,21006232,500.00
Borough Council of Kings Lynn and West Norfolk,E07000146,15/04/2021,Financial Services,Postages,Royal Mail Group Ltd,22004576,62.04
Borough Council of Kings Lynn and West Norfolk,E07000146,15/04/2021,Benefit Administration,Postages,Royal Mail Group Ltd,22004576,658.06
Borough Council of Kings Lynn and West Norfolk,E07000146,15/04/2021,Cost of Collection - CTax,Postages,Royal Mail Group Ltd,22004576,824.56
Borough Council of Kings Lynn and West Norfolk,E07000146,15/04/2021,Kings Lynn Bid,Postages,Royal Mail Group Ltd,22004576,0.88
Borough Council of Kings Lynn and West Norfolk,E07000146,15/04/2021,Benefit Administration,Postages,Royal Mail Group Ltd,22004576,35.33
Borough Council of Kings Lynn and West Norfolk,E07000146,15/04/2021,Cost of Collection - CTax,Postages,Royal Mail Group Ltd,22004576,35.32
Borough Council of Kings Lynn and West Norfolk,E07000146,15/04/2021,Benefit Administration,Postages,Royal Mail Group Ltd,22004576,13.62
Borough Council of Kings Lynn and West Norfolk,E07000146,15/04/2021,Cost of Collection - CTax,Postages,Royal Mail Group Ltd,22004576,13.62
Borough Council of Kings Lynn and West Norfolk,E07000146,15/04/2021,Public Cleansing,Initiatives,Broxap Ltd,21006068,"2,089.00"
Borough Council of Kings Lynn and West Norfolk,E07000146,15/04/2021,Property Services,Staff Professional Fees,RICS,22004595,539.00
Borough Council of Kings Lynn and West Norfolk,E07000146,15/04/2021,ICT,Computer Software Maint,BIP Solutions Ltd,21006257,"7,573.00"
Borough Council of Kings Lynn and West Norfolk,E07000146,15/04/2021,Recycling Composting,Waste Processing Cost,Greenworld Sales Ltd t/a Greenworld,21006289,"4,003.86"
Borough Council of Kings Lynn and West Norfolk,E07000146,15/04/2021,Grounds,Tools And Equipment,Ernest Doe & Sons Ltd,22004584,"1,638.00"
Borough Council of Kings Lynn and West Norfolk,E07000146,15/04/2021,Grounds,Tools And Equipment,Ernest Doe & Sons Ltd,22004584,-600.00
Borough Council of Kings Lynn and West Norfolk,E07000146,15/04/2021,Grounds,Tools And Equipment,Ernest Doe & Sons Ltd,22004585,500.00
Borough Council of Kings Lynn and West Norfolk,E07000146,15/04/2021,CCTV Breckland,Repairs & Maintenance,Clearview Window Cleaning,21006222,500.00
Borough Council of Kings Lynn and West Norfolk,E07000146,15/04/2021,CCTV,Repairs & Maintenance,Clearview Window Cleaning,21006222,500.00
Borough Council of Kings Lynn and West Norfolk,E07000146,15/04/2021,Dog Warden and Services,Contracted Services,Dogotel Kennels & Cattery,22004570,600.00
Borough Council of Kings Lynn and West Norfolk,E07000146,15/04/2021,Dog Warden and Services,Kennel Fees,Dogotel Kennels & Cattery,22004570,60.00
Borough Council of Kings Lynn and West Norfolk,E07000146,15/04/2021,Dog Warden and Services,Kennel Fees,Dogotel Kennels & Cattery,22004570,112.00
Borough Council of Kings Lynn and West Norfolk,E07000146,15/04/2021,Dog Warden and Services,Contracted Services,Dogotel Kennels & Cattery,22004570,285.00
Borough Council of Kings Lynn and West Norfolk,E07000146,15/04/2021,Dog Warden and Services,Kennel Fees Recd - Extl,Dogotel Kennels & Cattery,22004570,-120.50
Borough Council of Kings Lynn and West Norfolk,E07000146,15/04/2021,Careline,Advertising & Marketing,Your Local Paper Ltd,21006253,450.00
Borough Council of Kings Lynn and West Norfolk,E07000146,15/04/2021,Printing & Graphics,Konica Usage,Konica Minolta Business Solutions,22004571,991.01
Borough Council of Kings Lynn and West Norfolk,E07000146,15/04/2021,Parking Operations - Brgh,Tools And Equipment,Mobius Networks Ltd,21006247,649.30
Borough Council of Kings Lynn and West Norfolk,E07000146,15/04/2021,Balance Sheet,VAT Input - VAT Only Purchases,Newlyn PLC,22004590,"2,612.45"
Borough Council of Kings Lynn and West Norfolk,E07000146,15/04/2021,Balance Sheet,VAT Input - VAT Only Purchases,Newlyn PLC,22004591,504.86
Borough Council of Kings Lynn and West Norfolk,E07000146,15/04/2021,Parkway - Gaywood,Works,Network Rail Infrastructure Ltd,21005887,"2,729.52"
Borough Council of Kings Lynn and West Norfolk,E07000146,15/04/2021,West Winch Growth Area,Professional Fees,Gerald Eve LLP,21006288,"3,806.76"
Borough Council of Kings Lynn and West Norfolk,E07000146,15/04/2021,Development Control,Recruitment,TMP (UK) Ltd,22004399,287.50
Borough Council of Kings Lynn and West Norfolk,E07000146,15/04/2021,Parking Operations - Brgh,Recruitment,TMP (UK) Ltd,22004399,287.50
Borough Council of Kings Lynn and West Norfolk,E07000146,15/04/2021,ICT,Recruitment,TMP (UK) Ltd,22004401,"1,180.80"
Borough Council of Kings Lynn and West Norfolk,E07000146,15/04/2021,Covid 19- LA Compliance and Enforcement,Covid 19 Marshalls,Excaliber Security Services Ltd,21006238,"3,834.54"
Borough Council of Kings Lynn and West Norfolk,E07000146,15/04/2021,North Lynn Managed Workshops,Repairs & Maintenance,A C Leigh (Norwich) Ltd,21005956,"1,893.28"
Borough Council of Kings Lynn and West Norfolk,E07000146,15/04/2021,North Lynn Managed Workshops,Repairs & Maintenance,A C Leigh (Norwich) Ltd,21005957,494.83
Borough Council of Kings Lynn and West Norfolk,E07000146,15/04/2021,Refuse Vehicles,Works,Dennis Eagle Ltd,21006293,"172,350.00"
Borough Council of Kings Lynn and West Norfolk,E07000146,15/04/2021,Refuse Vehicles,Works,Dennis Eagle Ltd,21006274,"170,445.00"
Borough Council of Kings Lynn and West Norfolk,E07000146,15/04/2021,Refuse Vehicles,Works,Dennis Eagle Ltd,21006275,"199,750.00"
Borough Council of Kings Lynn and West Norfolk,E07000146,15/04/2021,Refuse Vehicles,Works,Dennis Eagle Ltd,21006276,"199,750.00"
Borough Council of Kings Lynn and West Norfolk,E07000146,15/04/2021,Refuse Vehicles,Works,Dennis Eagle Ltd,21006277,"199,750.00"
Borough Council of Kings Lynn and West Norfolk,E07000146,15/04/2021,Refuse Vehicles,Works,Dennis Eagle Ltd,21006278,"172,350.00"
Borough Council of Kings Lynn and West Norfolk,E07000146,15/04/2021,Refuse Vehicles,Works,Dennis Eagle Ltd,21006279,"170,445.00"
Borough Council of Kings Lynn and West Norfolk,E07000146,15/04/2021,Refuse Vehicles,Works,Dennis Eagle Ltd,21006280,"199,750.00"
Borough Council of Kings Lynn and West Norfolk,E07000146,15/04/2021,Refuse Vehicles,Works,Dennis Eagle Ltd,21006281,"199,750.00"
Borough Council of Kings Lynn and West Norfolk,E07000146,15/04/2021,Refuse Vehicles,Works,Dennis Eagle Ltd,21006282,"199,750.00"
Borough Council of Kings Lynn and West Norfolk,E07000146,15/04/2021,Refuse Vehicles,Works,Dennis Eagle Ltd,21006283,"156,040.00"
Borough Council of Kings Lynn and West Norfolk,E07000146,15/04/2021,Refuse Vehicles,Works,Dennis Eagle Ltd,21006284,"172,350.00"
Borough Council of Kings Lynn and West Norfolk,E07000146,15/04/2021,Refuse Vehicles,Works,Dennis Eagle Ltd,21006285,"199,750.00"
Borough Council of Kings Lynn and West Norfolk,E07000146,15/04/2021,Reopening High Street,Equipment/Materials,Safe Fence Ltd,21006147,"1,799.00"
Borough Council of Kings Lynn and West Norfolk,E07000146,15/04/2021,Cafe in the Park,Beverage Supplies,Frozen Brothers Ltd,21005984,753.33
Borough Council of Kings Lynn and West Norfolk,E07000146,15/04/2021,Special Events,Special Events,Madeleine Eggleston,21006244,700.00
Borough Council of Kings Lynn and West Norfolk,E07000146,15/04/2021,Balance Sheet,VAT Input - VAT Only Purchases,Newlyn PLC,22004592,"1,113.59"
Borough Council of Kings Lynn and West Norfolk,E07000146,15/04/2021,Parks & Open Spaces,Tree Surgery,Golden Tree Surgeons Ltd,21006230,450.00
Borough Council of Kings Lynn and West Norfolk,E07000146,19/04/2021,Internal Audit,Contracted Services,Fenland District Council,22004597,"2,242.80"
Borough Council of Kings Lynn and West Norfolk,E07000146,19/04/2021,Public Cleansing,Contract Repairs,Ford & Slater DAF Kings Lynn,22004599,"1,122.36"
Borough Council of Kings Lynn and West Norfolk,E07000146,19/04/2021,Public Cleansing,Contract Repairs,Ford & Slater DAF Kings Lynn,22004599,91.00
Borough Council of Kings Lynn and West Norfolk,E07000146,19/04/2021,KL Innovation Centre,Repairs & Maintenance,Neville Godfrey Ltd,21006159,"5,597.00"
Borough Council of Kings Lynn and West Norfolk,E07000146,19/04/2021,Lily Phase 4,Computer Equipment,Vodafone (Corporate) Ltd,21006344,344.08
Borough Council of Kings Lynn and West Norfolk,E07000146,19/04/2021,Community Safety,Computer Equipment,Vodafone (Corporate) Ltd,21006344,746.50
Borough Council of Kings Lynn and West Norfolk,E07000146,19/04/2021,Refuse & Recyc Mgmt,Computer Equipment,Vodafone (Corporate) Ltd,21006344,"6,887.52"
Borough Council of Kings Lynn and West Norfolk,E07000146,19/04/2021,ICT,Computer Software Maint,Gladstone MRM Ltd,21005989,"1,382.56"
Borough Council of Kings Lynn and West Norfolk,E07000146,19/04/2021,Radio Phones,Communications,Claranet Ltd,21006319,64.84
Borough Council of Kings Lynn and West Norfolk,E07000146,19/04/2021,ICT,Communications,Claranet Ltd,21006319,"4,473.58"
Borough Council of Kings Lynn and West Norfolk,E07000146,19/04/2021,Benefit Administration,Broadband Charge,Claranet Ltd,21006319,276.42
Borough Council of Kings Lynn and West Norfolk,E07000146,19/04/2021,ICT,Broadband Charge,Claranet Ltd,21006319,46.24
Borough Council of Kings Lynn and West Norfolk,E07000146,19/04/2021,NNDC Carpark Operation,Broadband Charge,Claranet Ltd,21006319,135.58
Borough Council of Kings Lynn and West Norfolk,E07000146,19/04/2021,South Lynn Community Centre,Broadband Charge,Claranet Ltd,21006319,92.48
Borough Council of Kings Lynn and West Norfolk,E07000146,19/04/2021,Street Sweeping,Animal Removal,Peaceful Pets Ltd,22004601,552.50
Borough Council of Kings Lynn and West Norfolk,E07000146,19/04/2021,Street Sweeping,Animal Removal,Peaceful Pets Ltd,22004600,780.00
Borough Council of Kings Lynn and West Norfolk,E07000146,19/04/2021,Lease Cars,Leasing,Commercial Services Trading Ltd,22004606,"3,327.79"
Borough Council of Kings Lynn and West Norfolk,E07000146,19/04/2021,Lease Cars,Leasing,Commercial Services Trading Ltd,22004606,"2,747.36"
Borough Council of Kings Lynn and West Norfolk,E07000146,19/04/2021,Town Hall Kings Lynn,Repairs & Maintenance,Chas D Allflatt Ltd,21006267,957.26
Borough Council of Kings Lynn and West Norfolk,E07000146,19/04/2021,General Property,Repairs & Maintenance,CGM Group (East Anglia) Ltd,21006156,900.00
Borough Council of Kings Lynn and West Norfolk,E07000146,19/04/2021,ICT,Broadband Charge,British Telecommunications PLC,21006301,"1,095.02"
Borough Council of Kings Lynn and West Norfolk,E07000146,19/04/2021,ICT,Telephones,British Telecommunications PLC,21006300,660.64
Borough Council of Kings Lynn and West Norfolk,E07000146,19/04/2021,ICT,Telephones,British Telecommunications PLC,21006300,120.00
Borough Council of Kings Lynn and West Norfolk,E07000146,19/04/2021,Cost of Collection - CTax,Stationery & Office,Hound Envelopes Ltd,21005942,894.50
Borough Council of Kings Lynn and West Norfolk,E07000146,19/04/2021,Kings Court Service Charges,Repairs & Maintenance,H2O Vend Ltd,21006328,494.00
Borough Council of Kings Lynn and West Norfolk,E07000146,19/04/2021,Planning Control,Publications & Newspapers,KL Publications Ltd,21006331,576.00
Borough Council of Kings Lynn and West Norfolk,E07000146,19/04/2021,ICT,Computer Software Maint,Patronbase (UK) Partners Ltd,21006248,650.00
Borough Council of Kings Lynn and West Norfolk,E07000146,19/04/2021,General Property,Advertising & Marketing,Rightmove Group Ltd,21005993,570.00
Borough Council of Kings Lynn and West Norfolk,E07000146,19/04/2021,Personnel Services,Membership & Subscription,Jobtrain Ltd,21005944,825.00
Borough Council of Kings Lynn and West Norfolk,E07000146,19/04/2021,Cashless Pk JG (Bk on St),Transaction Fee,Chipside Ltd,21006306,2.00
Borough Council of Kings Lynn and West Norfolk,E07000146,19/04/2021,Cashless Pk JT(Brd on St),Transaction Fee,Chipside Ltd,21006306,4.00
Borough Council of Kings Lynn and West Norfolk,E07000146,19/04/2021,Cashless Pk JI(GYon St),Transaction Fee,Chipside Ltd,21006306,56.00
Borough Council of Kings Lynn and West Norfolk,E07000146,19/04/2021,Cashless Park KZ (KLWN off ST),Transaction Fee,Chipside Ltd,21006306,"1,061.91"
Borough Council of Kings Lynn and West Norfolk,E07000146,19/04/2021,Cashless Pk JE(NN on St),Transaction Fee,Chipside Ltd,21006306,147.00
Borough Council of Kings Lynn and West Norfolk,E07000146,19/04/2021,Cashless Pk JF(NN on St),Transaction Fee,Chipside Ltd,21006306,198.00
Borough Council of Kings Lynn and West Norfolk,E07000146,19/04/2021,Cashless Park KR (KLWN on ST),Transaction Fee,Chipside Ltd,21006306,238.83
Borough Council of Kings Lynn and West Norfolk,E07000146,19/04/2021,Cashless Pk JG (Bk on St),Merchant Fees,Chipside Ltd,21006303,0.14
Borough Council of Kings Lynn and West Norfolk,E07000146,19/04/2021,Cashless Pk JT(Brd on St),Merchant Fees,Chipside Ltd,21006303,0.43
Borough Council of Kings Lynn and West Norfolk,E07000146,19/04/2021,Cashless Pk JI(GYon St),Merchant Fees,Chipside Ltd,21006303,6.12
Borough Council of Kings Lynn and West Norfolk,E07000146,19/04/2021,Cashless Pk JE(NN on St),Merchant Fees,Chipside Ltd,21006303,13.44
Borough Council of Kings Lynn and West Norfolk,E07000146,19/04/2021,Cashless Pk YT(GY off St),Merchant Fees,Chipside Ltd,21006303,34.49
Borough Council of Kings Lynn and West Norfolk,E07000146,19/04/2021,Cashless Park KR (KLWN on ST),Merchant Fees,Chipside Ltd,21006303,34.71
Borough Council of Kings Lynn and West Norfolk,E07000146,19/04/2021,Cashless Pk JF(NN on St),Merchant Fees,Chipside Ltd,21006303,49.33
Borough Council of Kings Lynn and West Norfolk,E07000146,19/04/2021,Cashless Park KZ (KLWN off ST),Merchant Fees,Chipside Ltd,21006303,334.30
Borough Council of Kings Lynn and West Norfolk,E07000146,19/04/2021,Replacement Financial Ledger,Computer Equip (Software),Embridge Consulting (UK) Ltd,21006322,"1,778.19"
Borough Council of Kings Lynn and West Norfolk,E07000146,19/04/2021,West Winch Growth Area,Professional Fees,Gerald Eve LLP,21006086,"4,021.00"
Borough Council of Kings Lynn and West Norfolk,E07000146,19/04/2021,Utility Holding,Electricity,British Gas,22004603,"10,861.73"
Borough Council of Kings Lynn and West Norfolk,E07000146,19/04/2021,Utility Holding,Electricity,British Gas,22004604,"10,172.57"
Borough Council of Kings Lynn and West Norfolk,E07000146,19/04/2021,Factory 1 Refurb,Equipment/Materials,Acumen Waste Services Ltd,21006316,"22,155.84"
Borough Council of Kings Lynn and West Norfolk,E07000146,22/04/2021,Public conveniences,Sewerage/Cesspool Empty,BACO-Compak (Norfolk) Ltd,22004630,"1,625.00"
Borough Council of Kings Lynn and West Norfolk,E07000146,22/04/2021,NEWS Depot,Contract Cleaning,BACO-Compak (Norfolk) Ltd,22004630,450.36
Borough Council of Kings Lynn and West Norfolk,E07000146,22/04/2021,The Walks,Materials,Barcham Trees Plc,21006016,967.00
Borough Council of Kings Lynn and West Norfolk,E07000146,22/04/2021,The Walks,Materials,Barcham Trees Plc,21006016,"1,536.00"
Borough Council of Kings Lynn and West Norfolk,E07000146,22/04/2021,Parking Operations - Brgh,Repairs & Maintenance,Downham Door Services,21006432,460.00
Borough Council of Kings Lynn and West Norfolk,E07000146,22/04/2021,Parkway - Gaywood,Works,Mott MacDonald Limited,21006092,"45,000.00"
Borough Council of Kings Lynn and West Norfolk,E07000146,22/04/2021,Norfolk Tourism Package,Professional Fees,Norfolk County Council,21006335,"3,903.00"
Borough Council of Kings Lynn and West Norfolk,E07000146,22/04/2021,Hunstanton Bus Station & NCC Library,Professional Fees,North Norfolk District Council,21006455,950.00
Borough Council of Kings Lynn and West Norfolk,E07000146,22/04/2021,Hunstanton Bus Station & NCC Library,Professional Fees,North Norfolk District Council,21006456,"2,500.00"
Borough Council of Kings Lynn and West Norfolk,E07000146,22/04/2021,Postage Services K Court,Stationery & Office,Pitney Bowes Ltd,21006338,519.70
Borough Council of Kings Lynn and West Norfolk,E07000146,22/04/2021,Postage Services K Court,Stationery & Office,Pitney Bowes Ltd,21006338,9.95
Borough Council of Kings Lynn and West Norfolk,E07000146,22/04/2021,Sports Grounds North,Materials,Rigby Taylor Ltd,22004418,"1,707.00"
Borough Council of Kings Lynn and West Norfolk,E07000146,22/04/2021,Sports Grounds North,Materials,Rigby Taylor Ltd,22004418,"1,645.00"
Borough Council of Kings Lynn and West Norfolk,E07000146,22/04/2021,Postage Services K Court,Postages,Royal Mail Group Ltd,22004623,"1,183.12"
Borough Council of Kings Lynn and West Norfolk,E07000146,22/04/2021,Financial Services,Postages,Royal Mail Group Ltd,22004643,"2,924.24"
Borough Council of Kings Lynn and West Norfolk,E07000146,22/04/2021,Benefit Administration,Postages,Royal Mail Group Ltd,22004643,392.48
Borough Council of Kings Lynn and West Norfolk,E07000146,22/04/2021,Cost of Collection - CTax,Postages,Royal Mail Group Ltd,22004643,430.32
Borough Council of Kings Lynn and West Norfolk,E07000146,22/04/2021,Kings Lynn Bid,Postages,Royal Mail Group Ltd,22004643,1.32
Borough Council of Kings Lynn and West Norfolk,E07000146,22/04/2021,Cost of Collection - CTax,Postages,Royal Mail Group Ltd,22004643,4.05
Borough Council of Kings Lynn and West Norfolk,E07000146,22/04/2021,Benefit Administration,Postages,Royal Mail Group Ltd,22004643,16.65
Borough Council of Kings Lynn and West Norfolk,E07000146,22/04/2021,Personnel Services,Personnel DBS Checks,Disclosure & Barring Service,22004627,120.00
Borough Council of Kings Lynn and West Norfolk,E07000146,22/04/2021,Cafe in the Park,Personnel DBS Checks,Disclosure & Barring Service,22004627,40.00
Borough Council of Kings Lynn and West Norfolk,E07000146,22/04/2021,Parking Operations - Brgh,Personnel DBS Checks,Disclosure & Barring Service,22004627,120.00
Borough Council of Kings Lynn and West Norfolk,E07000146,22/04/2021,Resort Seafront,Personnel DBS Checks,Disclosure & Barring Service,22004627,40.00
Borough Council of Kings Lynn and West Norfolk,E07000146,22/04/2021,Home Improvements Agency,Personnel DBS Checks,Disclosure & Barring Service,22004627,40.00
Borough Council of Kings Lynn and West Norfolk,E07000146,22/04/2021,Licensing,CRB Forms - Expenditure,Disclosure & Barring Service,22004627,160.00
Borough Council of Kings Lynn and West Norfolk,E07000146,22/04/2021,Corporate,Audit Fee,Norfolk Pension Fund,22004629,"3,541.39"
Borough Council of Kings Lynn and West Norfolk,E07000146,22/04/2021,Natl Assist Act Burials,Burial Fees-Nat.Ass.Act,Thornalley Funeral Services Ltd,21006409,"1,504.00"
Borough Council of Kings Lynn and West Norfolk,E07000146,22/04/2021,Community Safety,Tools And Equipment,Campbell Associates Ltd,21005575,610.00
Borough Council of Kings Lynn and West Norfolk,E07000146,22/04/2021,Community Projects CS,Service Level Agreements,West Norfolk Befriending,21006418,"1,050.00"
Borough Council of Kings Lynn and West Norfolk,E07000146,22/04/2021,Town Hall Kings Lynn,Repairs & Maintenance,1-2 Call Drainage & Groundwork Ltd,21006363,"1,495.00"
Borough Council of Kings Lynn and West Norfolk,E07000146,22/04/2021,Valentine Road Hunstanton,Repairs & Maintenance,1-2 Call Drainage & Groundwork Ltd,21006364,650.00
Borough Council of Kings Lynn and West Norfolk,E07000146,22/04/2021,Hardwick Industrial Estate,Gas,OPUS Energy Limited,22004620,677.91
Borough Council of Kings Lynn and West Norfolk,E07000146,22/04/2021,Town Hall Kings Lynn,Repairs & Maintenance,MCE Heatcool Ltd,21006367,845.83
Borough Council of Kings Lynn and West Norfolk,E07000146,22/04/2021,Community Projects CRS,Service Level Agreements,North End Trust,21006399,"2,545.00"
Borough Council of Kings Lynn and West Norfolk,E07000146,22/04/2021,Dry Box Collection Scheme,Waste Processing Cost,Norse Environmental Services,21006094,"42,235.22"
Borough Council of Kings Lynn and West Norfolk,E07000146,22/04/2021,Domestic Refuse,Waste Processing Cost,Norse Environmental Services,21006122,"30,867.75"
Borough Council of Kings Lynn and West Norfolk,E07000146,22/04/2021,Printing&Copying-Floor Copiers,Other Machine Lease,Capita Business Services Ltd,21006427,"2,005.75"
Borough Council of Kings Lynn and West Norfolk,E07000146,22/04/2021,Licensing,Membership & Subscription,James Button & Co Solicitors,21006202,740.00
Borough Council of Kings Lynn and West Norfolk,E07000146,22/04/2021,Sth Quay Sommerfield & Thomas CRF,External Fees/Consultancy,Player Roberts Bell Architects Ltd,21006403,"6,291.67"
Borough Council of Kings Lynn and West Norfolk,E07000146,22/04/2021,Public Realm/Town Deal,Equipment/Materials,Hardscape Products Ltd,21006026,"19,533.14"
Borough Council of Kings Lynn and West Norfolk,E07000146,22/04/2021,Resort Seafront,Repairs & Maintenance,Frozen Brothers Ltd,21006398,"5,947.00"
Borough Council of Kings Lynn and West Norfolk,E07000146,22/04/2021,Regis Place Unit 2 -WN Vol,Repairs & Maintenance,AMR Mechanical Services Ltd,21006366,473.00
Borough Council of Kings Lynn and West Norfolk,E07000146,22/04/2021,Cost of Collection - NDR,Stationery & Office,DSI Billing Services Ltd,22004408,500.00
Borough Council of Kings Lynn and West Norfolk,E07000146,22/04/2021,Cost of Collection - NDR,Stationery & Office,DSI Billing Services Ltd,22004410,569.20
Borough Council of Kings Lynn and West Norfolk,E07000146,22/04/2021,Cost of Collection - NDR,Postages,DSI Billing Services Ltd,22004410,"1,629.87"
Borough Council of Kings Lynn and West Norfolk,E07000146,22/04/2021,Cost of Collection - CTax,Stationery & Office,DSI Billing Services Ltd,22004410,"7,264.57"
Borough Council of Kings Lynn and West Norfolk,E07000146,22/04/2021,Cost of Collection - CTax,Postages,DSI Billing Services Ltd,22004410,"17,579.79"
Borough Council of Kings Lynn and West Norfolk,E07000146,22/04/2021,Benefit Administration,Stationery & Office,DSI Billing Services Ltd,22004410,"1,206.68"
Borough Council of Kings Lynn and West Norfolk,E07000146,22/04/2021,Benefit Administration,Postages,DSI Billing Services Ltd,22004410,"2,810.32"
Borough Council of Kings Lynn and West Norfolk,E07000146,22/04/2021,Refuse & Recyc Mgmt,Advertising & Marketing,DSI Billing Services Ltd,22004411,"1,927.20"
Borough Council of Kings Lynn and West Norfolk,E07000146,22/04/2021,Cost of Collection - CTax,Stationery & Office,DSI Billing Services Ltd,22004411,"1,799.50"
Borough Council of Kings Lynn and West Norfolk,E07000146,22/04/2021,Community Projects CRS,Service Level Agreements,SWAN Youth Opportunities Project,21006405,"2,500.00"
Borough Council of Kings Lynn and West Norfolk,E07000146,22/04/2021,Home Improvements Agency,Agency Staff,Seven Resourcing Ltd,21006185,978.16
Borough Council of Kings Lynn and West Norfolk,E07000146,22/04/2021,NORA Phase 4,Professional Fees,Gateley Plc,21006436,"5,500.00"
Borough Council of Kings Lynn and West Norfolk,E07000146,22/04/2021,Replacement Financial Ledger,Computer Equip (Software),Embridge Consulting (UK) Ltd,21006370,"2,248.60"
Borough Council of Kings Lynn and West Norfolk,E07000146,22/04/2021,Network Hardware holding,Repairs & Maintenance,Quality Essential Distribution Ltd,21006097,"12,751.02"
Borough Council of Kings Lynn and West Norfolk,E07000146,22/04/2021,Lily Phase 4,Lily Advisor Payments,Norfolk and Waveney Mind,21006397,"1,820.00"
Borough Council of Kings Lynn and West Norfolk,E07000146,22/04/2021,Covid 19- LA Compliance and Enforcement,Covid 19 Marshalls,Excaliber Security Services Ltd,21006377,"4,375.28"
Borough Council of Kings Lynn and West Norfolk,E07000146,22/04/2021,Rough Sleeper Fund,Covid 19,Excaliber Security Services Ltd,21006378,"7,392.00"
Borough Council of Kings Lynn and West Norfolk,E07000146,22/04/2021,Rough Sleeper Fund,Covid 19,Excaliber Security Services Ltd,21006379,"8,755.20"
Borough Council of Kings Lynn and West Norfolk,E07000146,22/04/2021,KL Innovation Centre,Repairs & Maintenance,Onyx It,21006400,635.00
Borough Council of Kings Lynn and West Norfolk,E07000146,26/04/2021,Rough Sleeper Fund,Covid 19,Sundry CTax BACS,22004912,"5,071.43"
Borough Council of Kings Lynn and West Norfolk,E07000146,26/04/2021,Stories of Lynn,Professional Fees,Norfolk County Council,21006493,"32,332.00"
Borough Council of Kings Lynn and West Norfolk,E07000146,26/04/2021,Parking Operations - Brgh,Repairs & Maintenance,Norfolk County Council,21006494,654.36
Borough Council of Kings Lynn and West Norfolk,E07000146,26/04/2021,Heacham Beach,Repairs & Maintenance,Penty Contractors Ltd,21006508,500.00
Borough Council of Kings Lynn and West Norfolk,E07000146,26/04/2021,Grounds,Vehicle - repairs & Maint,Thurlow Nunn Standen Ltd,22004612,"1,199.79"
Borough Council of Kings Lynn and West Norfolk,E07000146,26/04/2021,Internal Audit,Professional Fees,Tameside MBC,22004660,"1,600.00"
Borough Council of Kings Lynn and West Norfolk,E07000146,26/04/2021,Phase 5 Town Centre KL,Repairs & Maintenance,M English Security Limited,21006389,"1,131.28"
Borough Council of Kings Lynn and West Norfolk,E07000146,26/04/2021,Mintlyn Crematorium,Repairs & Maintenance,Facultatieve Technologies Ltd,21006111,"1,876.00"
Borough Council of Kings Lynn and West Norfolk,E07000146,26/04/2021,Mintlyn Crematorium,Repairs & Maintenance,Facultatieve Technologies Ltd,21006112,565.00
Borough Council of Kings Lynn and West Norfolk,E07000146,26/04/2021,Mintlyn Crematorium,Repairs & Maintenance,Facultatieve Technologies Ltd,21006113,"1,147.50"
Borough Council of Kings Lynn and West Norfolk,E07000146,26/04/2021,Mintlyn Crematorium,Trade Waste,Facultatieve Technologies Ltd,21006114,781.32
Borough Council of Kings Lynn and West Norfolk,E07000146,26/04/2021,General Property,Repairs & Maintenance,1-2 Call Drainage & Groundwork Ltd,21006475,550.00
Borough Council of Kings Lynn and West Norfolk,E07000146,26/04/2021,St Johns Business Park,Repairs & Maintenance,1-2 Call Drainage & Groundwork Ltd,21006476,575.00
Borough Council of Kings Lynn and West Norfolk,E07000146,26/04/2021,Stories of Lynn,Repairs & Maintenance,UCC Coffee UK Ltd,21006410,"1,569.00"
Borough Council of Kings Lynn and West Norfolk,E07000146,26/04/2021,Reopening High Street,Professional Fees,KL Publications Ltd,21006490,576.00
Borough Council of Kings Lynn and West Norfolk,E07000146,26/04/2021,Financial Services,Agency Staff,Hays Specialist Recruitment,21006384,"3,245.00"
Borough Council of Kings Lynn and West Norfolk,E07000146,26/04/2021,Food Hygiene General,Drinking Water,Public Health England,21006133,998.72
Borough Council of Kings Lynn and West Norfolk,E07000146,26/04/2021,KL Innovation Centre,Repairs & Maintenance,Direct -Tech Solutions Ltd,21006137,"1,004.73"
Borough Council of Kings Lynn and West Norfolk,E07000146,26/04/2021,Regis Place Unit 2 -WN Vol,Repairs & Maintenance,Swift Air Ventilation Ltd,21006081,"10,000.00"
Borough Council of Kings Lynn and West Norfolk,E07000146,26/04/2021,Special Events,Special Events,Wild in Art Limited,21006104,"15,500.00"
Borough Council of Kings Lynn and West Norfolk,E07000146,26/04/2021,Personnel Services,Covid 19,Nigel Youngman Limited,22004657,900.00
Borough Council of Kings Lynn and West Norfolk,E07000146,26/04/2021,Lily Phase 4,Lily Advisor Payments,West Norfolk Carers Association,21006503,"1,855.00"
Borough Council of Kings Lynn and West Norfolk,E07000146,26/04/2021,Arts Centre Complex,External Fees/Consultancy,Roderick Shelton Ltd,21006496,"12,836.15"
Borough Council of Kings Lynn and West Norfolk,E07000146,26/04/2021,Subscriptions,Membership & Subscription,West Devon Borough Council,22004666,"3,315.00"
Borough Council of Kings Lynn and West Norfolk,E07000146,27/04/2021,Replacement Financial Ledger,Computer Equip (Software),Bedford Borough Council,22004695,"1,000.00"
Borough Council of Kings Lynn and West Norfolk,E07000146,29/04/2021,Tech/Officers/Repairs,Vehicle - repairs & Maint,Trakm8 Limited,22004644,9.99
Borough Council of Kings Lynn and West Norfolk,E07000146,29/04/2021,Tech/Officers/Repairs,Vehicle - repairs & Maint,Trakm8 Limited,22004644,9.99
Borough Council of Kings Lynn and West Norfolk,E07000146,29/04/2021,Grounds,Vehicle - repairs & Maint,Trakm8 Limited,22004644,9.99
Borough Council of Kings Lynn and West Norfolk,E07000146,29/04/2021,Grounds,Vehicle - repairs & Maint,Trakm8 Limited,22004644,51.00
Borough Council of Kings Lynn and West Norfolk,E07000146,29/04/2021,Grounds,Vehicle - repairs & Maint,Trakm8 Limited,22004644,51.00
Borough Council of Kings Lynn and West Norfolk,E07000146,29/04/2021,Grounds,Vehicle - repairs & Maint,Trakm8 Limited,22004644,51.00
Borough Council of Kings Lynn and West Norfolk,E07000146,29/04/2021,Public Cleansing,Vehicle - repairs & Maint,Trakm8 Limited,22004644,51.00
Borough Council of Kings Lynn and West Norfolk,E07000146,29/04/2021,Public Cleansing,Vehicle - repairs & Maint,Trakm8 Limited,22004644,51.00
Borough Council of Kings Lynn and West Norfolk,E07000146,29/04/2021,Public Cleansing,Vehicle - repairs & Maint,Trakm8 Limited,22004644,51.00
Borough Council of Kings Lynn and West Norfolk,E07000146,29/04/2021,Public Cleansing,Vehicle - repairs & Maint,Trakm8 Limited,22004644,51.00
Borough Council of Kings Lynn and West Norfolk,E07000146,29/04/2021,Public Cleansing,Vehicle - repairs & Maint,Trakm8 Limited,22004644,51.00
Borough Council of Kings Lynn and West Norfolk,E07000146,29/04/2021,Public Cleansing,Vehicle - repairs & Maint,Trakm8 Limited,22004644,51.00
Borough Council of Kings Lynn and West Norfolk,E07000146,29/04/2021,Public Cleansing,Vehicle - repairs & Maint,Trakm8 Limited,22004644,51.00
Borough Council of Kings Lynn and West Norfolk,E07000146,29/04/2021,Public Cleansing,Vehicle - repairs & Maint,Trakm8 Limited,22004644,51.00
Borough Council of Kings Lynn and West Norfolk,E07000146,29/04/2021,Public Cleansing,Vehicle - repairs & Maint,Trakm8 Limited,22004644,51.00
Borough Council of Kings Lynn and West Norfolk,E07000146,29/04/2021,Public Cleansing,Vehicle - repairs & Maint,Trakm8 Limited,22004644,51.00
Borough Council of Kings Lynn and West Norfolk,E07000146,29/04/2021,Public Cleansing,Vehicle - repairs & Maint,Trakm8 Limited,22004644,51.00
Borough Council of Kings Lynn and West Norfolk,E07000146,29/04/2021,Public Cleansing,Vehicle - repairs & Maint,Trakm8 Limited,22004644,51.00
Borough Council of Kings Lynn and West Norfolk,E07000146,29/04/2021,Public Cleansing,Vehicle - repairs & Maint,Trakm8 Limited,22004644,51.00
Borough Council of Kings Lynn and West Norfolk,E07000146,29/04/2021,Public Cleansing,Vehicle - repairs & Maint,Trakm8 Limited,22004644,51.00
Borough Council of Kings Lynn and West Norfolk,E07000146,29/04/2021,Public Cleansing,Vehicle - repairs & Maint,Trakm8 Limited,22004644,51.00
Borough Council of Kings Lynn and West Norfolk,E07000146,29/04/2021,Public Cleansing,Vehicle - repairs & Maint,Trakm8 Limited,22004644,51.00
Borough Council of Kings Lynn and West Norfolk,E07000146,29/04/2021,Careline,Vehicle - repairs & Maint,Trakm8 Limited,22004644,51.00
Borough Council of Kings Lynn and West Norfolk,E07000146,29/04/2021,Neighbourhood Teams,Vehicle - repairs & Maint,Trakm8 Limited,22004644,51.00
Borough Council of Kings Lynn and West Norfolk,E07000146,29/04/2021,Neighbourhood Teams,Vehicle - repairs & Maint,Trakm8 Limited,22004644,51.00
Borough Council of Kings Lynn and West Norfolk,E07000146,29/04/2021,Neighbourhood Teams,Vehicle - repairs & Maint,Trakm8 Limited,22004644,51.00
Borough Council of Kings Lynn and West Norfolk,E07000146,29/04/2021,Neighbourhood Teams,Vehicle - repairs & Maint,Trakm8 Limited,22004644,51.00
Borough Council of Kings Lynn and West Norfolk,E07000146,29/04/2021,The Walks,Vehicle - repairs & Maint,Trakm8 Limited,22004644,51.00
Borough Council of Kings Lynn and West Norfolk,E07000146,29/04/2021,The Walks,Vehicle - repairs & Maint,Trakm8 Limited,22004644,51.00
Borough Council of Kings Lynn and West Norfolk,E07000146,29/04/2021,GM Central Area,Vehicle - repairs & Maint,Trakm8 Limited,22004644,51.00
Borough Council of Kings Lynn and West Norfolk,E07000146,29/04/2021,GM Central Area,Vehicle - repairs & Maint,Trakm8 Limited,22004644,51.00
Borough Council of Kings Lynn and West Norfolk,E07000146,29/04/2021,CCTV,Vehicle - repairs & Maint,Trakm8 Limited,22004644,51.00
Borough Council of Kings Lynn and West Norfolk,E07000146,29/04/2021,CCTV,Vehicle - repairs & Maint,Trakm8 Limited,22004644,51.00
Borough Council of Kings Lynn and West Norfolk,E07000146,29/04/2021,GM Southern Area & Lynnsport,Vehicle - repairs & Maint,Trakm8 Limited,22004644,51.00
Borough Council of Kings Lynn and West Norfolk,E07000146,29/04/2021,Kings Court Kings Lynn,Vehicle - repairs & Maint,Trakm8 Limited,22004644,51.00
Borough Council of Kings Lynn and West Norfolk,E07000146,29/04/2021,Play Areas,Repairs & Maintenance,Play Inspection Company Ltd,21006542,"3,525.00"
Borough Council of Kings Lynn and West Norfolk,E07000146,29/04/2021,Building Control Non Fee,Agency,CNC Buiding Control,22004667,"15,600.50"
Borough Council of Kings Lynn and West Norfolk,E07000146,29/04/2021,Financial Services,Agency Staff,Hays Specialist Recruitment,21006488,"4,130.00"
Borough Council of Kings Lynn and West Norfolk,E07000146,29/04/2021,County Council Elections,Stationery & Office,East Coast Signs Ltd,21006369,"7,740.00"
Borough Council of Kings Lynn and West Norfolk,E07000146,29/04/2021,Training Holding Account,Training,Creative Learning Systems,21006526,"9,017.20"
Borough Council of Kings Lynn and West Norfolk,E07000146,29/04/2021,Domestic Refuse,Dayworks and Addnl Works,Kier Services Environmental,21006580,"3,825.26"
Borough Council of Kings Lynn and West Norfolk,E07000146,29/04/2021,Domestic Refuse,Dayworks and Addnl Works,Kier Services Environmental,21006581,"5,324.01"
Borough Council of Kings Lynn and West Norfolk,E07000146,29/04/2021,Domestic Refuse,Dayworks and Addnl Works,Kier Services Environmental,21006582,"1,114.31"
Borough Council of Kings Lynn and West Norfolk,E07000146,29/04/2021,Domestic Refuse,Dayworks and Addnl Works,Kier Services Environmental,21006583,"4,013.54"
Borough Council of Kings Lynn and West Norfolk,E07000146,29/04/2021,Home Improvements Agency,Agency Staff,Seven Resourcing Ltd,21006340,888.17
Borough Council of Kings Lynn and West Norfolk,E07000146,29/04/2021,Home Improvements Agency,Agency Staff,Seven Resourcing Ltd,21006341,877.80
Borough Council of Kings Lynn and West Norfolk,E07000146,29/04/2021,Parks & Open Spaces,Tree Surgery,Golden Tree Surgeons Ltd,21006518,"1,130.00"
Borough Council of Kings Lynn and West Norfolk,E07000146,29/04/2021,Parks & Open Spaces,Tree Work/Storm Damage,Golden Tree Surgeons Ltd,21006577,"1,130.00"
Borough Council of Kings Lynn and West Norfolk,E07000146,29/04/2021,Closed Churchyards,Repairs & Maintenance,Golden Tree Surgeons Ltd,21006599,"2,760.00"
Borough Council of Kings Lynn and West Norfolk,E07000146,29/04/2021,KC Office accom rental,Contract Security,MPD FM Ltd,21006333,"1,783.98"
Borough Council of Kings Lynn and West Norfolk,E07000146,29/04/2021,KC Office accom rental,Contract Security,MPD FM Ltd,21006334,"6,485.40"
Borough Council of Kings Lynn and West Norfolk,E07000146,29/04/2021,Crematorium Trading Account,Webcasts/Tributes/Recordings,Vivedia Ltd,21006204,"4,408.00"
Borough Council of Kings Lynn and West Norfolk,E07000146,29/04/2021,Lily Phase 4,Lily Advisor Payments,Norfolk and Waveney Mind,21006616,"2,415.00"
Borough Council of Kings Lynn and West Norfolk,E07000146,29/04/2021,Covid 19- LA Compliance and Enforcement,Covid 19 Marshalls,Excaliber Security Services Ltd,21006529,"3,788.29"
Borough Council of Kings Lynn and West Norfolk,E07000146,29/04/2021,Covid 19- LA Compliance and Enforcement,Covid 19 Marshalls,Excaliber Security Services Ltd,21006530,590.40
Borough Council of Kings Lynn and West Norfolk,E07000146,29/04/2021,Rough Sleeper Fund,Covid 19,Bunkabin Ltd,21006258,"2,596.00"
Borough Council of Kings Lynn and West Norfolk,E07000146,29/04/2021,Rough Sleeper Fund,Covid 19,Bunkabin Ltd,21006259,"1,584.00"
Borough Council of Kings Lynn and West Norfolk,E07000146,29/04/2021,Rough Sleeper Fund,Covid 19,Bunkabin Ltd,21006260,"1,848.00"
Borough Council of Kings Lynn and West Norfolk,E07000146,29/04/2021,Rough Sleeper Fund,Covid 19,Bunkabin Ltd,21006261,528.00
Borough Council of Kings Lynn and West Norfolk,E07000146,29/04/2021,Refuse Vehicles,Works,Dennis Eagle Ltd,21006527,"199,750.00"
Borough Council of Kings Lynn and West Norfolk,E07000146,29/04/2021,Refuse Vehicles,Works,Dennis Eagle Ltd,21006528,"199,750.00"
Borough Council of Kings Lynn and West Norfolk,E07000146,29/04/2021,Grounds,Vehicle - repairs & Maint,Ernest Doe & Sons Ltd,22004683,615.00
Borough Council of Kings Lynn and West Norfolk,E07000146,29/04/2021,Mitel Telephony into Microsoft Teams,Equipment/Materials,Kingsfield Computer Product Ltd,21006177,620.77
Borough Council of Kings Lynn and West Norfolk,E07000146,29/04/2021,Balance Sheet,VAT Input - VAT Only Purchases,Weightmans LLP,21006570,"1,698.30"
Borough Council of Kings Lynn and West Norfolk,E07000146,29/04/2021,Cafe in the Park,Confectionery - Supplies,Booker Cash & Carry Ltd,21006217,444.59
Borough Council of Kings Lynn and West Norfolk,E07000146,29/04/2021,Cafe in the Park,Confectionery - Supplies,Booker Cash & Carry Ltd,21006217,78.98
Borough Council of Kings Lynn and West Norfolk,E07000146,29/04/2021,ICT,Computer Hardware Maint,Switchshop Ltd,21006460,"1,810.00"
Borough Council of Kings Lynn and West Norfolk,E07000146,29/04/2021,Training Holding Account,Training,CITB,21006548,578.00
Borough Council of Kings Lynn and West Norfolk,E07000146,29/04/2021,COWA School of Nursing,Equipment/Materials,College of West Anglia,21006524,"35,146.24"
Borough Council of Kings Lynn and West Norfolk,E07000146,29/04/2021,Sports Grounds North,Materials,Collier Turf Care Ltd,22004670,"3,063.19"
Borough Council of Kings Lynn and West Norfolk,E07000146,29/04/2021,Parkway - Gaywood,Works,CGM Group (East Anglia) Ltd,21006559,"1,200.00"
Borough Council of Kings Lynn and West Norfolk,E07000146,29/04/2021,Refuse & Recyc Mgmt,Miscellaneous,Great Yarmouth Borough Council,21006579,"5,115.81"
Borough Council of Kings Lynn and West Norfolk,E07000146,29/04/2021,Parking Operations - Brgh,Repairs & Maintenance,Norfolk County Council,21006617,"2,181.20"
Borough Council of Kings Lynn and West Norfolk,E07000146,29/04/2021,Corporate Project Manager,Professional Fees,North Norfolk District Council,21006457,"1,605.42"
Borough Council of Kings Lynn and West Norfolk,E07000146,29/04/2021,Corporate Project Manager,Professional Fees,North Norfolk District Council,21006457,160.00
Borough Council of Kings Lynn and West Norfolk,E07000146,29/04/2021,NNDC Penalty Notice,Agency,North Norfolk District Council,21006540,"3,162.01"
Borough Council of Kings Lynn and West Norfolk,E07000146,29/04/2021,Occupational H & Safety,Professional Fees,North Norfolk District Council,21006618,460.83
Borough Council of Kings Lynn and West Norfolk,E07000146,29/04/2021,Postage Services K Court,Postages,Postage By Phone,22004690,"5,001.28"
Borough Council of Kings Lynn and West Norfolk,E07000146,29/04/2021,Postage Services K Court,Postages,Postage By Phone,22004690,11.00
Borough Council of Kings Lynn and West Norfolk,E07000146,29/04/2021,Grounds,Materials,Rigby Taylor Ltd,22004556,555.00
Borough Council of Kings Lynn and West Norfolk,E07000146,29/04/2021,Neighbourhood Teams,Materials,Rigby Taylor Ltd,22004556,155.00
Borough Council of Kings Lynn and West Norfolk,E07000146,29/04/2021,Financial Services,Postages,Royal Mail Group Ltd,22004682,68.64
Borough Council of Kings Lynn and West Norfolk,E07000146,29/04/2021,Benefit Administration,Postages,Royal Mail Group Ltd,22004682,358.60
Borough Council of Kings Lynn and West Norfolk,E07000146,29/04/2021,Cost of Collection - CTax,Postages,Royal Mail Group Ltd,22004682,665.78
Borough Council of Kings Lynn and West Norfolk,E07000146,29/04/2021,Kings Lynn Bid,Postages,Royal Mail Group Ltd,22004682,250.36
Borough Council of Kings Lynn and West Norfolk,E07000146,29/04/2021,Benefit Administration,Postages,Royal Mail Group Ltd,22004682,19.87
Borough Council of Kings Lynn and West Norfolk,E07000146,29/04/2021,Cost of Collection - CTax,Postages,Royal Mail Group Ltd,22004682,7.91
Borough Council of Kings Lynn and West Norfolk,E07000146,29/04/2021,Kings Lynn Bid,Postages,Royal Mail Group Ltd,22004682,8.29
Borough Council of Kings Lynn and West Norfolk,E07000146,29/04/2021,Grounds,Vehicle - repairs & Maint,Thurlow Nunn Standen Ltd,22004613,"1,597.73"
Borough Council of Kings Lynn and West Norfolk,E07000146,29/04/2021,Norfolk Tourism Package,Equipment/Materials,Anderson Electrical Trade Ltd,21006549,"1,079.88"
Borough Council of Kings Lynn and West Norfolk,E07000146,29/04/2021,Walks Car Park Resurf and P&D,Works,NB Construction (UK) Ltd,21006560,"99,889.36"
Borough Council of Kings Lynn and West Norfolk,E07000146,29/04/2021,Factory 1 Refurb,Equipment/Materials,Acumen Waste Services Ltd,21006590,"5,538.96"
Borough Council of Kings Lynn and West Norfolk,E07000146,29/04/2021,Careline,Contracted Services,HOIP Telecom Ltd,22004673,"1,028.69"
Borough Council of Kings Lynn and West Norfolk,E07000146,29/04/2021,Neighbourhood Teams,Covid 19,Enterprise Flex-E Rent,22004671,139.50
Borough Council of Kings Lynn and West Norfolk,E07000146,29/04/2021,Grounds,Covid 19,Enterprise Flex-E Rent,22004671,279.00
Borough Council of Kings Lynn and West Norfolk,E07000146,29/04/2021,EZ- Roads/Infrastructure,Works,1-2 Call Drainage & Groundwork Ltd,21006513,720.00
Borough Council of Kings Lynn and West Norfolk,E07000146,29/04/2021,NEWS Depot,Repairs & Maintenance,1-2 Call Drainage & Groundwork Ltd,21006552,"1,350.00"
Borough Council of Kings Lynn and West Norfolk,E07000146,29/04/2021,EZ- Roads/Infrastructure,Works,1-2 Call Drainage & Groundwork Ltd,21006553,"1,650.00"
Borough Council of Kings Lynn and West Norfolk,E07000146,29/04/2021,General Property,Repairs & Maintenance,1-2 Call Drainage & Groundwork Ltd,21006555,"6,650.00"
Borough Council of Kings Lynn and West Norfolk,E07000146,29/04/2021,Rough Sleeper Fund,Covid 19,1-2 Call Drainage & Groundwork Ltd,21006595,460.00
Borough Council of Kings Lynn and West Norfolk,E07000146,29/04/2021,Mintlyn Crematorium,Professional Fees,Vida Healthcare,21006547,"3,327.60"
Borough Council of Kings Lynn and West Norfolk,E07000146,29/04/2021,Priory Road D Market,Repairs & Maintenance,ADT Fire and Security Plc,21006294,"1,118.84"
Borough Council of Kings Lynn and West Norfolk,E07000146,29/04/2021,General Property,Repairs & Maintenance,B & B Engineering Ltd,21006558,899.00
Borough Council of Kings Lynn and West Norfolk,E07000146,29/04/2021,Supplier Holding Account,Vehicle - repairs & Maint,Paul Johnson Motor Services Ltd,22004680,252.20
Borough Council of Kings Lynn and West Norfolk,E07000146,29/04/2021,Supplier Holding Account,Vehicle - repairs & Maint,Paul Johnson Motor Services Ltd,22004680,"5,650.39"
Borough Council of Kings Lynn and West Norfolk,E07000146,29/04/2021,Town Hall Kings Lynn,Repairs & Maintenance,Dorma UK Ltd,21006223,271.00
Borough Council of Kings Lynn and West Norfolk,E07000146,29/04/2021,Stories of Lynn,Repairs & Maintenance,Dorma UK Ltd,21006223,271.00
Borough Council of Kings Lynn and West Norfolk,E07000146,30/04/2021,Corporate,Bank Charges,Allpay,22004717,554.51
Borough Council of Kings Lynn and West Norfolk,E07000146,30/04/2021,ICT,Computer Software Maint,Capita Business Services Ltd,22004720,447.93
Borough Council of Kings Lynn and West Norfolk,E07000146,30/04/2021,Parking Operations - Brgh,Electricity Bulk Billing,EDF Energy Ltd,22004723,534.88
Borough Council of Kings Lynn and West Norfolk,E07000146,30/04/2021,Utility Holding,Electricity Bulk Billing,EDF Energy Ltd,22004725,"31,105.30"
Borough Council of Kings Lynn and West Norfolk,E07000146,30/04/2021,Hardwick Industrial Estate,Electricity Bulk Billing,EDF Energy Ltd,22004724,"1,080.18"
Borough Council of Kings Lynn and West Norfolk,E07000146,30/04/2021,Parking Operations - Brgh,Electricity Bulk Billing,EDF Energy Ltd,22004726,"1,643.37"
Borough Council of Kings Lynn and West Norfolk,E07000146,30/04/2021,Kings Court Kings Lynn,Confectionery - Supplies,Propel Finance Plc,22004729,"1,206.70"
Borough Council of Kings Lynn and West Norfolk,E07000146,30/04/2021,KL Innovation Centre,Telephones,Spitfire Network Services Ltd,22004730,913.56
Borough Council of Kings Lynn and West Norfolk,E07000146,30/04/2021,Corporate,Bank Charges,Worldpay Ltd,22004733,"7,291.25"
Borough Council of Kings Lynn and West Norfolk,E07000146,30/04/2021,Corporate,Bank Charges,Worldpay Ltd,22004733,287.49
Borough Council of Kings Lynn and West Norfolk,E07000146,30/04/2021,ICT,MPhone Usage & Top-up,TelefonicaO2UK Ltd,22004731,905.20
Borough Council of Kings Lynn and West Norfolk,E07000146,04/05/2021,Fairstead Community  Centre,Repairs & Maintenance,M English Security Limited,21006584,448.97
Borough Council of Kings Lynn and West Norfolk,E07000146,04/05/2021,Public Cleansing,Cleaning Material & Equip,V & J Knitwear Ltd,21006679,813.80
Borough Council of Kings Lynn and West Norfolk,E07000146,04/05/2021,Corporate,Cash Deficit Recovery,Bedford Borough Council,22004697,"1,815,999.96"
Borough Council of Kings Lynn and West Norfolk,E07000146,04/05/2021,Financial Services,Agency Staff,Hays Specialist Recruitment,21006607,"2,950.00"
Borough Council of Kings Lynn and West Norfolk,E07000146,04/05/2021,Reopening High Street,Professional Fees,Your Local Paper Ltd,21006506,"1,000.00"
Borough Council of Kings Lynn and West Norfolk,E07000146,04/05/2021,Recycling Composting,Waste Processing Cost,Kier Services Environmental,21004538,"11,288.87"
Borough Council of Kings Lynn and West Norfolk,E07000146,04/05/2021,Treasury Management,Management Expenses,Link Treasury Services Ltd,21006649,"9,250.00"
Borough Council of Kings Lynn and West Norfolk,E07000146,04/05/2021,Corporate Project Manager,Tools And Equipment,TelefonicaO2UK Ltd,21006677,"1,210.27"
Borough Council of Kings Lynn and West Norfolk,E07000146,04/05/2021,Planning Control,Stationery & Office,TelefonicaO2UK Ltd,21006678,549.00
Borough Council of Kings Lynn and West Norfolk,E07000146,04/05/2021,ICT,Computer Hardware Maint,Bytes Software Services Ltd,21006473,"5,351.56"
Borough Council of Kings Lynn and West Norfolk,E07000146,04/05/2021,Covid 19- LA Compliance and Enforcement,Covid 19 Marshalls,Excaliber Security Services Ltd,21006643,"3,826.24"
Borough Council of Kings Lynn and West Norfolk,E07000146,04/05/2021,Lynnsport 3,Works,Norfolk Flooring Ltd,22004702,"5,860.62"
Borough Council of Kings Lynn and West Norfolk,E07000146,04/05/2021,Lynnsport 3,Works,Norfolk Flooring Ltd,22004702,"1,800.00"
Borough Council of Kings Lynn and West Norfolk,E07000146,04/05/2021,Home Improvements Agency,Advertising & Marketing,Hunstanton Town and Around,21006672,168.57
Borough Council of Kings Lynn and West Norfolk,E07000146,04/05/2021,Careline,Advertising & Marketing,Hunstanton Town and Around,21006672,168.57
Borough Council of Kings Lynn and West Norfolk,E07000146,04/05/2021,LILY 5,Advertising & Marketing,Hunstanton Town and Around,21006672,337.14
Borough Council of Kings Lynn and West Norfolk,E07000146,04/05/2021,Treasury Management,Management Expenses,Link Treasury Services Ltd,21006648,485.00
Borough Council of Kings Lynn and West Norfolk,E07000146,04/05/2021,Public Cleansing,Contract Repairs,Ford & Slater DAF Kings Lynn,22004705,753.66
Borough Council of Kings Lynn and West Norfolk,E07000146,04/05/2021,Food Hygiene General,Tools And Equipment,Great Yarmouth Borough Council,21006645,574.76
Borough Council of Kings Lynn and West Norfolk,E07000146,04/05/2021,Closed Churchyards,Repairs & Maintenance,Chas D Allflatt Ltd,21006639,"7,102.50"
Borough Council of Kings Lynn and West Norfolk,E07000146,04/05/2021,Standard Desktop Refresh,Equipment/Materials,Dell Corporation Ltd,21006641,"3,798.90"
Borough Council of Kings Lynn and West Norfolk,E07000146,04/05/2021,West Winch Growth Area,Professional Fees,Clyde & Co LLP,22004741,"25,000.00"
Borough Council of Kings Lynn and West Norfolk,E07000146,06/05/2021,Home Improvements Agency,Agency Staff,Seven Resourcing Ltd,21006587,885.40
Borough Council of Kings Lynn and West Norfolk,E07000146,06/05/2021,Kings Lynn Bid,Agency,Kings Lynn BID Ltd,22004708,"173,428.00"
Borough Council of Kings Lynn and West Norfolk,E07000146,06/05/2021,Kings Lynn Bid,Professional Fees,Kings Lynn BID Ltd,22004708,"-7,047.00"
Borough Council of Kings Lynn and West Norfolk,E07000146,06/05/2021,Kings Lynn Bid,Postages,Kings Lynn BID Ltd,22004708,-810.00
Borough Council of Kings Lynn and West Norfolk,E07000146,06/05/2021,Kings Lynn Bid,Court Costs,Kings Lynn BID Ltd,22004708,-150.00
Borough Council of Kings Lynn and West Norfolk,E07000146,06/05/2021,Kings Lynn Bid,Agency,Kings Lynn BID Ltd,22004735,"95,008.00"
Borough Council of Kings Lynn and West Norfolk,E07000146,06/05/2021,Food Hygiene/H&S Sals/Sup,Agency Staff,G2 Recruitment Ltd,21006210,"3,681.95"
Borough Council of Kings Lynn and West Norfolk,E07000146,06/05/2021,Community Transport,Transport Subsidies,West Lynn Ferry Ltd,21006730,"1,716.66"
Borough Council of Kings Lynn and West Norfolk,E07000146,06/05/2021,Refuse Vehicles,Works,Browns of Grimsargh Ltd,21006684,"21,393.00"
Borough Council of Kings Lynn and West Norfolk,E07000146,06/05/2021,Training Holding Account,Training,Grumpy Rabbit Ltd,21006710,600.00
Borough Council of Kings Lynn and West Norfolk,E07000146,06/05/2021,Parking Operations - Brgh,Repairs & Maintenance,Kings & Barnhams,21006689,469.90
Borough Council of Kings Lynn and West Norfolk,E07000146,06/05/2021,Parking Operations - Brgh,Rent,Le Strange Estate,21006718,"25,141.50"
Borough Council of Kings Lynn and West Norfolk,E07000146,06/05/2021,KL Innovation Centre,Repairs & Maintenance,Mr Brights Ltd,21006623,"1,693.84"
Borough Council of Kings Lynn and West Norfolk,E07000146,06/05/2021,Investment & Place Mktg,Advertising & Marketing,Norfolk County Council,21006179,"1,000.00"
Borough Council of Kings Lynn and West Norfolk,E07000146,06/05/2021,Sports Grounds North,Repairs & Maintenance,Penty Contractors Ltd,21006698,480.00
Borough Council of Kings Lynn and West Norfolk,E07000146,06/05/2021,Parking Operations - Brgh,Repairs & Maintenance,Penty Contractors Ltd,21006700,"2,750.00"
Borough Council of Kings Lynn and West Norfolk,E07000146,06/05/2021,ICT,MPhone Usage & Top-up,Vodafone (Corporate) Ltd,21006728,674.77
Borough Council of Kings Lynn and West Norfolk,E07000146,06/05/2021,ICT,MPhone Usage & Top-up,Vodafone (Corporate) Ltd,21006728,105.00
Borough Council of Kings Lynn and West Norfolk,E07000146,06/05/2021,ICT,MPhone Usage & Top-up,Vodafone (Corporate) Ltd,21006729,"6,116.43"
Borough Council of Kings Lynn and West Norfolk,E07000146,06/05/2021,ICT,MPhone Usage & Top-up,Vodafone (Corporate) Ltd,21006729,42.00
Borough Council of Kings Lynn and West Norfolk,E07000146,06/05/2021,Public Cleansing,Cleaning Material & Equip,V & J Knitwear Ltd,21006589,704.85
Borough Council of Kings Lynn and West Norfolk,E07000146,06/05/2021,Cafe in the Park,Confectionery - Supplies,Eden Farm Hulleys Ltd,21006708,796.09
Borough Council of Kings Lynn and West Norfolk,E07000146,06/05/2021,Cafe in the Park,Confectionery - Supplies,Eden Farm Hulleys Ltd,21006708,31.00
Borough Council of Kings Lynn and West Norfolk,E07000146,06/05/2021,Natl Assist Act Burials,Burial Fees-Nat.Ass.Act,Thornalley Funeral Services Ltd,21006725,"1,045.00"
Borough Council of Kings Lynn and West Norfolk,E07000146,06/05/2021,Parking Operations - Brgh,Repairs & Maintenance,AMR Electrical Services Ltd,21006632,921.66
Borough Council of Kings Lynn and West Norfolk,E07000146,06/05/2021,Kings Court Kings Lynn,Repairs & Maintenance,B & B Engineering Ltd,21006664,785.00
Borough Council of Kings Lynn and West Norfolk,E07000146,06/05/2021,Cntrl & Community Service,Staff Welfare,BUPA,21006658,"1,265.64"
Borough Council of Kings Lynn and West Norfolk,E07000146,06/05/2021,North Lynn Managed Workshops,Repairs & Maintenance,Advanced Water Treatment (UK) Ltd,21006571,"2,630.00"
Borough Council of Kings Lynn and West Norfolk,E07000146,06/05/2021,Kings Court Service Charges,Repairs & Maintenance,Advanced Water Treatment (UK) Ltd,21006572,"2,300.10"
Borough Council of Kings Lynn and West Norfolk,E07000146,06/05/2021,Regis Place Unit1-Non Inv Care,Repairs & Maintenance,Advanced Water Treatment (UK) Ltd,21006573,"1,858.10"
Borough Council of Kings Lynn and West Norfolk,E07000146,06/05/2021,Valentine Road Hunstanton,Repairs & Maintenance,Advanced Water Treatment (UK) Ltd,21006574,750.00
Borough Council of Kings Lynn and West Norfolk,E07000146,06/05/2021,Financial Services,Agency Staff,Hays Specialist Recruitment,21006711,"1,180.00"
Borough Council of Kings Lynn and West Norfolk,E07000146,06/05/2021,Town Hall Kings Lynn,Repairs & Maintenance,Robert Fox,21006737,224.00
Borough Council of Kings Lynn and West Norfolk,E07000146,06/05/2021,Town Hall Kings Lynn,Repairs & Maintenance,Robert Fox,21006737,876.00
Borough Council of Kings Lynn and West Norfolk,E07000146,06/05/2021,Flitcham Workshops,Repairs & Maintenance,AMR Mechanical Services Ltd,21006686,736.80
Borough Council of Kings Lynn and West Norfolk,E07000146,06/05/2021,Projections,Repairs & Maintenance,AV Parts Master Ltd,21006255,"3,392.99"
Borough Council of Kings Lynn and West Norfolk,E07000146,06/05/2021,Resort Seafront,Professional Fees,MED PTS Ambulance Services,21006720,"2,475.00"
Borough Council of Kings Lynn and West Norfolk,E07000146,06/05/2021,KL Innovation Centre,Repairs & Maintenance,Core Technology Projects Ltd,21006738,"4,788.57"
Borough Council of Kings Lynn and West Norfolk,E07000146,06/05/2021,Home Improvements Agency,Agency Staff,Seven Resourcing Ltd,21006586,"1,132.05"
Borough Council of Kings Lynn and West Norfolk,E07000146,06/05/2021,Resort Trading Operations,Repairs & Maintenance,Penty Contractors Ltd,21006690,500.00
Borough Council of Kings Lynn and West Norfolk,E07000146,10/05/2021,NEWS Depot,Contract Cleaning,Marathon Services Ltd,22004746,"1,525.00"
Borough Council of Kings Lynn and West Norfolk,E07000146,10/05/2021,Head of Legal Services,External Legal fees,North Norfolk District Council,22004747,"2,407.00"
Borough Council of Kings Lynn and West Norfolk,E07000146,10/05/2021,Head of Legal Services,External Legal fees,North Norfolk District Council,22004747,300.00
Borough Council of Kings Lynn and West Norfolk,E07000146,10/05/2021,Parkway - Gaywood,Professional Fees,North Norfolk District Council,21006780,"4,900.00"
Borough Council of Kings Lynn and West Norfolk,E07000146,10/05/2021,Grounds,Materials,Rigby Taylor Ltd,22004761,"1,358.00"
Borough Council of Kings Lynn and West Norfolk,E07000146,10/05/2021,Supplier Holding Account,Vehicle - repairs & Maint,Paul Johnson Motor Services Ltd,22004760,297.23
Borough Council of Kings Lynn and West Norfolk,E07000146,10/05/2021,Supplier Holding Account,Vehicle - repairs & Maint,Paul Johnson Motor Services Ltd,22004760,"9,787.38"
Borough Council of Kings Lynn and West Norfolk,E07000146,10/05/2021,Major Housing Management,Professional Fees,G C Baxter & Associates Ltd,21006771,"2,240.00"
Borough Council of Kings Lynn and West Norfolk,E07000146,10/05/2021,Waste Procurement Costs,Project Costs,Breckland Council,21006789,"18,560.67"
Borough Council of Kings Lynn and West Norfolk,E07000146,10/05/2021,Printing & Graphics,Materials,Antalis Ltd,21006295,525.65
Borough Council of Kings Lynn and West Norfolk,E07000146,10/05/2021,Supplier Holding Account,Vehicle - repairs & Maint,North Street Tyres,22004759,"1,353.10"
Borough Council of Kings Lynn and West Norfolk,E07000146,10/05/2021,Trade Refuse,Added Years Pension,Norfolk Pension Fund,21006830,"-2,932.75"
Borough Council of Kings Lynn and West Norfolk,E07000146,10/05/2021,Domestic Refuse,Added Years Pension,Norfolk Pension Fund,21006830,716.66
Borough Council of Kings Lynn and West Norfolk,E07000146,10/05/2021,Corporate,Added Years Pension,Norfolk Pension Fund,21006830,"20,463.18"
Borough Council of Kings Lynn and West Norfolk,E07000146,10/05/2021,Lease Cars,Leasing,Commercial Services Trading Ltd,22004757,"2,938.96"
Borough Council of Kings Lynn and West Norfolk,E07000146,10/05/2021,Lease Cars,Leasing,Commercial Services Trading Ltd,22004757,"2,557.06"
Borough Council of Kings Lynn and West Norfolk,E07000146,10/05/2021,ICT,Computer Software Maint,ESRI (UK) Ltd,21006326,"16,968.00"
Borough Council of Kings Lynn and West Norfolk,E07000146,10/05/2021,Personnel Services,Bedford Payroll Fees,Bedford Borough Council,21006788,"4,388.00"
Borough Council of Kings Lynn and West Norfolk,E07000146,10/05/2021,County Council Elections,Stationery & Office,Civica Election Services Ltd,22004616,"2,923.84"
Borough Council of Kings Lynn and West Norfolk,E07000146,10/05/2021,County Council Elections,Postages,Civica Election Services Ltd,22004616,"37,190.21"
Borough Council of Kings Lynn and West Norfolk,E07000146,10/05/2021,Mintlyn Crematorium,Repairs & Maintenance,AMR Electrical Services Ltd,21006636,588.24
Borough Council of Kings Lynn and West Norfolk,E07000146,10/05/2021,Financial Services,Agency Staff,Hays Specialist Recruitment,21006773,"1,180.00"
Borough Council of Kings Lynn and West Norfolk,E07000146,10/05/2021,Financial Services,Agency Staff,Hays Specialist Recruitment,21006383,"1,180.00"
Borough Council of Kings Lynn and West Norfolk,E07000146,10/05/2021,Discretionary Adaptation Assistance,Works,Chas D Allflatt Ltd,22004756,"4,658.00"
Borough Council of Kings Lynn and West Norfolk,E07000146,10/05/2021,Willows Park & Nature Rsv,Repairs & Maintenance,CGM Group (East Anglia) Ltd,21006736,435.63
Borough Council of Kings Lynn and West Norfolk,E07000146,10/05/2021,Network Hardware holding,Repairs & Maintenance,E Akers,21006806,770.00
Borough Council of Kings Lynn and West Norfolk,E07000146,10/05/2021,Parking Operations - Brgh,Tools And Equipment,E Akers,21006807,880.00
Borough Council of Kings Lynn and West Norfolk,E07000146,10/05/2021,Supplier Holding Account,Vehicle - repairs & Maint,Lawn Boy (Farm Services),22004758,"1,291.56"
Borough Council of Kings Lynn and West Norfolk,E07000146,10/05/2021,Public Cleansing,Fuel,UK Fuels Ltd,22004749,393.90
Borough Council of Kings Lynn and West Norfolk,E07000146,10/05/2021,GM Southern Area & Lynnsport,Fuel,UK Fuels Ltd,22004749,64.61
Borough Council of Kings Lynn and West Norfolk,E07000146,10/05/2021,Grounds,Fuel,UK Fuels Ltd,22004749,"1,021.08"
Borough Council of Kings Lynn and West Norfolk,E07000146,10/05/2021,Parking Operations - Brgh,Tools And Equipment,Mobius Networks Ltd,21006826,633.30
Borough Council of Kings Lynn and West Norfolk,E07000146,10/05/2021,Street Lighting,Repairs & Maintenance,Westcotec Ltd,21006314,966.08
Borough Council of Kings Lynn and West Norfolk,E07000146,10/05/2021,Bus Shelters,Repairs & Maintenance,Westcotec Ltd,21006315,"1,188.05"
Borough Council of Kings Lynn and West Norfolk,E07000146,10/05/2021,General Property,Covid 19,AMR Mechanical Services Ltd,21006688,454.45
Borough Council of Kings Lynn and West Norfolk,E07000146,10/05/2021,ICT,Communications,Go Communications System Ltd,21006382,553.00
Borough Council of Kings Lynn and West Norfolk,E07000146,10/05/2021,ICT,Computer Software Maint,Network Utilities (Systems) Ltd,21006779,"2,600.64"
Borough Council of Kings Lynn and West Norfolk,E07000146,10/05/2021,Lynnsport 1,Contractor Works,Lovell Partnerships Ltd,21006761,"20,619.36"
Borough Council of Kings Lynn and West Norfolk,E07000146,10/05/2021,Hunstanton Southend Road,Contractor Works,Lovell Partnerships Ltd,21006762,"12,763.60"
Borough Council of Kings Lynn and West Norfolk,E07000146,10/05/2021,Salters Road,Contractor Works,Lovell Partnerships Ltd,21006763,"19,788.06"
Borough Council of Kings Lynn and West Norfolk,E07000146,10/05/2021,NORA Phase 4,Contractor Works,Lovell Partnerships Ltd,21006764,"406,540.99"
Borough Council of Kings Lynn and West Norfolk,E07000146,10/05/2021,Parkway - Gaywood,Contractor Works,Lovell Partnerships Ltd,21006765,"65,784.96"
Borough Council of Kings Lynn and West Norfolk,E07000146,10/05/2021,Lynnsport 3,Contractor Works,Lovell Partnerships Ltd,21006767,"30,383.50"
Borough Council of Kings Lynn and West Norfolk,E07000146,10/05/2021,Careline,Tools And Equipment,AMR Fire and Security Limited,21006849,839.32
Borough Council of Kings Lynn and West Norfolk,E07000146,10/05/2021,Careline,Tools And Equipment,AMR Fire and Security Limited,21006850,496.08
Borough Council of Kings Lynn and West Norfolk,E07000146,10/05/2021,Careline,Tools And Equipment,AMR Fire and Security Limited,21006851,648.72
Borough Council of Kings Lynn and West Norfolk,E07000146,10/05/2021,Lease Cars,Leasing,Commercial Services Kent Ltd,22004626,"3,121.94"
Borough Council of Kings Lynn and West Norfolk,E07000146,10/05/2021,Lease Cars,Leasing,Commercial Services Kent Ltd,22004626,"2,349.86"
Borough Council of Kings Lynn and West Norfolk,E07000146,10/05/2021,NORA Phase 3,Works,Bowie Construction Ltd,21006482,"7,248.22"
Borough Council of Kings Lynn and West Norfolk,E07000146,10/05/2021,Utility Holding,Electricity,British Gas,22004754,"6,405.22"
Borough Council of Kings Lynn and West Norfolk,E07000146,10/05/2021,Planning Control,Professional Fees,Tetra Tech Environmental Planning Transport Ltd,21006408,"2,750.00"
Borough Council of Kings Lynn and West Norfolk,E07000146,10/05/2021,NEWS Depot,Repairs & Maintenance,Carter Haulage & Storage (NFK) Ltd,21006733,450.00
Borough Council of Kings Lynn and West Norfolk,E07000146,13/05/2021,Financial Services,Agency Staff,Hays Specialist Recruitment,21006861,"1,032.50"
Borough Council of Kings Lynn and West Norfolk,E07000146,13/05/2021,Reopening High Street,Equipment/Materials,East Coast Signs Ltd,21006816,985.00
Borough Council of Kings Lynn and West Norfolk,E07000146,13/05/2021,Hunstanton Bus Station & NCC Library,Contractor Works,Lovell Partnerships Ltd,21006766,"101,203.27"
Borough Council of Kings Lynn and West Norfolk,E07000146,13/05/2021,Careline,Tools And Equipment,AMR Fire and Security Limited,21006874,"1,454.93"
Borough Council of Kings Lynn and West Norfolk,E07000146,13/05/2021,ICT,Computer Hardware Maint,Avanite Ltd,21006347,"2,304.00"
Borough Council of Kings Lynn and West Norfolk,E07000146,13/05/2021,Home Improvements Agency,Agency Staff,Seven Resourcing Ltd,21006568,"1,409.55"
Borough Council of Kings Lynn and West Norfolk,E07000146,13/05/2021,Home Improvements Agency,Agency Staff,Seven Resourcing Ltd,21006569,"1,077.80"
Borough Council of Kings Lynn and West Norfolk,E07000146,13/05/2021,Balance Sheet,Rechargable Works Enforcement,Carter Accommodation Ltd,22004794,702.88
Borough Council of Kings Lynn and West Norfolk,E07000146,13/05/2021,Arts Initatives,Project Costs,Collusion Cambridge Ltd,21006882,"11,625.00"
Borough Council of Kings Lynn and West Norfolk,E07000146,13/05/2021,Financial Services,IT Developments/Enhance,Unit 4 Business Software Ltd,21006871,"42,101.20"
Borough Council of Kings Lynn and West Norfolk,E07000146,13/05/2021,Financial Services,Recruitment,TMP (UK) Ltd,22004661,"6,075.60"
Borough Council of Kings Lynn and West Norfolk,E07000146,13/05/2021,Planning Policy - Dept,Recruitment,TMP (UK) Ltd,22004665,"1,235.20"
Borough Council of Kings Lynn and West Norfolk,E07000146,13/05/2021,Food Hygiene/H&S Sals/Sup,Agency Staff,G2 Recruitment Ltd,21006380,"1,021.01"
Borough Council of Kings Lynn and West Norfolk,E07000146,13/05/2021,Food Hygiene/H&S Sals/Sup,Agency Staff,G2 Recruitment Ltd,21006381,"1,369.80"
Borough Council of Kings Lynn and West Norfolk,E07000146,13/05/2021,Factory 1 Refurb,Works,WN Surfacing,21006810,"2,500.00"
Borough Council of Kings Lynn and West Norfolk,E07000146,13/05/2021,County Council Elections,Stationery & Office,Lyreco UK Ltd,21006848,"4,811.48"
Borough Council of Kings Lynn and West Norfolk,E07000146,13/05/2021,Public conveniences,Sewerage/Cesspool Empty,BACO-Compak (Norfolk) Ltd,22004793,"1,075.00"
Borough Council of Kings Lynn and West Norfolk,E07000146,13/05/2021,Housing Options Programme,Computer Equipment,Dell Corporation Ltd,21006707,520.90
Borough Council of Kings Lynn and West Norfolk,E07000146,13/05/2021,Parking Operations - Brgh,Repairs & Maintenance,E Akers,21006757,633.00
Borough Council of Kings Lynn and West Norfolk,E07000146,13/05/2021,Corporate,Audit Fee,Ernst & Young,21006893,"39,494.00"
Borough Council of Kings Lynn and West Norfolk,E07000146,13/05/2021,County Council Elections,Stationery & Office,ESPO,21006604,611.50
Borough Council of Kings Lynn and West Norfolk,E07000146,13/05/2021,County Council Elections,Stationery & Office,ESPO,21006604,6.00
Borough Council of Kings Lynn and West Norfolk,E07000146,13/05/2021,Public conveniences,Tools And Equipment,UKPS Ltd -Plumbase,22004753,"1,790.00"
Borough Council of Kings Lynn and West Norfolk,E07000146,13/05/2021,Parkway - Gaywood,Works,Mott MacDonald Limited,21006907,"2,131.17"
Borough Council of Kings Lynn and West Norfolk,E07000146,13/05/2021,Corporate,Initiatives,Norfolk County Council,21006181,"7,312.50"
Borough Council of Kings Lynn and West Norfolk,E07000146,13/05/2021,Head of Legal Services,External Legal fees,North Norfolk District Council,22004806,500.00
Borough Council of Kings Lynn and West Norfolk,E07000146,13/05/2021,Head of Legal Services,External Legal fees,North Norfolk District Council,22004807,900.00
Borough Council of Kings Lynn and West Norfolk,E07000146,13/05/2021,Head of Legal Services,External Legal fees,North Norfolk District Council,22004807,226.00
Borough Council of Kings Lynn and West Norfolk,E07000146,13/05/2021,Head of Legal Services,External Legal fees,North Norfolk District Council,22004808,650.00
Borough Council of Kings Lynn and West Norfolk,E07000146,13/05/2021,Head of Legal Services,External Legal fees,North Norfolk District Council,22004810,"9,328.00"
Borough Council of Kings Lynn and West Norfolk,E07000146,13/05/2021,Head of Legal Services,External Legal fees,North Norfolk District Council,22004811,500.00
Borough Council of Kings Lynn and West Norfolk,E07000146,13/05/2021,Head of Legal Services,External Legal fees,North Norfolk District Council,22004812,"15,000.00"
Borough Council of Kings Lynn and West Norfolk,E07000146,13/05/2021,Head of Legal Services,External Legal fees,North Norfolk District Council,22004813,"4,305.00"
Borough Council of Kings Lynn and West Norfolk,E07000146,13/05/2021,Head of Legal Services,External Legal fees,North Norfolk District Council,22004814,"5,740.00"
Borough Council of Kings Lynn and West Norfolk,E07000146,13/05/2021,Head of Legal Services,External Legal fees,North Norfolk District Council,22004815,"13,896.00"
Borough Council of Kings Lynn and West Norfolk,E07000146,13/05/2021,Police Crime Commissioner Elections,Postages,Royal Mail Group Ltd,22004778,"2,309.50"
Borough Council of Kings Lynn and West Norfolk,E07000146,13/05/2021,NORA Remediation,Remediation,UK Power Networks (Operations ) Ltd,22004789,"15,819.47"
Borough Council of Kings Lynn and West Norfolk,E07000146,13/05/2021,Printing & Graphics,Materials,Antalis Ltd,21006470,419.04
Borough Council of Kings Lynn and West Norfolk,E07000146,13/05/2021,Performance Review & Efficiency,Covid 19,Norfolk Chamber Of Commerce & Industry,21006055,"1,000.00"
Borough Council of Kings Lynn and West Norfolk,E07000146,13/05/2021,Recycling Composting,Waste Processing Cost,Greenworld Sales Ltd t/a Greenworld,21006860,"26,521.10"
Borough Council of Kings Lynn and West Norfolk,E07000146,13/05/2021,Grounds,Vehicle - repairs & Maint,Ernest Doe & Sons Ltd,22004768,"2,660.08"
Borough Council of Kings Lynn and West Norfolk,E07000146,13/05/2021,Grounds,Vehicle - repairs & Maint,Ernest Doe & Sons Ltd,22004774,418.64
Borough Council of Kings Lynn and West Norfolk,E07000146,13/05/2021,Trafalgar (DM)  Industrial Estate,Repairs & Maintenance,Enhance,21006760,150.00
Borough Council of Kings Lynn and West Norfolk,E07000146,13/05/2021,Trafalgar (DM)  Industrial Estate,Repairs & Maintenance,Enhance,21006760,344.77
Borough Council of Kings Lynn and West Norfolk,E07000146,13/05/2021,General Property,Covid 19,1-2 Call Drainage & Groundwork Ltd,21006852,840.00
Borough Council of Kings Lynn and West Norfolk,E07000146,13/05/2021,Walks Car Park Resurf and P&D,Works,1-2 Call Drainage & Groundwork Ltd,21006853,650.00
Borough Council of Kings Lynn and West Norfolk,E07000146,13/05/2021,ICT,Communications,Adept Technology Group Plc,21006425,"2,870.40"
Borough Council of Kings Lynn and West Norfolk,E07000146,13/05/2021,CCTV,Repairs & Maintenance,Adept Technology Group Plc,21006425,350.00
Borough Council of Kings Lynn and West Norfolk,E07000146,13/05/2021,Corporate,Stationery & Office,Adept Technology Group Plc,21006425,931.92
Borough Council of Kings Lynn and West Norfolk,E07000146,13/05/2021,ICT,Recoverable Fees,Adept Technology Group Plc,21006425,186.17
Borough Council of Kings Lynn and West Norfolk,E07000146,13/05/2021,Balance Sheet,Rechargeable Works Insurance,Adept Technology Group Plc,21006425,197.58
Borough Council of Kings Lynn and West Norfolk,E07000146,13/05/2021,ICT,Telephones,Adept Technology Group Plc,21006426,"5,290.29"
Borough Council of Kings Lynn and West Norfolk,E07000146,13/05/2021,Vehicle Recharge on account,Fuel,Worldline IT Services UK Re Fuelgenie,22004821,"11,409.42"
Borough Council of Kings Lynn and West Norfolk,E07000146,13/05/2021,Vehicle Recharge on account,Fuel,Worldline IT Services UK Re Fuelgenie,22004821,1.10
Borough Council of Kings Lynn and West Norfolk,E07000146,13/05/2021,Procurement,Professional Fees,Longhurst Group,21006905,"4,000.00"
Borough Council of Kings Lynn and West Norfolk,E07000146,13/05/2021,Extra planning Income - 20%,Agency Staff,Carrington West Limited,21006660,"1,260.00"
Borough Council of Kings Lynn and West Norfolk,E07000146,13/05/2021,Housing Options Programme,Homeless Prevention Fund,Ashton Roberts Ltd,22004781,969.00
Borough Council of Kings Lynn and West Norfolk,E07000146,13/05/2021,Mintlyn Crematorium,Tools And Equipment,Teleshore UK Ltd t/a Gemini CCS Ltd,21006407,685.00
Borough Council of Kings Lynn and West Norfolk,E07000146,17/05/2021,Discover KL Distribution,Marketing / Tourism,Clanpress (Kings Lynn) Ltd,21006892,624.00
Borough Council of Kings Lynn and West Norfolk,E07000146,17/05/2021,Parkway - Gaywood,Works,Mott MacDonald Limited,21006908,"5,982.63"
Borough Council of Kings Lynn and West Norfolk,E07000146,17/05/2021,Equal Opportunities,Translation Costs,Norfolk County Council,21006865,"2,325.00"
Borough Council of Kings Lynn and West Norfolk,E07000146,17/05/2021,Local Land Charges,Agency,Norfolk County Council,22004852,"7,826.02"
Borough Council of Kings Lynn and West Norfolk,E07000146,17/05/2021,Planning Control,Professional Fees,North Norfolk District Council,21006866,840.00
Borough Council of Kings Lynn and West Norfolk,E07000146,17/05/2021,Planning Control,Professional Fees,North Norfolk District Council,21006866,280.00
Borough Council of Kings Lynn and West Norfolk,E07000146,17/05/2021,Police Crime Commissioner Elections,Postages,Royal Mail Group Ltd,22004828,"4,083.94"
Borough Council of Kings Lynn and West Norfolk,E07000146,17/05/2021,Factory 1 Refurb,Equipment/Materials,HFX Limited,21006439,950.00
Borough Council of Kings Lynn and West Norfolk,E07000146,17/05/2021,Personnel Services,Repairs & Maintenance,HFX Limited,21006439,"3,126.00"
Borough Council of Kings Lynn and West Norfolk,E07000146,17/05/2021,County Council Elections,Hired Equipment,Rudd Marquees Ltd,22004827,651.04
Borough Council of Kings Lynn and West Norfolk,E07000146,17/05/2021,Valentine Road Hunstanton,Repairs & Maintenance,Jensen Security Systems Ltd,21006927,645.00
Borough Council of Kings Lynn and West Norfolk,E07000146,17/05/2021,Kings Court Service Charges,Repairs & Maintenance,JD Cooling Systems Ltd,21006945,"2,984.03"
Borough Council of Kings Lynn and West Norfolk,E07000146,17/05/2021,ICT,Computer Software Maint,Civica UK Ltd,21006486,"10,684.52"
Borough Council of Kings Lynn and West Norfolk,E07000146,17/05/2021,Custom House & Tics,Repairs & Maintenance,J Redpath Buchanan & Co Ltd,21006433,995.00
Borough Council of Kings Lynn and West Norfolk,E07000146,17/05/2021,Regis Place Unit1-Non Inv Care,Repairs & Maintenance,J Redpath Buchanan & Co Ltd,21006434,480.00
Borough Council of Kings Lynn and West Norfolk,E07000146,17/05/2021,Dog Warden and Services,Contracted Services,Dogotel Kennels & Cattery,22004837,600.00
Borough Council of Kings Lynn and West Norfolk,E07000146,17/05/2021,Dog Warden and Services,Kennel Fees,Dogotel Kennels & Cattery,22004837,30.00
Borough Council of Kings Lynn and West Norfolk,E07000146,17/05/2021,Dog Warden and Services,Kennel Fees,Dogotel Kennels & Cattery,22004837,56.00
Borough Council of Kings Lynn and West Norfolk,E07000146,17/05/2021,Dog Warden and Services,Contracted Services,Dogotel Kennels & Cattery,22004837,170.00
Borough Council of Kings Lynn and West Norfolk,E07000146,17/05/2021,Dog Warden and Services,Kennel Fees Recd - Extl,Dogotel Kennels & Cattery,22004837,-70.50
Borough Council of Kings Lynn and West Norfolk,E07000146,17/05/2021,Balance Sheet,VAT Input - VAT Only Purchases,Newlyn PLC,22004854,"2,592.65"
Borough Council of Kings Lynn and West Norfolk,E07000146,17/05/2021,Balance Sheet,VAT Input - VAT Only Purchases,Newlyn PLC,22004855,762.26
Borough Council of Kings Lynn and West Norfolk,E07000146,17/05/2021,Balance Sheet,VAT Input - VAT Only Purchases,Marston Group Ltd,22004846,"2,169.34"
Borough Council of Kings Lynn and West Norfolk,E07000146,17/05/2021,Parks & Open Spaces,Tree Surgery,Golden Tree Surgeons Ltd,21006946,"4,270.00"
Borough Council of Kings Lynn and West Norfolk,E07000146,17/05/2021,Cashless Pk JG (Bk on St),Transaction Fee,Chipside Ltd,21006952,2.00
Borough Council of Kings Lynn and West Norfolk,E07000146,17/05/2021,Cashless Pk JE(NN on St),Transaction Fee,Chipside Ltd,21006952,99.00
Borough Council of Kings Lynn and West Norfolk,E07000146,17/05/2021,Cashless Park KR (KLWN on ST),Transaction Fee,Chipside Ltd,21006952,230.75
Borough Council of Kings Lynn and West Norfolk,E07000146,17/05/2021,Cashless Pk JI(GYon St),Transaction Fee,Chipside Ltd,21006952,276.17
Borough Council of Kings Lynn and West Norfolk,E07000146,17/05/2021,Cashless Pk YT(GY off St),Transaction Fee,Chipside Ltd,21006952,406.75
Borough Council of Kings Lynn and West Norfolk,E07000146,17/05/2021,Cashless Pk JF(NN on St),Transaction Fee,Chipside Ltd,21006952,626.08
Borough Council of Kings Lynn and West Norfolk,E07000146,17/05/2021,Cashless Park KZ (KLWN off ST),Transaction Fee,Chipside Ltd,21006952,"2,391.58"
Borough Council of Kings Lynn and West Norfolk,E07000146,17/05/2021,Cashless Pk JG (Bk on St),Merchant Fees,Chipside Ltd,21006953,0.32
Borough Council of Kings Lynn and West Norfolk,E07000146,17/05/2021,Cashless Pk JE(NN on St),Merchant Fees,Chipside Ltd,21006953,10.49
Borough Council of Kings Lynn and West Norfolk,E07000146,17/05/2021,Cashless Park KR (KLWN on ST),Merchant Fees,Chipside Ltd,21006953,47.27
Borough Council of Kings Lynn and West Norfolk,E07000146,17/05/2021,Cashless Pk JI(GYon St),Merchant Fees,Chipside Ltd,21006953,122.30
Borough Council of Kings Lynn and West Norfolk,E07000146,17/05/2021,Cashless Pk YT(GY off St),Merchant Fees,Chipside Ltd,21006953,205.84
Borough Council of Kings Lynn and West Norfolk,E07000146,17/05/2021,Cashless Pk JF(NN on St),Merchant Fees,Chipside Ltd,21006953,243.86
Borough Council of Kings Lynn and West Norfolk,E07000146,17/05/2021,Cashless Park KZ (KLWN off ST),Merchant Fees,Chipside Ltd,21006953,993.86
Borough Council of Kings Lynn and West Norfolk,E07000146,17/05/2021,Lease Cars,Leasing,Commercial Services Kent Ltd,22004840,"2,612.60"
Borough Council of Kings Lynn and West Norfolk,E07000146,17/05/2021,Lease Cars,Leasing,Commercial Services Kent Ltd,22004840,"2,223.07"
Borough Council of Kings Lynn and West Norfolk,E07000146,17/05/2021,KL Innovation Centre,Repairs & Maintenance,Lantei Limited,21006533,"1,620.00"
Borough Council of Kings Lynn and West Norfolk,E07000146,17/05/2021,Development Control,Planning Fees,Portal / Planquest Ltd,22004862,"49,079.00"
Borough Council of Kings Lynn and West Norfolk,E07000146,17/05/2021,Crematorium Trading Account,Memorial Plates,Anglia Sign Casting Ltd,21006469,"1,516.25"
Borough Council of Kings Lynn and West Norfolk,E07000146,17/05/2021,Crematorium Trading Account,Renewal Plates - Exp,Anglia Sign Casting Ltd,21006469,135.00
Borough Council of Kings Lynn and West Norfolk,E07000146,17/05/2021,ICT,Communications,Claranet Ltd,21006940,"1,282.72"
Borough Council of Kings Lynn and West Norfolk,E07000146,17/05/2021,Town Hall Kings Lynn,Broadband Charge,Claranet Ltd,21006940,66.29
Borough Council of Kings Lynn and West Norfolk,E07000146,17/05/2021,Benefit Administration,Broadband Charge,Claranet Ltd,21006940,276.42
Borough Council of Kings Lynn and West Norfolk,E07000146,17/05/2021,South Lynn Community Centre,Broadband Charge,Claranet Ltd,21006940,92.48
Borough Council of Kings Lynn and West Norfolk,E07000146,17/05/2021,ICT,Broadband Charge,Claranet Ltd,21006940,46.24
Borough Council of Kings Lynn and West Norfolk,E07000146,17/05/2021,NNDC Carpark Operation,Broadband Charge,Claranet Ltd,21006940,135.58
Borough Council of Kings Lynn and West Norfolk,E07000146,17/05/2021,Street Sweeping,Animal Removal,Peaceful Pets Ltd,22004858,780.00
Borough Council of Kings Lynn and West Norfolk,E07000146,17/05/2021,Street Sweeping,Animal Removal,Peaceful Pets Ltd,22004859,680.00
Borough Council of Kings Lynn and West Norfolk,E07000146,17/05/2021,Nursery,Materials,Rudy Raes Bloemzaden N.V.,22004848,"7,603.98"
Borough Council of Kings Lynn and West Norfolk,E07000146,17/05/2021,County Council Elections,Vehicle & Plant Hire,P Harvey,22004829,"3,650.00"
Borough Council of Kings Lynn and West Norfolk,E07000146,20/05/2021,Financial Services,Postages,Royal Mail Group Ltd,22004885,478.63
Borough Council of Kings Lynn and West Norfolk,E07000146,20/05/2021,Benefit Administration,Postages,Royal Mail Group Ltd,22004885,490.86
Borough Council of Kings Lynn and West Norfolk,E07000146,20/05/2021,Cost of Collection - CTax,Postages,Royal Mail Group Ltd,22004885,474.42
Borough Council of Kings Lynn and West Norfolk,E07000146,20/05/2021,Kings Lynn Bid,Postages,Royal Mail Group Ltd,22004885,20.45
Borough Council of Kings Lynn and West Norfolk,E07000146,20/05/2021,Benefit Administration,Postages,Royal Mail Group Ltd,22004885,119.62
Borough Council of Kings Lynn and West Norfolk,E07000146,20/05/2021,Cost of Collection - CTax,Postages,Royal Mail Group Ltd,22004885,132.78
Borough Council of Kings Lynn and West Norfolk,E07000146,20/05/2021,Careline,Postages,Royal Mail Group Ltd,22004886,"1,059.29"
Borough Council of Kings Lynn and West Norfolk,E07000146,20/05/2021,Postage Services K Court,Postages,Royal Mail Group Ltd,22004893,"1,071.90"
Borough Council of Kings Lynn and West Norfolk,E07000146,20/05/2021,Register of Electors,Stationery & Office,Shaw and Sons Ltd,21006745,"1,397.50"
Borough Council of Kings Lynn and West Norfolk,E07000146,20/05/2021,Grounds,Vehicle - repairs & Maint,Thurlow Nunn Standen Ltd,22004748,908.84
Borough Council of Kings Lynn and West Norfolk,E07000146,20/05/2021,Rough Sleeper Initiative Y3,Consultants Fees,The Purfleet Trust,21007033,"17,067.50"
Borough Council of Kings Lynn and West Norfolk,E07000146,20/05/2021,Safety and Welfare,Staff Welfare,Cavell & Lind Ltd,21006991,537.00
Borough Council of Kings Lynn and West Norfolk,E07000146,20/05/2021,Development and Estates Capital Receipts,Disposal Costs Permissions & Consultancy,David Trundley Design Services Ltd,21006990,500.00
Borough Council of Kings Lynn and West Norfolk,E07000146,20/05/2021,Home Improvements Agency,Agency,David Trundley Design Services Ltd,22004877,682.50
Borough Council of Kings Lynn and West Norfolk,E07000146,20/05/2021,Improving Attainment,Small Projects,EMAT T/A Upwell Academy,22004878,"1,000.00"
Borough Council of Kings Lynn and West Norfolk,E07000146,20/05/2021,ICT,Covid 19,Bechtle Direct Ltd,21006550,"1,008.40"
Borough Council of Kings Lynn and West Norfolk,E07000146,20/05/2021,Property Services,Staff Professional Fees,RICS,22004883,539.00
Borough Council of Kings Lynn and West Norfolk,E07000146,20/05/2021,St Johns Business Park,Repairs & Maintenance,AMR Electrical Services Ltd,21006974,"2,132.00"
Borough Council of Kings Lynn and West Norfolk,E07000146,20/05/2021,Recycling Composting,Waste Processing Cost,Greenworld Sales Ltd t/a Greenworld,22004879,519.35
Borough Council of Kings Lynn and West Norfolk,E07000146,20/05/2021,ICT,Computer Software Maint,Evolution Security Systems (UK) Ltd,21006642,"2,700.00"
Borough Council of Kings Lynn and West Norfolk,E07000146,20/05/2021,Subscriptions,Membership & Subscription,District Councils Network,21006578,"2,284.00"
Borough Council of Kings Lynn and West Norfolk,E07000146,20/05/2021,General Property,Advertising & Marketing,Rightmove Group Ltd,21006566,570.00
Borough Council of Kings Lynn and West Norfolk,E07000146,20/05/2021,Homechoice,Computer Software Maint,Home Connections Lettings Ltd,21006608,"6,122.00"
Borough Council of Kings Lynn and West Norfolk,E07000146,20/05/2021,Home Improvements Agency,Agency Staff,Seven Resourcing Ltd,21006869,"1,081.00"
Borough Council of Kings Lynn and West Norfolk,E07000146,20/05/2021,Home Improvements Agency,Agency Staff,Seven Resourcing Ltd,21006870,"1,432.69"
Borough Council of Kings Lynn and West Norfolk,E07000146,20/05/2021,Parkway - Gaywood,Works,Network Rail Infrastructure Ltd,21006564,"3,474.13"
Borough Council of Kings Lynn and West Norfolk,E07000146,20/05/2021,Network Hardware holding,Repairs & Maintenance,Quality Essential Distribution Ltd,21006620,"15,663.36"
Borough Council of Kings Lynn and West Norfolk,E07000146,20/05/2021,CCTV,Repairs & Maintenance,Quality Essential Distribution Ltd,21006621,"6,876.32"
Borough Council of Kings Lynn and West Norfolk,E07000146,20/05/2021,Rough Sleeper Fund,Covid 19,Excaliber Security Services Ltd,21007011,"8,640.00"
Borough Council of Kings Lynn and West Norfolk,E07000146,20/05/2021,Rough Sleeper Fund,Covid 19,Excaliber Security Services Ltd,21007012,"7,660.80"
Borough Council of Kings Lynn and West Norfolk,E07000146,20/05/2021,Rough Sleeper Fund,Covid 19,Excaliber Security Services Ltd,21007013,"5,836.80"
Borough Council of Kings Lynn and West Norfolk,E07000146,20/05/2021,Rough Sleeper Fund,Covid 19,Excaliber Security Services Ltd,21007015,"5,593.60"
Borough Council of Kings Lynn and West Norfolk,E07000146,20/05/2021,Factory 1 Refurb,Equipment/Materials,Redroc Group Ltd t/a JC Electrical,22004874,"3,875.12"
Borough Council of Kings Lynn and West Norfolk,E07000146,20/05/2021,Factory 1 Refurb,Works,Redroc Group Ltd t/a JC Electrical,22004875,"2,554.00"
Borough Council of Kings Lynn and West Norfolk,E07000146,20/05/2021,West Winch Growth Area,Professional Fees,Brecher LLP,21006972,"6,272.00"
Borough Council of Kings Lynn and West Norfolk,E07000146,20/05/2021,Food Hygiene/H&S Sals/Sup,Agency Staff,G2 Recruitment Ltd,21006532,"1,481.40"
Borough Council of Kings Lynn and West Norfolk,E07000146,20/05/2021,Rough Sleeper Fund,Covid 19,Excaliber Security Services Ltd,21007010,"7,660.80"
Borough Council of Kings Lynn and West Norfolk,E07000146,20/05/2021,Air Quality,Repairs & Maintenance,Matts Monitors Ltd,21006585,"1,500.00"
Borough Council of Kings Lynn and West Norfolk,E07000146,20/05/2021,Extra planning Income - 20%,Agency Staff,Carrington West Limited,21006661,840.00
Borough Council of Kings Lynn and West Norfolk,E07000146,20/05/2021,Food Hygiene/H&S Sals/Sup,Agency Staff,G2 Recruitment Ltd,21006531,"1,319.23"
Borough Council of Kings Lynn and West Norfolk,E07000146,20/05/2021,Rough Sleeper Fund,Covid 19,BACO-Compak (Norfolk) Ltd,21006973,860.00
Borough Council of Kings Lynn and West Norfolk,E07000146,20/05/2021,ICT,Broadband Charge,British Telecommunications PLC,21006979,"1,095.02"
Borough Council of Kings Lynn and West Norfolk,E07000146,20/05/2021,ICT,Telephones,British Telecommunications PLC,21006981,523.64
Borough Council of Kings Lynn and West Norfolk,E07000146,20/05/2021,North Lynn Industrial Estate,Repairs & Maintenance,CGM Group (East Anglia) Ltd,21007000,28.35
Borough Council of Kings Lynn and West Norfolk,E07000146,20/05/2021,General Property,Repairs & Maintenance,CGM Group (East Anglia) Ltd,21007000,"1,419.32"
Borough Council of Kings Lynn and West Norfolk,E07000146,20/05/2021,Cashless Pk YT(GY off St),Agency,Great Yarmouth Borough Council,22004880,"20,992.60"
Borough Council of Kings Lynn and West Norfolk,E07000146,20/05/2021,Community Projects CRS,Service Level Agreements,Kings Lynn Festival Ltd,21007024,"25,890.00"
Borough Council of Kings Lynn and West Norfolk,E07000146,20/05/2021,Conservation & Heritage,Countryside Grants,Norfolk County Council,21007026,"3,510.00"
Borough Council of Kings Lynn and West Norfolk,E07000146,20/05/2021,Planning Control,Professional Fees,North Norfolk District Council,21006988,730.00
Borough Council of Kings Lynn and West Norfolk,E07000146,20/05/2021,Cashless Pk JF(NN on St),Agency,North Norfolk District Council,22004882,"24,579.50"
Borough Council of Kings Lynn and West Norfolk,E07000146,20/05/2021,Econ Dev. -  Operational,Recruitment,TMP (UK) Ltd,22004737,480.00
Borough Council of Kings Lynn and West Norfolk,E07000146,24/05/2021,Public conveniences,Sewerage/Cesspool Empty,BACO-Compak (Norfolk) Ltd,22004894,820.00
Borough Council of Kings Lynn and West Norfolk,E07000146,24/05/2021,Parkway - Gaywood,Works,Mott MacDonald Limited,21006778,"32,000.00"
Borough Council of Kings Lynn and West Norfolk,E07000146,24/05/2021,Lynnsport 1,Works,Mott MacDonald Limited,21006909,"4,900.00"
Borough Council of Kings Lynn and West Norfolk,E07000146,24/05/2021,Development and Estates Capital Receipts,Disposal Costs Physical Works,Norfolk County Council,21007063,"66,164.86"
Borough Council of Kings Lynn and West Norfolk,E07000146,24/05/2021,Food Hygiene General,Professional Fees,Norfolk County Council,21007078,799.10
Borough Council of Kings Lynn and West Norfolk,E07000146,24/05/2021,Network Hardware holding,Repairs & Maintenance,Mr Signs Ltd,21007080,854.20
Borough Council of Kings Lynn and West Norfolk,E07000146,24/05/2021,Cold Weather Funding,Protect Plus Costs,The Purfleet Trust,21007061,"17,500.00"
Borough Council of Kings Lynn and West Norfolk,E07000146,24/05/2021,Cold Weather Funding,Protect Plus Costs,The Purfleet Trust,21007062,500.00
Borough Council of Kings Lynn and West Norfolk,E07000146,24/05/2021,Training Holding Account,Training,James Button & Co Solicitors,21006713,925.00
Borough Council of Kings Lynn and West Norfolk,E07000146,24/05/2021,Factory 1 Refurb,Works,Redroc Group Ltd t/a JC Electrical,21007093,"3,302.92"
Borough Council of Kings Lynn and West Norfolk,E07000146,24/05/2021,Factory 1 Refurb,Works,Redroc Group Ltd t/a JC Electrical,21007094,"4,788.00"
Borough Council of Kings Lynn and West Norfolk,E07000146,24/05/2021,Smaller Housing Plots Dev,Professional Fees,RG & P Ltd,21007073,"8,000.00"
Borough Council of Kings Lynn and West Norfolk,E07000146,24/05/2021,Mintlyn Crematorium,Repairs & Maintenance,CGM Group (East Anglia) Ltd,21007001,455.00
Borough Council of Kings Lynn and West Norfolk,E07000146,24/05/2021,Port Health - Env Prtctn,Miscellaneous,Fenland District Council,21007053,729.00
Borough Council of Kings Lynn and West Norfolk,E07000146,24/05/2021,Public Cleansing,Veh/Plant Licences,Freight Transport Association Ltd,22004904,"1,100.00"
Borough Council of Kings Lynn and West Norfolk,E07000146,24/05/2021,Public Cleansing,Cleaning Material & Equip,V & J Knitwear Ltd,21006965,837.11
Borough Council of Kings Lynn and West Norfolk,E07000146,24/05/2021,Play Areas,Materials,TMA Bark Supplies Ltd,22004707,787.60
Borough Council of Kings Lynn and West Norfolk,E07000146,24/05/2021,County Council Elections,Room Hire,Kings Lynn Christian Fellowship,22004999,500.00
Borough Council of Kings Lynn and West Norfolk,E07000146,24/05/2021,ICT,Communications,Switchshop Ltd,21006920,"3,077.00"
Borough Council of Kings Lynn and West Norfolk,E07000146,24/05/2021,Cost of Collection - CTax,Professional Fees,Civica UK Ltd,21006600,"3,750.00"
Borough Council of Kings Lynn and West Norfolk,E07000146,24/05/2021,Street Sweeping,Fuel,RIX Petroleum (East Anglia) Ltd,21006653,"1,312.50"
Borough Council of Kings Lynn and West Norfolk,E07000146,24/05/2021,Financial Services,Agency Staff,Hays Specialist Recruitment,21007095,"1,770.00"
Borough Council of Kings Lynn and West Norfolk,E07000146,24/05/2021,Refuse & Recyc Mgmt,Computer Equipment,Whitespace Work Software  Ltd,21006657,"6,000.00"
Borough Council of Kings Lynn and West Norfolk,E07000146,24/05/2021,Refuse & Recyc Mgmt,Computer Equipment,Whitespace Work Software  Ltd,21006680,"5,000.00"
Borough Council of Kings Lynn and West Norfolk,E07000146,24/05/2021,North Lynn Industrial Estate,Repairs & Maintenance,AMR Fire and Security Limited,21006967,"1,945.00"
Borough Council of Kings Lynn and West Norfolk,E07000146,24/05/2021,North Lynn Industrial Estate,Repairs & Maintenance,AMR Fire and Security Limited,21006968,"1,945.00"
Borough Council of Kings Lynn and West Norfolk,E07000146,24/05/2021,North Lynn Industrial Estate,Repairs & Maintenance,AMR Fire and Security Limited,21006969,"1,885.00"
Borough Council of Kings Lynn and West Norfolk,E07000146,24/05/2021,Hardwick Industrial Estate,Repairs & Maintenance,AMR Fire and Security Limited,21006970,"1,975.00"
Borough Council of Kings Lynn and West Norfolk,E07000146,24/05/2021,Hardwick Industrial Estate,Repairs & Maintenance,STS Carpets & Flooring Ltd,21006942,271.25
Borough Council of Kings Lynn and West Norfolk,E07000146,24/05/2021,Hardwick Industrial Estate,Repairs & Maintenance,STS Carpets & Flooring Ltd,21006942,"1,172.00"
Borough Council of Kings Lynn and West Norfolk,E07000146,24/05/2021,County Council Elections,Room Hire,Gaywood Church Rooms,22005020,552.50
Borough Council of Kings Lynn and West Norfolk,E07000146,27/05/2021,Regis Place Unit 2 -WN Vol,Repairs & Maintenance,Swift Air Ventilation Ltd,21006809,"5,216.00"
Borough Council of Kings Lynn and West Norfolk,E07000146,27/05/2021,Rough Sleeper Fund,Covid 19,Orbit Group,21006833,500.00
Borough Council of Kings Lynn and West Norfolk,E07000146,27/05/2021,ICT,Computer Software Maint,MarXtar Ltd,21006744,"5,135.35"
Borough Council of Kings Lynn and West Norfolk,E07000146,27/05/2021,County Council Elections,Stationery & Office,Lyreco UK Ltd,21006776,"1,498.50"
Borough Council of Kings Lynn and West Norfolk,E07000146,27/05/2021,Reopening High Street,Professional Fees,Bauer Radio Ltd,21006954,"1,001.00"
Borough Council of Kings Lynn and West Norfolk,E07000146,27/05/2021,Reopening High Streets Safely Fund,Marketing / Tourism,Reg Clarke,21007141,"1,950.20"
Borough Council of Kings Lynn and West Norfolk,E07000146,27/05/2021,ICT,Communications,Nominet UK,21006674,765.94
Borough Council of Kings Lynn and West Norfolk,E07000146,27/05/2021,Air Quality,Servicing,Matts Monitors Ltd,21006650,"1,500.00"
Borough Council of Kings Lynn and West Norfolk,E07000146,27/05/2021,Neighbourhood Teams,Covid 19,Enterprise Flex-E Rent,22004797,"1,899.50"
Borough Council of Kings Lynn and West Norfolk,E07000146,27/05/2021,Extra planning Income - 20%,Agency Staff,Carrington West Limited,21006732,"1,980.00"
Borough Council of Kings Lynn and West Norfolk,E07000146,27/05/2021,Training Holding Account,Training,Grumpy Rabbit Ltd,21006822,900.00
Borough Council of Kings Lynn and West Norfolk,E07000146,27/05/2021,Extra planning Income - 20%,Agency Staff,Vivid Resourcing,21006873,"1,190.00"
Borough Council of Kings Lynn and West Norfolk,E07000146,27/05/2021,Rough Sleeper Fund,Covid 19,The Rose and Crown Hotel Ltd,22005211,"5,071.43"
Borough Council of Kings Lynn and West Norfolk,E07000146,27/05/2021,Rough Sleeper Fund,Covid 19,The Rose and Crown Hotel Ltd,22005213,785.71
Ash,E07000146,27/05/2021,North Lynn Industrial Estate,Repairs & Maintenance,CGM Group (East Anglia) Ltd,21007051,28.33
Borough Council of Kings Lynn and West Norfolk,E07000146,27/05/2021,General Property,Repairs & Maintenance,CGM Group (East Anglia) Ltd,21007051,"1,419.32"
Borough Council of Kings Lynn and West Norfolk,E07000146,27/05/2021,Corporate Project Manager,Tools And Equipment,Dell Corporation Ltd,21007003,503.65
Borough Council of Kings Lynn and West Norfolk,E07000146,27/05/2021,Extra planning Income - 20%,Tools And Equipment,Dell Corporation Ltd,21007004,503.65
Borough Council of Kings Lynn and West Norfolk,E07000146,27/05/2021,Parking Operations - Brgh,Tools And Equipment,E Akers,21007109,880.00
Borough Council of Kings Lynn and West Norfolk,E07000146,27/05/2021,General Property,Repairs & Maintenance,KJN Landscapes,21007057,575.00
Borough Council of Kings Lynn and West Norfolk,E07000146,27/05/2021,Parking Operations - Brgh,Repairs & Maintenance,Penty Contractors Ltd,21007117,550.00
Borough Council of Kings Lynn and West Norfolk,E07000146,27/05/2021,North Lynn Industrial Estate,Repairs & Maintenance,1-2 Call Drainage & Groundwork Ltd,21007104,490.00
Borough Council of Kings Lynn and West Norfolk,E07000146,27/05/2021,Public Cleansing,Vehicle - repairs & Maint,Trakm8 Limited,22004762,239.94
Borough Council of Kings Lynn and West Norfolk,E07000146,27/05/2021,Public Cleansing,Vehicle - repairs & Maint,Trakm8 Limited,22004762,239.94
Borough Council of Kings Lynn and West Norfolk,E07000146,27/05/2021,Public Cleansing,Vehicle - repairs & Maint,Trakm8 Limited,22004762,239.94
Borough Council of Kings Lynn and West Norfolk,E07000146,27/05/2021,ICT,Communications,Adept Technology Group Plc,21007191,"2,870.40"
Borough Council of Kings Lynn and West Norfolk,E07000146,27/05/2021,CCTV,Repairs & Maintenance,Adept Technology Group Plc,21007191,350.00
Borough Council of Kings Lynn and West Norfolk,E07000146,27/05/2021,Corporate,Stationery & Office,Adept Technology Group Plc,21007191,931.92
Borough Council of Kings Lynn and West Norfolk,E07000146,27/05/2021,ICT,Recoverable Fees,Adept Technology Group Plc,21007191,186.17
Borough Council of Kings Lynn and West Norfolk,E07000146,27/05/2021,Balance Sheet,Rechargeable Works Insurance,Adept Technology Group Plc,21007191,197.58
Borough Council of Kings Lynn and West Norfolk,E07000146,27/05/2021,ICT,Telephones,Adept Technology Group Plc,21007047,"5,457.19"
Borough Council of Kings Lynn and West Norfolk,E07000146,27/05/2021,Financial Services,Agency Staff,Hays Specialist Recruitment,21007122,"2,655.00"
Borough Council of Kings Lynn and West Norfolk,E07000146,27/05/2021,Decrim - Operational,Miscellaneous,Patrol,21007028,"1,172.70"
Borough Council of Kings Lynn and West Norfolk,E07000146,27/05/2021,Hardwick Industrial Estate,Repairs & Maintenance,MCE Heatcool Ltd,21007175,"1,500.00"
Borough Council of Kings Lynn and West Norfolk,E07000146,27/05/2021,Depot Infestation,Rechargeable Works Insurance,David Trundley Design Services Ltd,21007134,"3,500.00"
Borough Council of Kings Lynn and West Norfolk,E07000146,27/05/2021,NNDC Carpark Operation,Security Services Charge,LOOMIS UK Ltd,21007148,134.52
Borough Council of Kings Lynn and West Norfolk,E07000146,27/05/2021,Parking Operations - Brgh,Security Services Charge,LOOMIS UK Ltd,21007148,325.78
Borough Council of Kings Lynn and West Norfolk,E07000146,27/05/2021,Leisure Management Costs,Security Services Charge,LOOMIS UK Ltd,21007148,179.60
Borough Council of Kings Lynn and West Norfolk,E07000146,27/05/2021,Green Bins/Recycling,Equipment/Materials,MGB Plastics,21006614,"9,720.00"
Borough Council of Kings Lynn and West Norfolk,E07000146,27/05/2021,Brown Bins/Compost,Equipment/Materials,MGB Plastics,21006615,"9,720.00"
Borough Council of Kings Lynn and West Norfolk,E07000146,27/05/2021,ICT,Computer Hardware Maint,Amtec Computer Services Ltd,21006875,"5,205.00"
Borough Council of Kings Lynn and West Norfolk,E07000146,27/05/2021,Parking Operations - Brgh,Tools And Equipment,DLM Sign Products (UK) Ltd,21006739,"1,267.00"
Borough Council of Kings Lynn and West Norfolk,E07000146,27/05/2021,Training Holding Account,Training,AccessAble,21006509,500.00
Borough Council of Kings Lynn and West Norfolk,E07000146,27/05/2021,Balance Sheet,VAT Input - VAT Only Purchases,Marston Group Ltd,22004847,"2,737.52"
Borough Council of Kings Lynn and West Norfolk,E07000146,27/05/2021,Home Improvements Agency,Agency Staff,Seven Resourcing Ltd,21006883,"1,009.66"
Borough Council of Kings Lynn and West Norfolk,E07000146,27/05/2021,Home Improvements Agency,Agency Staff,Seven Resourcing Ltd,21006884,"1,117.90"
Borough Council of Kings Lynn and West Norfolk,E07000146,27/05/2021,Parks & Open Spaces,Tree Surgery,Golden Tree Surgeons Ltd,21007176,"1,130.00"
Borough Council of Kings Lynn and West Norfolk,E07000146,27/05/2021,Parks & Open Spaces,Tree Surgery,Golden Tree Surgeons Ltd,21007177,"3,390.00"
Borough Council of Kings Lynn and West Norfolk,E07000146,27/05/2021,Crematorium Trading Account,Memorial Plates,Anglia Sign Casting Ltd,21006785,"1,042.38"
Borough Council of Kings Lynn and West Norfolk,E07000146,27/05/2021,Mintlyn Crematorium,Webcasts/Tributes/Recordings,Vivedia Ltd,21006872,"3,275.00"
Borough Council of Kings Lynn and West Norfolk,E07000146,27/05/2021,Food Hygiene/H&S Sals/Sup,Agency Staff,G2 Recruitment Ltd,21006671,"1,291.90"
Borough Council of Kings Lynn and West Norfolk,E07000146,27/05/2021,KL Innovation Centre,Repairs & Maintenance,A C Leigh (Norwich) Ltd,21006886,"2,759.60"
Borough Council of Kings Lynn and West Norfolk,E07000146,27/05/2021,Rough Sleeper Fund,Covid 19,BACO-Compak (Norfolk) Ltd,21007101,780.00
Borough Council of Kings Lynn and West Norfolk,E07000146,27/05/2021,ICT,Communications,Vodafone Ltd,21007124,"3,036.96"
Borough Council of Kings Lynn and West Norfolk,E07000146,27/05/2021,Suspense,NWP monies,West Norfolk Property Ltd,22005237,"52,690.83"
Borough Council of Kings Lynn and West Norfolk,E07000146,01/06/2021,Network Hardware holding,Repairs & Maintenance,E Akers,21007208,225.00
Borough Council of Kings Lynn and West Norfolk,E07000146,01/06/2021,CCTV,Repairs & Maintenance,E Akers,21007208,325.00
Borough Council of Kings Lynn and West Norfolk,E07000146,01/06/2021,Refuse Vehicles,Works,Dennis Eagle Ltd,21007213,"199,750.00"
Borough Council of Kings Lynn and West Norfolk,E07000146,01/06/2021,Refuse Vehicles,Works,Dennis Eagle Ltd,21007214,"199,750.00"
Borough Council of Kings Lynn and West Norfolk,E07000146,01/06/2021,Refuse Vehicles,Works,Dennis Eagle Ltd,21007217,"199,750.00"
Borough Council of Kings Lynn and West Norfolk,E07000146,01/06/2021,Refuse Vehicles,Works,Dennis Eagle Ltd,21007218,"199,750.00"
Borough Council of Kings Lynn and West Norfolk,E07000146,01/06/2021,Refuse Vehicles,Works,Dennis Eagle Ltd,21007219,"199,750.00"
Borough Council of Kings Lynn and West Norfolk,E07000146,01/06/2021,Refuse Vehicles,Works,Dennis Eagle Ltd,21007222,"199,750.00"
Borough Council of Kings Lynn and West Norfolk,E07000146,01/06/2021,Grounds,Materials,Advance Grass Solutions,22004765,725.92
Borough Council of Kings Lynn and West Norfolk,E07000146,01/06/2021,Chf Exec -Member Services,Council Meetings,JAK Ropa,22005234,"1,010.00"
Borough Council of Kings Lynn and West Norfolk,E07000146,01/06/2021,Housing Options Programme,Temporary Accommodation,The Grange Hotel,21007240,495.81
Borough Council of Kings Lynn and West Norfolk,E07000146,01/06/2021,Housing Options Programme,Temporary Accommodation,The Grange Hotel,21007246,495.81
Borough Council of Kings Lynn and West Norfolk,E07000146,01/06/2021,KL Innovation Centre,Repairs & Maintenance,Mr Brights Ltd,21007144,"1,693.84"
Borough Council of Kings Lynn and West Norfolk,E07000146,01/06/2021,Police Crime Commissioner Elections,Postages,Royal Mail Group Ltd,22005233,"1,433.44"
Borough Council of Kings Lynn and West Norfolk,E07000146,01/06/2021,Apprenticeship Scheme,Apprentice Levy,Bedford Borough Council,21007201,"4,545.00"
Borough Council of Kings Lynn and West Norfolk,E07000146,01/06/2021,General Property,Repairs & Maintenance,1-2 Call Drainage & Groundwork Ltd,21007207,750.00
Borough Council of Kings Lynn and West Norfolk,E07000146,02/06/2021,Parks & Open Spaces,Tree Surgery,Golden Tree Surgeons Ltd,21007382,"1,130.00"
Borough Council of Kings Lynn and West Norfolk,E07000146,03/06/2021,Rough Sleeper Fund,Covid 19,BACO-Compak (Norfolk) Ltd,21007265,480.00
Borough Council of Kings Lynn and West Norfolk,E07000146,03/06/2021,Head of Legal Services,External Legal fees,North Norfolk District Council,22005245,"1,625.00"
Borough Council of Kings Lynn and West Norfolk,E07000146,03/06/2021,Head of Legal Services,External Legal fees,North Norfolk District Council,22005245,120.00
Borough Council of Kings Lynn and West Norfolk,E07000146,03/06/2021,Head of Legal Services,External Legal fees,North Norfolk District Council,22005245,3.00
Borough Council of Kings Lynn and West Norfolk,E07000146,03/06/2021,Postage Services K Court,Postages,Postage By Phone,22005248,"5,006.94"
Borough Council of Kings Lynn and West Norfolk,E07000146,03/06/2021,Postage Services K Court,Postages,Postage By Phone,22005248,11.00
Borough Council of Kings Lynn and West Norfolk,E07000146,03/06/2021,Financial Services,Postages,Royal Mail Group Ltd,22005255,173.73
Borough Council of Kings Lynn and West Norfolk,E07000146,03/06/2021,Benefit Administration,Postages,Royal Mail Group Ltd,22005255,366.96
Borough Council of Kings Lynn and West Norfolk,E07000146,03/06/2021,Cost of Collection - CTax,Postages,Royal Mail Group Ltd,22005255,475.45
Borough Council of Kings Lynn and West Norfolk,E07000146,03/06/2021,Financial Services,Postages,Royal Mail Group Ltd,22005255,1.35
Borough Council of Kings Lynn and West Norfolk,E07000146,03/06/2021,Benefit Administration,Postages,Royal Mail Group Ltd,22005255,23.40
Borough Council of Kings Lynn and West Norfolk,E07000146,03/06/2021,Cost of Collection - CTax,Postages,Royal Mail Group Ltd,22005255,1.87
Borough Council of Kings Lynn and West Norfolk,E07000146,03/06/2021,Benefit Administration,Postages,Royal Mail Group Ltd,22005255,10.12
Borough Council of Kings Lynn and West Norfolk,E07000146,03/06/2021,Cost of Collection - CTax,Postages,Royal Mail Group Ltd,22005255,8.00
Borough Council of Kings Lynn and West Norfolk,E07000146,03/06/2021,Financial Services,Postages,Royal Mail Group Ltd,22005246,843.92
Borough Council of Kings Lynn and West Norfolk,E07000146,03/06/2021,Benefit Administration,Postages,Royal Mail Group Ltd,22005246,382.36
Borough Council of Kings Lynn and West Norfolk,E07000146,03/06/2021,Cost of Collection - CTax,Postages,Royal Mail Group Ltd,22005246,"2,094.92"
Borough Council of Kings Lynn and West Norfolk,E07000146,03/06/2021,Kings Lynn Bid,Postages,Royal Mail Group Ltd,22005246,0.44
Borough Council of Kings Lynn and West Norfolk,E07000146,03/06/2021,Benefit Administration,Postages,Royal Mail Group Ltd,22005246,12.15
Borough Council of Kings Lynn and West Norfolk,E07000146,03/06/2021,Cost of Collection - CTax,Postages,Royal Mail Group Ltd,22005246,3.60
Borough Council of Kings Lynn and West Norfolk,E07000146,03/06/2021,Financial Services,Postages,Royal Mail Group Ltd,22005246,36.45
Borough Council of Kings Lynn and West Norfolk,E07000146,03/06/2021,County Council Elections,Hired Vehicles,Flood Brothers,22005247,980.00
Borough Council of Kings Lynn and West Norfolk,E07000146,03/06/2021,Lily Phase 4,Lily Advisor Payments,West Norfolk Deaf Association,21006958,"1,200.00"
Borough Council of Kings Lynn and West Norfolk,E07000146,03/06/2021,NORA Remediation,Works,UK Power Networks (Operations ) Ltd,22005243,"66,303.41"
Borough Council of Kings Lynn and West Norfolk,E07000146,03/06/2021,Public Cleansing,Cleaning Material & Equip,V & J Knitwear Ltd,21007301,688.43
Borough Council of Kings Lynn and West Norfolk,E07000146,03/06/2021,Parking Operations - Brgh,Tools And Equipment,Bemrose Booth Paragon Ltd,21007270,"1,995.00"
Borough Council of Kings Lynn and West Norfolk,E07000146,03/06/2021,Mintlyn Crematorium,Professional Fees,Davies & Co (Environmental) Ltd,21007281,"5,775.00"
Borough Council of Kings Lynn and West Norfolk,E07000146,03/06/2021,Public Cleansing,Contract Repairs,Bucher Muncipal Ltd,22005242,972.40
Borough Council of Kings Lynn and West Norfolk,E07000146,03/06/2021,KL Innovation Centre,Repairs & Maintenance,NVCS Ltd,21006910,780.00
Borough Council of Kings Lynn and West Norfolk,E07000146,03/06/2021,Cost of Collection - NDR,Professional Fees,Civica UK Ltd,21006881,541.15
Borough Council of Kings Lynn and West Norfolk,E07000146,03/06/2021,Welfare Reform Funding,Professional Fees,Civica UK Ltd,21006880,"4,125.00"
Borough Council of Kings Lynn and West Norfolk,E07000146,03/06/2021,Careline,Tools And Equipment,AMR Fire and Security Limited,21007196,"1,755.36"
Borough Council of Kings Lynn and West Norfolk,E07000146,03/06/2021,Home Improvements Agency,Agency Staff,Seven Resourcing Ltd,21007037,"1,167.21"
Borough Council of Kings Lynn and West Norfolk,E07000146,03/06/2021,Home Improvements Agency,Agency Staff,Seven Resourcing Ltd,21007038,858.40
Borough Council of Kings Lynn and West Norfolk,E07000146,03/06/2021,County Council Elections,Miscellaneous,Evolve Security Guards Ltd,22004884,"1,421.00"
Borough Council of Kings Lynn and West Norfolk,E07000146,03/06/2021,DWP at Kings Court,Contract Security,MPD FM Ltd,21007081,"6,119.10"
Borough Council of Kings Lynn and West Norfolk,E07000146,03/06/2021,DWP at Kings Court,Contract Security,MPD FM Ltd,21007082,"1,783.98"
Borough Council of Kings Lynn and West Norfolk,E07000146,03/06/2021,Food Hygiene/H&S Sals/Sup,Recruitment,TMP (UK) Ltd,22004964,766.00
Borough Council of Kings Lynn and West Norfolk,E07000146,03/06/2021,Food Hygiene/H&S Sals/Sup,Agency Staff,G2 Recruitment Ltd,21006897,999.11
Borough Council of Kings Lynn and West Norfolk,E07000146,03/06/2021,Food Hygiene/H&S Sals/Sup,Agency Staff,G2 Recruitment Ltd,21006896,"2,902.50"
Borough Council of Kings Lynn and West Norfolk,E07000146,03/06/2021,Covid 19- LA Compliance and Enforcement,Covid 19 Marshalls,Excaliber Security Services Ltd,21007290,"3,782.24"
Borough Council of Kings Lynn and West Norfolk,E07000146,03/06/2021,Covid 19- LA Compliance and Enforcement,Covid 19 Marshalls,Excaliber Security Services Ltd,21007289,"4,375.77"
Borough Council of Kings Lynn and West Norfolk,E07000146,03/06/2021,Rough Sleeper Fund,Covid 19,Excaliber Security Services Ltd,21007288,"5,107.20"
Borough Council of Kings Lynn and West Norfolk,E07000146,03/06/2021,,,Greenhalgh Kerr,22005244,0.00
Borough Council of Kings Lynn and West Norfolk,E07000146,03/06/2021,Extra planning Income - 20%,Agency Staff,Carrington West Limited,21006887,"1,260.00"
Borough Council of Kings Lynn and West Norfolk,E07000146,03/06/2021,Licensing,Vet Fees,IVC Ltd T/A Chapelfield Veterinary Partnership,21007203,447.60
Borough Council of Kings Lynn and West Norfolk,E07000146,03/06/2021,Kings Court Service Charges,Cleaning Material & Equip,Ken Booth & Co Ltd,21006904,489.45
Borough Council of Kings Lynn and West Norfolk,E07000146,03/06/2021,REGENERATION PROJECTS,External Archive Storage,Stor-A-File Ltd,22004816,4.07
Borough Council of Kings Lynn and West Norfolk,E07000146,03/06/2021,Domestic Refuse,External Archive Storage,Stor-A-File Ltd,22004816,3.83
Borough Council of Kings Lynn and West Norfolk,E07000146,03/06/2021,Mintlyn Crematorium,External Archive Storage,Stor-A-File Ltd,22004816,28.06
Borough Council of Kings Lynn and West Norfolk,E07000146,03/06/2021,Car Parks - BCKLWN,External Archive Storage,Stor-A-File Ltd,22004816,25.58
Borough Council of Kings Lynn and West Norfolk,E07000146,03/06/2021,Food Hygiene/H&S Sals/Sup,External Archive Storage,Stor-A-File Ltd,22004816,0.30
Borough Council of Kings Lynn and West Norfolk,E07000146,03/06/2021,Benefit Administration,External Archive Storage,Stor-A-File Ltd,22004816,5.25
Borough Council of Kings Lynn and West Norfolk,E07000146,03/06/2021,Parks & Open Spaces,External Archive Storage,Stor-A-File Ltd,22004816,7.59
Borough Council of Kings Lynn and West Norfolk,E07000146,03/06/2021,Resort Seafront,External Archive Storage,Stor-A-File Ltd,22004816,21.37
Borough Council of Kings Lynn and West Norfolk,E07000146,03/06/2021,Corn Exchange,External Archive Storage,Stor-A-File Ltd,22004816,13.29
Borough Council of Kings Lynn and West Norfolk,E07000146,03/06/2021,Pub & Tourism int charges,External Archive Storage,Stor-A-File Ltd,22004816,3.89
Borough Council of Kings Lynn and West Norfolk,E07000146,03/06/2021,Personnel Services,External Archive Storage,Stor-A-File Ltd,22004816,55.50
Borough Council of Kings Lynn and West Norfolk,E07000146,03/06/2021,Property Services,External Archive Storage,Stor-A-File Ltd,22004816,16.67
Borough Council of Kings Lynn and West Norfolk,E07000146,03/06/2021,Head of Legal Services,External Archive Storage,Stor-A-File Ltd,22004816,16.35
Borough Council of Kings Lynn and West Norfolk,E07000146,03/06/2021,Chf Exec -Member Services,External Archive Storage,Stor-A-File Ltd,22004816,13.53
Borough Council of Kings Lynn and West Norfolk,E07000146,03/06/2021,Financial Services,External Archive Storage,Stor-A-File Ltd,22004816,210.32
Borough Council of Kings Lynn and West Norfolk,E07000146,03/06/2021,Leisure Administration,External Archive Storage,Stor-A-File Ltd,22004816,4.60
Borough Council of Kings Lynn and West Norfolk,E07000146,03/06/2021,Planning Control,External Archive Storage,Stor-A-File Ltd,22004816,17.36
Borough Council of Kings Lynn and West Norfolk,E07000146,03/06/2021,Corporate,External Archive Storage,Stor-A-File Ltd,22004816,14.30
Borough Council of Kings Lynn and West Norfolk,E07000146,03/06/2021,Cost of Collection - CTax,External Archive Storage,Stor-A-File Ltd,22004816,10.93
Borough Council of Kings Lynn and West Norfolk,E07000146,03/06/2021,Local Land Charges,External Archive Storage,Stor-A-File Ltd,22004816,1.69
Borough Council of Kings Lynn and West Norfolk,E07000146,03/06/2021,Performance Review & Efficiency,External Archive Storage,Stor-A-File Ltd,22004816,2.87
Borough Council of Kings Lynn and West Norfolk,E07000146,03/06/2021,Lynnsport General Account,External Archive Storage,Stor-A-File Ltd,22004816,11.24
Borough Council of Kings Lynn and West Norfolk,E07000146,07/06/2021,NNDC Carpark Operation,Tools And Equipment,Chipside Ltd,21007387,250.00
Borough Council of Kings Lynn and West Norfolk,E07000146,07/06/2021,Parking Operations - Brgh,Tools And Equipment,Chipside Ltd,21007387,"1,175.00"
Borough Council of Kings Lynn and West Norfolk,E07000146,07/06/2021,Decrim - Operational,Tools And Equipment,Chipside Ltd,21007387,"2,200.00"
Borough Council of Kings Lynn and West Norfolk,E07000146,07/06/2021,Lease Cars,Leasing,Commercial Services Kent Ltd,22004841,"2,900.00"
Borough Council of Kings Lynn and West Norfolk,E07000146,07/06/2021,Lease Cars,Leasing,Commercial Services Kent Ltd,22004841,"2,331.94"
Borough Council of Kings Lynn and West Norfolk,E07000146,07/06/2021,Lease Cars,Leasing,Commercial Services Kent Ltd,22004843,"2,565.02"
Borough Council of Kings Lynn and West Norfolk,E07000146,07/06/2021,Lease Cars,Leasing,Commercial Services Kent Ltd,22004843,"1,885.90"
Borough Council of Kings Lynn and West Norfolk,E07000146,07/06/2021,Lease Cars,Leasing,Commercial Services Kent Ltd,22004842,"1,769.96"
Borough Council of Kings Lynn and West Norfolk,E07000146,07/06/2021,Lease Cars,Leasing,Commercial Services Kent Ltd,22004842,"1,235.67"
Borough Council of Kings Lynn and West Norfolk,E07000146,07/06/2021,Factory 1 Refurb,Equipment/Materials,Robert Fencing Ltd,21007371,"10,646.06"
Borough Council of Kings Lynn and West Norfolk,E07000146,07/06/2021,NORA Phase 4,Professional Fees,Gateley Plc,21007357,818.12
Borough Council of Kings Lynn and West Norfolk,E07000146,07/06/2021,Parkway - Gaywood,Professional Fees,Gateley Plc,21007356,794.47
Borough Council of Kings Lynn and West Norfolk,E07000146,07/06/2021,CCTV,Repairs & Maintenance,Quality Essential Distribution Ltd,21006922,"1,377.50"
Borough Council of Kings Lynn and West Norfolk,E07000146,07/06/2021,Covid 19- LA Compliance and Enforcement,Covid 19 Marshalls,Excaliber Security Services Ltd,21007359,"3,762.33"
Borough Council of Kings Lynn and West Norfolk,E07000146,07/06/2021,Town Hall Kings Lynn,Repairs & Maintenance,Citron Hygiene Uk Ltd,21007370,503.12
Borough Council of Kings Lynn and West Norfolk,E07000146,07/06/2021,Benefit Payments,Rent Allowances,Sanctuary Affordable Housing Ltd,22005288,"41,965.59"
Borough Council of Kings Lynn and West Norfolk,E07000146,07/06/2021,Norfolk Tourism Package,Works,aAFD Services Ltd,21007308,"7,220.25"
Borough Council of Kings Lynn and West Norfolk,E07000146,07/06/2021,Norfolk Tourism Package,Works,aAFD Services Ltd,21007307,"7,106.93"
Borough Council of Kings Lynn and West Norfolk,E07000146,07/06/2021,County Council Elections,Stationery & Office,Pens Unlimited,21007335,"1,301.00"
Borough Council of Kings Lynn and West Norfolk,E07000146,07/06/2021,Rough Sleeper Fund,Covid 19,The Rose and Crown Hotel Ltd,21007334,437.50
Borough Council of Kings Lynn and West Norfolk,E07000146,07/06/2021,Public Cleansing,Cleaning Material & Equip,V & J Knitwear Ltd,21007324,555.23
Borough Council of Kings Lynn and West Norfolk,E07000146,07/06/2021,NNDC Carpark Operation,Stationery & Office,Bemrose Booth Paragon Ltd,21006956,"1,314.60"
Borough Council of Kings Lynn and West Norfolk,E07000146,07/06/2021,Supplier Holding Account,Vehicle - repairs & Maint,North Street Tyres,22005291,"1,261.83"
Borough Council of Kings Lynn and West Norfolk,E07000146,07/06/2021,Domestic Refuse,Added Years Pension,Norfolk Pension Fund,21007343,"-2,898.41"
Borough Council of Kings Lynn and West Norfolk,E07000146,07/06/2021,Trade Refuse,Added Years Pension,Norfolk Pension Fund,21007343,717.99
Borough Council of Kings Lynn and West Norfolk,E07000146,07/06/2021,Corporate,Added Years Pension,Norfolk Pension Fund,21007343,"20,262.32"
Borough Council of Kings Lynn and West Norfolk,E07000146,07/06/2021,Discover KL Distribution,Discover KL Distribution,Take One Media Ltd,21006914,"2,555.00"
Borough Council of Kings Lynn and West Norfolk,E07000146,07/06/2021,Public Cleansing,Contract Repairs,Bucher Muncipal Ltd,22005307,486.20
Borough Council of Kings Lynn and West Norfolk,E07000146,07/06/2021,Public Cleansing,Contract Repairs,Bucher Muncipal Ltd,22005307,486.20
Borough Council of Kings Lynn and West Norfolk,E07000146,07/06/2021,North Lynn Industrial Estate,Repairs & Maintenance,AMR Electrical Services Ltd,21007383,838.50
Borough Council of Kings Lynn and West Norfolk,E07000146,07/06/2021,KL Innovation Centre,Repairs & Maintenance,East Coast Signs Ltd,21007364,670.00
Borough Council of Kings Lynn and West Norfolk,E07000146,07/06/2021,Mintlyn Crematorium,Tools And Equipment,East Coast Signs Ltd,21007361,690.00
Borough Council of Kings Lynn and West Norfolk,E07000146,07/06/2021,Decrim - Operational,Miscellaneous,Patrol,21007336,"1,833.00"
Borough Council of Kings Lynn and West Norfolk,E07000146,07/06/2021,Creditors Holding Account,Water & Drainage Rates,WAVE,22005278,"81,056.86"
Borough Council of Kings Lynn and West Norfolk,E07000146,07/06/2021,ICT,Computer Software Maint,Capita Business Services Ltd,21006982,"3,022.50"
Borough Council of Kings Lynn and West Norfolk,E07000146,07/06/2021,Corporate,Audit Fee,Ernst & Young,21007360,"41,475.00"
Borough Council of Kings Lynn and West Norfolk,E07000146,07/06/2021,NEWS Depot,Contract Cleaning,Marathon Services Ltd,22005294,"1,410.00"
Borough Council of Kings Lynn and West Norfolk,E07000146,07/06/2021,Dry Box Collection Scheme,Waste Processing Cost,Norse Environmental Services,21007341,"54,286.48"
Borough Council of Kings Lynn and West Norfolk,E07000146,07/06/2021,Domestic Refuse,Waste Processing Cost,Norse Environmental Services,21007342,"4,044.92"
Borough Council of Kings Lynn and West Norfolk,E07000146,07/06/2021,Mintlyn Crematorium,Tools And Equipment,Teleshore UK Ltd t/a Gemini CCS Ltd,21005708,685.00
Borough Council of Kings Lynn and West Norfolk,E07000146,07/06/2021,Parking Operations - Brgh,Tools And Equipment,Mobius Networks Ltd,21007345,633.30
Borough Council of Kings Lynn and West Norfolk,E07000146,07/06/2021,Resort Seafront,Professional Fees,MED PTS Ambulance Services,21007346,"2,673.00"
Borough Council of Kings Lynn and West Norfolk,E07000146,07/06/2021,Salters Road,Contractor Works,Lovell Partnerships Ltd,21007380,"24,216.70"
Borough Council of Kings Lynn and West Norfolk,E07000146,07/06/2021,Lynnsport 3,Contractor Works,Lovell Partnerships Ltd,21007377,"18,096.61"
Borough Council of Kings Lynn and West Norfolk,E07000146,07/06/2021,Lynnsport 3,Contractor Works,Lovell Partnerships Ltd,21007376,"2,664.38"
Borough Council of Kings Lynn and West Norfolk,E07000146,07/06/2021,Lynnsport 1,Contractor Works,Lovell Partnerships Ltd,21007375,"1,837.08"
Borough Council of Kings Lynn and West Norfolk,E07000146,07/06/2021,Hunstanton Southend Road,Contractor Works,Lovell Partnerships Ltd,21007381,977.64
Borough Council of Kings Lynn and West Norfolk,E07000146,07/06/2021,NORA Phase 4,Contractor Works,Lovell Partnerships Ltd,21007378,"412,753.29"
Borough Council of Kings Lynn and West Norfolk,E07000146,07/06/2021,Parkway - Gaywood,Contractor Works,Lovell Partnerships Ltd,21007379,"104,559.06"
Borough Council of Kings Lynn and West Norfolk,E07000146,09/06/2021,Parks & Open Spaces,Tree Surgery,Golden Tree Surgeons Ltd,21007598,880.00
Borough Council of Kings Lynn and West Norfolk,E07000146,10/06/2021,Rough Sleeper Fund,Covid 19,BACO-Compak (Norfolk) Ltd,21007458,480.00
Borough Council of Kings Lynn and West Norfolk,E07000146,10/06/2021,Kings Court Service Charges,Repairs & Maintenance,AMR Mechanical Services Ltd,21007197,452.00
Borough Council of Kings Lynn and West Norfolk,E07000146,10/06/2021,Air Quality,Repairs & Maintenance,G Broughton,21007014,"1,020.00"
Borough Council of Kings Lynn and West Norfolk,E07000146,10/06/2021,Hunstanton Bus Station & NCC Library,Contractor Works,Lovell Partnerships Ltd,21007374,"41,202.18"
Borough Council of Kings Lynn and West Norfolk,E07000146,10/06/2021,Balance Sheet,VAT Input - VAT Only Purchases,Newlyn PLC,22005329,"2,144.36"
Borough Council of Kings Lynn and West Norfolk,E07000146,10/06/2021,Balance Sheet,VAT Input - VAT Only Purchases,Newlyn PLC,22005330,874.14
Borough Council of Kings Lynn and West Norfolk,E07000146,10/06/2021,Home Improvements Agency,Agency Staff,Seven Resourcing Ltd,21007138,"1,525.77"
Borough Council of Kings Lynn and West Norfolk,E07000146,10/06/2021,Home Improvements Agency,Agency Staff,Seven Resourcing Ltd,21007139,"1,103.95"
Borough Council of Kings Lynn and West Norfolk,E07000146,10/06/2021,Parks & Open Spaces,Tree Surgery,Golden Tree Surgeons Ltd,22005354,"1,130.00"
Borough Council of Kings Lynn and West Norfolk,E07000146,10/06/2021,Parks & Open Spaces,Tree Surgery,Golden Tree Surgeons Ltd,21007431,565.00
Borough Council of Kings Lynn and West Norfolk,E07000146,10/06/2021,Parks & Open Spaces,Tree Surgery,Golden Tree Surgeons Ltd,21007432,880.00
Borough Council of Kings Lynn and West Norfolk,E07000146,10/06/2021,Parks & Open Spaces,Tree Surgery,Golden Tree Surgeons Ltd,21007433,"1,380.00"
Borough Council of Kings Lynn and West Norfolk,E07000146,10/06/2021,Development and Estates Capital Receipts,Disposal Costs Physical Works,MD Insurance Services Ltd IBA,22004881,500.00
Borough Council of Kings Lynn and West Norfolk,E07000146,10/06/2021,LILY 5,Lily Advisor Payments,West Norfolk Carers Association,21007396,595.00
Borough Council of Kings Lynn and West Norfolk,E07000146,10/06/2021,CCTV Breckland,Repairs & Maintenance,Quality Essential Distribution Ltd,21007034,"5,592.51"
Borough Council of Kings Lynn and West Norfolk,E07000146,10/06/2021,Network Hardware holding,Repairs & Maintenance,Quality Essential Distribution Ltd,21007034,"11,185.02"
Borough Council of Kings Lynn and West Norfolk,E07000146,10/06/2021,Home Improvements Agency,Recruitment,TMP (UK) Ltd,22004965,461.69
Borough Council of Kings Lynn and West Norfolk,E07000146,10/06/2021,Food Hygiene/H&S Sals/Sup,Agency Staff,G2 Recruitment Ltd,21007016,"1,410.30"
Borough Council of Kings Lynn and West Norfolk,E07000146,10/06/2021,Food Hygiene/H&S Sals/Sup,Agency Staff,G2 Recruitment Ltd,21007017,"1,009.54"
Borough Council of Kings Lynn and West Norfolk,E07000146,10/06/2021,Public conveniences,Sewerage/Cesspool Empty,BACO-Compak (Norfolk) Ltd,22005311,860.00
Borough Council of Kings Lynn and West Norfolk,E07000146,10/06/2021,North Lynn Industrial Estate,Repairs & Maintenance,CGM Group (East Anglia) Ltd,21007389,28.33
Borough Council of Kings Lynn and West Norfolk,E07000146,10/06/2021,General Property,Repairs & Maintenance,CGM Group (East Anglia) Ltd,21007389,"1,419.32"
Borough Council of Kings Lynn and West Norfolk,E07000146,10/06/2021,NEWS Depot,Repairs & Maintenance,Kings Lynn Glass & Trimming Ltd,21007435,"1,590.00"
Borough Council of Kings Lynn and West Norfolk,E07000146,10/06/2021,Supplier Holding Account,Vehicle - repairs & Maint,Lawn Boy (Farm Services),22005323,582.80
Borough Council of Kings Lynn and West Norfolk,E07000146,10/06/2021,Parking Operations - Brgh,Rent,Norfolk County Council,22005324,875.00
Borough Council of Kings Lynn and West Norfolk,E07000146,10/06/2021,Local Land Charges,Agency,Norfolk County Council,22005325,"9,058.22"
Borough Council of Kings Lynn and West Norfolk,E07000146,10/06/2021,Museums,Contributions To Funds,Norfolk County Council,21007344,"11,514.00"
Borough Council of Kings Lynn and West Norfolk,E07000146,10/06/2021,West Winch Growth Area,Professional Fees,Norfolk County Council,21007143,"15,049.00"
Borough Council of Kings Lynn and West Norfolk,E07000146,10/06/2021,Public Cleansing,Cleaning Material & Equip,V & J Knitwear Ltd,21007321,705.98
Borough Council of Kings Lynn and West Norfolk,E07000146,10/06/2021,Parking Operations - Brgh,Stationery & Office,Bemrose Booth Paragon Ltd,21006978,695.00
Borough Council of Kings Lynn and West Norfolk,E07000146,10/06/2021,LILY 5,Lily Advisor Payments,West Norfolk Befriending,21007397,700.00
Borough Council of Kings Lynn and West Norfolk,E07000146,10/06/2021,North Lynn Industrial Estate,Repairs & Maintenance,AMR Electrical Services Ltd,21007274,925.90
Borough Council of Kings Lynn and West Norfolk,E07000146,10/06/2021,Civic Function Expenses,Bellringers/Flowers,St Margarets PCC,22005343,"1,100.00"
Borough Council of Kings Lynn and West Norfolk,E07000146,10/06/2021,North Lynn Industrial Estate,Repairs & Maintenance,Enhance,21007430,250.00
Borough Council of Kings Lynn and West Norfolk,E07000146,10/06/2021,North Lynn Industrial Estate,Repairs & Maintenance,Enhance,21007430,815.00
Borough Council of Kings Lynn and West Norfolk,E07000146,10/06/2021,The Walks,Repairs & Maintenance,Cooks Blinds & Shutters Ltd,21006994,502.00
Borough Council of Kings Lynn and West Norfolk,E07000146,10/06/2021,Street Sweeping,Fuel,RIX Petroleum (East Anglia) Ltd,21007140,"1,778.70"
Borough Council of Kings Lynn and West Norfolk,E07000146,10/06/2021,Neighbourhood Teams,Fuel,RIX Petroleum (East Anglia) Ltd,21007140,"1,575.30"
Borough Council of Kings Lynn and West Norfolk,E07000146,10/06/2021,Vehicle Recharge on account,Fuel,Worldline IT Services UK Re Fuelgenie,22005308,"11,145.91"
Borough Council of Kings Lynn and West Norfolk,E07000146,10/06/2021,Vehicle Recharge on account,Fuel,Worldline IT Services UK Re Fuelgenie,22005308,0.12
Borough Council of Kings Lynn and West Norfolk,E07000146,10/06/2021,CCTV Breckland,Repairs & Maintenance,Focus Security (East Anglia) Ltd,21007418,"1,774.61"
Borough Council of Kings Lynn and West Norfolk,E07000146,10/06/2021,CCTV Breckland,Repairs & Maintenance,Focus Security (East Anglia) Ltd,21007419,"1,515.26"
Borough Council of Kings Lynn and West Norfolk,E07000146,10/06/2021,CCTV,Repairs & Maintenance,Focus Security (East Anglia) Ltd,21007419,"1,515.26"
Borough Council of Kings Lynn and West Norfolk,E07000146,10/06/2021,GM Southern Area & Lynnsport,Fuel,UK Fuels Ltd,22005346,507.88
Borough Council of Kings Lynn and West Norfolk,E07000146,10/06/2021,GM Southern Area & Lynnsport,Fuel,UK Fuels Ltd,22005346,643.34
Borough Council of Kings Lynn and West Norfolk,E07000146,10/06/2021,Public Cleansing,Fuel,UK Fuels Ltd,22005346,504.88
Borough Council of Kings Lynn and West Norfolk,E07000146,10/06/2021,North Lynn Industrial Estate,Repairs & Maintenance,AMR Mechanical Services Ltd,21007428,"1,813.00"
Borough Council of Kings Lynn and West Norfolk,E07000146,10/06/2021,LILY 5,Lily Advisor Payments,Norfolk and Waveney Mind,21007407,"1,925.00"
Borough Council of Kings Lynn and West Norfolk,E07000146,10/06/2021,Printing&Copying-Floor Copiers,Click Charges,Capita Business Services Ltd,21007102,"1,290.50"
Borough Council of Kings Lynn and West Norfolk,E07000146,10/06/2021,Head of Legal Services,External Legal fees,Greenhalgh Kerr,22005319,620.00
Borough Council of Kings Lynn and West Norfolk,E07000146,10/06/2021,ICT,Computer Hardware Maint,Enghouse Interactive UK Ltd,21007006,"1,434.51"
Borough Council of Kings Lynn and West Norfolk,E07000146,10/06/2021,Planning Policy - Dept,Professional Fees,HDH Planning and Development Ltd,21007019,"12,000.00"
Borough Council of Kings Lynn and West Norfolk,E07000146,10/06/2021,General Property,Repairs & Maintenance,Solar Scaffolding Ltd,21007443,"1,557.50"
Borough Council of Kings Lynn and West Norfolk,E07000146,10/06/2021,Sth Quay Sommerfield & Thomas CRF,External Fees/Consultancy,Player Roberts Bell Architects Ltd,21007406,"10,350.00"
Borough Council of Kings Lynn and West Norfolk,E07000146,10/06/2021,Sports Grounds North,Materials,Advance Grass Solutions,22004891,366.50
Borough Council of Kings Lynn and West Norfolk,E07000146,10/06/2021,Sports Grounds Central,Materials,Advance Grass Solutions,22004891,366.50
Borough Council of Kings Lynn and West Norfolk,E07000146,10/06/2021,Public Realm/Town Deal,External Fees/Consultancy,Henderson & Taylor,21006995,"75,135.99"
Borough Council of Kings Lynn and West Norfolk,E07000146,10/06/2021,Extra planning Income - 20%,Agency Staff,Carrington West Limited,21006983,"1,800.00"
Borough Council of Kings Lynn and West Norfolk,E07000146,10/06/2021,Mintlyn Crematorium,Repairs & Maintenance,Travis Perkins Trading Co Ltd,21007257,592.68
Borough Council of Kings Lynn and West Norfolk,E07000146,10/06/2021,Development and Estates Capital Receipts,Disposal Costs Permissions & Consultancy,David Trundley Design Services Ltd,21007440,544.50
Borough Council of Kings Lynn and West Norfolk,E07000146,10/06/2021,Supplier Holding Account,Vehicle - repairs & Maint,Paul Johnson Motor Services Ltd,22005333,162.20
Borough Council of Kings Lynn and West Norfolk,E07000146,10/06/2021,Supplier Holding Account,Vehicle - repairs & Maint,Paul Johnson Motor Services Ltd,22005333,"4,044.86"
Borough Council of Kings Lynn and West Norfolk,E07000146,10/06/2021,Community Transport,Transport Subsidies,West Norfolk Community Transport Project,21007390,"32,344.50"
Borough Council of Kings Lynn and West Norfolk,E07000146,10/06/2021,Community Transport,Transport Subsidies,West Norfolk Community Transport Project,21007391,"12,494.00"
Borough Council of Kings Lynn and West Norfolk,E07000146,14/06/2021,Parking Operations - Brgh,Personnel DBS Checks,Disclosure & Barring Service,22005370,63.00
Borough Council of Kings Lynn and West Norfolk,E07000146,14/06/2021,Policy & Partnerships,Personnel DBS Checks,Disclosure & Barring Service,22005370,40.00
Borough Council of Kings Lynn and West Norfolk,E07000146,14/06/2021,Personnel Services,Personnel DBS Checks,Disclosure & Barring Service,22005370,440.00
Borough Council of Kings Lynn and West Norfolk,E07000146,14/06/2021,Licensing,CRB Forms - Expenditure,Disclosure & Barring Service,22005370,80.00
Borough Council of Kings Lynn and West Norfolk,E07000146,14/06/2021,Personnel Services,Personnel DBS Checks,Disclosure & Barring Service,22005370,40.00
Borough Council of Kings Lynn and West Norfolk,E07000146,14/06/2021,Lease Cars,Leasing,Commercial Services Trading Ltd,22005357,"2,104.45"
Borough Council of Kings Lynn and West Norfolk,E07000146,14/06/2021,Lease Cars,Leasing,Commercial Services Trading Ltd,22005357,"1,779.86"
Borough Council of Kings Lynn and West Norfolk,E07000146,14/06/2021,Public Cleansing,Contract Repairs,Bucher Muncipal Ltd,22005358,467.22
Borough Council of Kings Lynn and West Norfolk,E07000146,14/06/2021,Public Cleansing,Contract Repairs,Bucher Muncipal Ltd,22005359,972.40
Borough Council of Kings Lynn and West Norfolk,E07000146,14/06/2021,Nursery,Repairs & Maintenance,AMR Electrical Services Ltd,21007275,425.66
Borough Council of Kings Lynn and West Norfolk,E07000146,14/06/2021,Home Improvements Agency,Agency Staff,Seven Resourcing Ltd,21007517,"1,082.80"
Borough Council of Kings Lynn and West Norfolk,E07000146,14/06/2021,Parks & Open Spaces,Tree Surgery,Golden Tree Surgeons Ltd,21007473,"1,130.00"
Borough Council of Kings Lynn and West Norfolk,E07000146,14/06/2021,Community Projects,Service Level Agreements,Community Action Norfolk,21007184,"28,000.00"
Borough Council of Kings Lynn and West Norfolk,E07000146,14/06/2021,Replacement Financial Ledger,Computer Equip (Software),Embridge Consulting (UK) Ltd,21007511,"1,104.00"
Borough Council of Kings Lynn and West Norfolk,E07000146,14/06/2021,Replacement Financial Ledger,Computer Equip (Software),Embridge Consulting (UK) Ltd,21007512,453.35
Borough Council of Kings Lynn and West Norfolk,E07000146,14/06/2021,Grounds,Water & Drainage Rates,Aquam Water Services Ltd,21007198,950.00
Borough Council of Kings Lynn and West Norfolk,E07000146,14/06/2021,Covid 19- LA Compliance and Enforcement,Covid 19 Marshalls,Excaliber Security Services Ltd,21007478,"3,759.30"
Borough Council of Kings Lynn and West Norfolk,E07000146,14/06/2021,Covid 19- LA Compliance and Enforcement,Covid 19 Marshalls,Excaliber Security Services Ltd,21007479,"3,802.75"
Borough Council of Kings Lynn and West Norfolk,E07000146,14/06/2021,Covid 19- LA Compliance and Enforcement,Covid 19 Marshalls,Excaliber Security Services Ltd,21007480,"3,782.79"
Borough Council of Kings Lynn and West Norfolk,E07000146,14/06/2021,Kings Court Service Charges,Repairs & Maintenance,Swift Air Ventilation Ltd,21007256,"7,176.00"
Borough Council of Kings Lynn and West Norfolk,E07000146,14/06/2021,Special Events,Special Events,Wild in Art Limited,21007065,"1,100.00"
Borough Council of Kings Lynn and West Norfolk,E07000146,14/06/2021,Grounds,Vehicle - repairs & Maint,Thompson Forktruck Services Ltd,22005381,853.20
Borough Council of Kings Lynn and West Norfolk,E07000146,14/06/2021,Reopening High Streets Safely Fund,Professional Fees,Plastecowood Ltd,21007504,"1,340.00"
Borough Council of Kings Lynn and West Norfolk,E07000146,14/06/2021,Closed Churchyards,Repairs & Maintenance,PIKESTAFF BUILDING CO LTD,21007089,750.00
Borough Council of Kings Lynn and West Norfolk,E07000146,14/06/2021,Reopening High Street,Equipment/Materials,Monster Mesh Ltd,21007083,"3,251.00"
Borough Council of Kings Lynn and West Norfolk,E07000146,14/06/2021,Housing Options Programme,Homeless Prevention Fund,Century 21,22005361,680.00
Borough Council of Kings Lynn and West Norfolk,E07000146,14/06/2021,Domestic Refuse,Contracted Services,Kier Services Environmental,21007492,"92,966.69"
Borough Council of Kings Lynn and West Norfolk,E07000146,14/06/2021,Refuse & Recyc Mgmt,Contracted Services,Kier Services Environmental,21007492,356.89
Borough Council of Kings Lynn and West Norfolk,E07000146,14/06/2021,Dry Box Collection Scheme,Contracted Services,Kier Services Environmental,21007492,"91,601.90"
Borough Council of Kings Lynn and West Norfolk,E07000146,14/06/2021,Food Waste,Bins,Kier Services Environmental,21007492,"2,651.79"
Borough Council of Kings Lynn and West Norfolk,E07000146,14/06/2021,Domestic Refuse,Clinical & Medical Waste,Kier Services Environmental,21007492,"3,959.77"
Borough Council of Kings Lynn and West Norfolk,E07000146,14/06/2021,Food Waste,Contracted Services,Kier Services Environmental,21007492,"6,366.51"
Borough Council of Kings Lynn and West Norfolk,E07000146,14/06/2021,Food Waste,Waste Processing Cost,Kier Services Environmental,21007492,"23,938.04"
Borough Council of Kings Lynn and West Norfolk,E07000146,14/06/2021,Recycling Composting,Contracted Services,Kier Services Environmental,21007492,"42,374.57"
Borough Council of Kings Lynn and West Norfolk,E07000146,14/06/2021,Trade Refuse,Contracted Services,Kier Services Environmental,21007492,"9,427.68"
Borough Council of Kings Lynn and West Norfolk,E07000146,14/06/2021,Recycling Commercial,Contracted Services,Kier Services Environmental,21007492,791.36
Borough Council of Kings Lynn and West Norfolk,E07000146,14/06/2021,Planning Control,Professional Fees,Mr Timothy Leader,21007508,500.00
Borough Council of Kings Lynn and West Norfolk,E07000146,14/06/2021,Food Waste,Bins,Straight Manufacturing Ltd,21007394,"6,925.00"
Borough Council of Kings Lynn and West Norfolk,E07000146,14/06/2021,Discretionary Adaptation Assistance,Works,Chas D Allflatt Ltd,21007354,"3,207.87"
Borough Council of Kings Lynn and West Norfolk,E07000146,14/06/2021,Cashless Pk YT(GY off St),Agency,Great Yarmouth Borough Council,22005367,"51,177.20"
Borough Council of Kings Lynn and West Norfolk,E07000146,14/06/2021,General Property,Repairs & Maintenance,Neville Godfrey Ltd,21007475,"1,595.00"
Borough Council of Kings Lynn and West Norfolk,E07000146,14/06/2021,Corporate Project Manager,Professional Fees,North Norfolk District Council,21007515,630.00
Borough Council of Kings Lynn and West Norfolk,E07000146,14/06/2021,Cashless Pk JF(NN on St),Agency,North Norfolk District Council,22005368,"33,269.30"
Borough Council of Kings Lynn and West Norfolk,E07000146,14/06/2021,County Council Elections,Postages,Royal Mail Group Ltd,22005371,722.65
Borough Council of Kings Lynn and West Norfolk,E07000146,14/06/2021,Financial Services,Postages,Royal Mail Group Ltd,22005372,143.44
Borough Council of Kings Lynn and West Norfolk,E07000146,14/06/2021,Benefit Administration,Postages,Royal Mail Group Ltd,22005372,325.60
Borough Council of Kings Lynn and West Norfolk,E07000146,14/06/2021,Cost of Collection - CTax,Postages,Royal Mail Group Ltd,22005372,591.36
Borough Council of Kings Lynn and West Norfolk,E07000146,14/06/2021,Kings Lynn Bid,Postages,Royal Mail Group Ltd,22005372,3.08
Borough Council of Kings Lynn and West Norfolk,E07000146,14/06/2021,Pub & Tourism int charges,Postages,Royal Mail Group Ltd,22005372,1.76
Borough Council of Kings Lynn and West Norfolk,E07000146,14/06/2021,Cost of Collection - CTax,Postages,Royal Mail Group Ltd,22005372,4.50
Borough Council of Kings Lynn and West Norfolk,E07000146,14/06/2021,Benefit Administration,Postages,Royal Mail Group Ltd,22005372,3.60
Borough Council of Kings Lynn and West Norfolk,E07000146,14/06/2021,Cllr Allowance & Exps,Insurance Excess,Zurich Insurance Plc,22005382,"2,553.00"
Borough Council of Kings Lynn and West Norfolk,E07000146,17/06/2021,ICT,Broadband Charge,British Telecommunications PLC,21007520,"1,104.68"
Borough Council of Kings Lynn and West Norfolk,E07000146,17/06/2021,General Property,Repairs & Maintenance,Golden Tree Surgeons Ltd,21007528,565.00
Borough Council of Kings Lynn and West Norfolk,E07000146,17/06/2021,County Council Elections,Training,Association of Electoral Administrators,22005226,"2,470.00"
Borough Council of Kings Lynn and West Norfolk,E07000146,17/06/2021,Major Housing Management,External Fees/Consultancy,G C Baxter & Associates Ltd,21007541,"1,920.00"
Borough Council of Kings Lynn and West Norfolk,E07000146,17/06/2021,Printing & Graphics,Materials,Premier Paper Group Ltd,21007505,"2,033.15"
Borough Council of Kings Lynn and West Norfolk,E07000146,17/06/2021,Cashless Pk JG (Bk on St),Merchant Fees,Chipside Ltd,21007524,0.14
Borough Council of Kings Lynn and West Norfolk,E07000146,17/06/2021,Cashless Pk JE(NN on St),Merchant Fees,Chipside Ltd,21007524,22.19
Borough Council of Kings Lynn and West Norfolk,E07000146,17/06/2021,Cashless Park KR (KLWN on ST),Merchant Fees,Chipside Ltd,21007524,55.96
Borough Council of Kings Lynn and West Norfolk,E07000146,17/06/2021,Cashless Pk JI(GYon St),Merchant Fees,Chipside Ltd,21007524,219.35
Borough Council of Kings Lynn and West Norfolk,E07000146,17/06/2021,Cashless Pk JF(NN on St),Merchant Fees,Chipside Ltd,21007524,329.78
Borough Council of Kings Lynn and West Norfolk,E07000146,17/06/2021,Cashless Pk YT(GY off St),Merchant Fees,Chipside Ltd,21007524,489.09
Borough Council of Kings Lynn and West Norfolk,E07000146,17/06/2021,Cashless Park KZ (KLWN off ST),Merchant Fees,Chipside Ltd,21007524,"1,109.89"
Borough Council of Kings Lynn and West Norfolk,E07000146,17/06/2021,Food Hygiene/H&S Sals/Sup,Agency Staff,G2 Recruitment Ltd,21007161,"1,331.40"
Borough Council of Kings Lynn and West Norfolk,E07000146,17/06/2021,Food Hygiene/H&S Sals/Sup,Agency Staff,G2 Recruitment Ltd,21007162,"1,786.50"
Borough Council of Kings Lynn and West Norfolk,E07000146,17/06/2021,Rough Sleeper Fund,Covid 19,Excaliber Security Services Ltd,21007536,"5,107.20"
Borough Council of Kings Lynn and West Norfolk,E07000146,17/06/2021,Rough Sleeper Fund,Covid 19,Excaliber Security Services Ltd,21007537,"5,836.80"
Borough Council of Kings Lynn and West Norfolk,E07000146,17/06/2021,ICT,Covid 19,cloudDNA Ltd,21007169,"3,840.57"
Borough Council of Kings Lynn and West Norfolk,E07000146,17/06/2021,Kings Court Service Charges,Repairs & Maintenance,Swift Air Ventilation Ltd,21007255,"1,056.00"
Borough Council of Kings Lynn and West Norfolk,E07000146,17/06/2021,Sports Grounds North,Materials,Advance Grass Solutions,22005412,"1,184.65"
Borough Council of Kings Lynn and West Norfolk,E07000146,17/06/2021,Careline,Tools And Equipment,Lifeline24 Ltd,21007252,"3,083.00"
Borough Council of Kings Lynn and West Norfolk,E07000146,17/06/2021,Reopening High Streets Safely Fund,Marketing / Tourism,Reg Clarke,21007593,962.50
Borough Council of Kings Lynn and West Norfolk,E07000146,17/06/2021,Extra planning Income - 20%,Agency Staff,Carrington West Limited,21007183,"1,800.00"
Borough Council of Kings Lynn and West Norfolk,E07000146,17/06/2021,ICT,Telephones,British Telecommunications PLC,21007522,533.43
Borough Council of Kings Lynn and West Norfolk,E07000146,17/06/2021,North Lynn Industrial Estate,Repairs - Services Chg,Marathon Services Ltd,21007552,167.85
Borough Council of Kings Lynn and West Norfolk,E07000146,17/06/2021,North Lynn Managed Workshops,Repairs & Maintenance,Marathon Services Ltd,21007552,38.01
Borough Council of Kings Lynn and West Norfolk,E07000146,17/06/2021,Hardwick Industrial Estate,Repairs - Services Chg,Marathon Services Ltd,21007552,97.14
Borough Council of Kings Lynn and West Norfolk,E07000146,17/06/2021,Trafalgar (DM)  Industrial Estate,Repairs & Maintenance,Marathon Services Ltd,21007552,86.58
Borough Council of Kings Lynn and West Norfolk,E07000146,17/06/2021,St Johns Business Park,Repairs - Services Chg,Marathon Services Ltd,21007552,53.85
Borough Council of Kings Lynn and West Norfolk,E07000146,17/06/2021,Heacham Workshops,Repairs & Maintenance,Marathon Services Ltd,21007552,129.85
Borough Council of Kings Lynn and West Norfolk,E07000146,17/06/2021,,,HMRC,22005411,0.00
Borough Council of Kings Lynn and West Norfolk,E07000146,17/06/2021,Radio Phones,Communications,Claranet Ltd,21007530,64.84
Borough Council of Kings Lynn and West Norfolk,E07000146,17/06/2021,CCTV,Broadband Charge,Claranet Ltd,21007530,66.29
Borough Council of Kings Lynn and West Norfolk,E07000146,17/06/2021,Air Quality,Broadband Charge,Claranet Ltd,21007530,132.58
Borough Council of Kings Lynn and West Norfolk,E07000146,17/06/2021,Benefit Administration,Broadband Charge,Claranet Ltd,21007530,276.42
Borough Council of Kings Lynn and West Norfolk,E07000146,17/06/2021,South Lynn Community Centre,Broadband Charge,Claranet Ltd,21007530,92.48
Borough Council of Kings Lynn and West Norfolk,E07000146,17/06/2021,ICT,Broadband Charge,Claranet Ltd,21007530,46.24
Borough Council of Kings Lynn and West Norfolk,E07000146,17/06/2021,NNDC Carpark Operation,Broadband Charge,Claranet Ltd,21007530,135.58
Borough Council of Kings Lynn and West Norfolk,E07000146,17/06/2021,Mintlyn Crematorium,Broadband Charge,Claranet Ltd,21007530,141.12
Borough Council of Kings Lynn and West Norfolk,E07000146,17/06/2021,Street Sweeping,Animal Removal,Peaceful Pets Ltd,22005420,"1,135.00"
Borough Council of Kings Lynn and West Norfolk,E07000146,17/06/2021,Street Sweeping,Animal Removal,Peaceful Pets Ltd,22005421,617.50
Borough Council of Kings Lynn and West Norfolk,E07000146,17/06/2021,Custom House & Tics,Rent,R Gawn 1990 Accumulation & Maint Sett't,22004580,"1,280.00"
Borough Council of Kings Lynn and West Norfolk,E07000146,17/06/2021,Street Sweeping,Hazardous Waste Disposal,WEAAR Ltd,21007574,550.00
Borough Council of Kings Lynn and West Norfolk,E07000146,17/06/2021,Discover KL Distribution,Discover KL Distribution,Best 4 Promotions Norfolk,21007452,"2,025.75"
Borough Council of Kings Lynn and West Norfolk,E07000146,17/06/2021,Financial Services,Agency Staff,Hays Specialist Recruitment,21007551,"2,507.50"
Borough Council of Kings Lynn and West Norfolk,E07000146,17/06/2021,Financial Services,Agency Staff,Hays Specialist Recruitment,21007551,"1,327.50"
Borough Council of Kings Lynn and West Norfolk,E07000146,17/06/2021,Financial Services,Agency Staff,Hays Specialist Recruitment,21007544,"3,835.00"
Borough Council of Kings Lynn and West Norfolk,E07000146,17/06/2021,General Property,Advertising & Marketing,Rightmove Group Ltd,21007403,845.81
Borough Council of Kings Lynn and West Norfolk,E07000146,17/06/2021,Home Improvements Agency,Agency Staff,Seven Resourcing Ltd,21007332,"1,413.15"
Borough Council of Kings Lynn and West Norfolk,E07000146,17/06/2021,Home Improvements Agency,Agency Staff,Seven Resourcing Ltd,21007333,"1,099.94"
Borough Council of Kings Lynn and West Norfolk,E07000146,17/06/2021,Financial Services,Postages,Royal Mail Group Ltd,22005407,683.25
Borough Council of Kings Lynn and West Norfolk,E07000146,17/06/2021,Benefit Administration,Postages,Royal Mail Group Ltd,22005407,260.48
Borough Council of Kings Lynn and West Norfolk,E07000146,17/06/2021,Cost of Collection - CTax,Postages,Royal Mail Group Ltd,22005407,372.05
Borough Council of Kings Lynn and West Norfolk,E07000146,17/06/2021,Kings Lynn Bid,Postages,Royal Mail Group Ltd,22005407,3.10
Borough Council of Kings Lynn and West Norfolk,E07000146,17/06/2021,Pub & Tourism int charges,Postages,Royal Mail Group Ltd,22005407,50.74
Borough Council of Kings Lynn and West Norfolk,E07000146,17/06/2021,Cost of Collection - CTax,Postages,Royal Mail Group Ltd,22005407,5.40
Borough Council of Kings Lynn and West Norfolk,E07000146,17/06/2021,Benefit Administration,Postages,Royal Mail Group Ltd,22005407,4.05
Borough Council of Kings Lynn and West Norfolk,E07000146,17/06/2021,Kings Court Kings Lynn,Repairs & Maintenance,Smith Building Services Ltd,21007529,"1,345.00"
Borough Council of Kings Lynn and West Norfolk,E07000146,17/06/2021,Resort Seafront,Insurance Excess,Zurich Insurance Plc,22005410,500.00
Borough Council of Kings Lynn and West Norfolk,E07000146,17/06/2021,Resort Seafront,Insurance Excess,Zurich Insurance Plc,22005410,500.00
Borough Council of Kings Lynn and West Norfolk,E07000146,17/06/2021,Corporate Insurance,Insurance Excess,Zurich Insurance Plc,22005410,500.00
Borough Council of Kings Lynn and West Norfolk,E07000146,17/06/2021,GM Central Area,Insurance Excess,Zurich Insurance Plc,22005410,380.00
Borough Council of Kings Lynn and West Norfolk,E07000146,17/06/2021,Parks & Open Spaces,Insurance Excess,Zurich Insurance Plc,22005410,500.00
Borough Council of Kings Lynn and West Norfolk,E07000146,21/06/2021,Subscriptions,Membership & Subscription,Norfolk County Council,21007630,"5,000.00"
Borough Council of Kings Lynn and West Norfolk,E07000146,21/06/2021,Hunstanton Southend Road,Professional Fees,Norfolk County Council,22005459,700.00
Borough Council of Kings Lynn and West Norfolk,E07000146,21/06/2021,Refuse Vehicles,Works,Dennis Eagle Ltd,22005460,"199,750.00"
Borough Council of Kings Lynn and West Norfolk,E07000146,21/06/2021,Sports Grounds Central,Materials,Collier Turf Care Ltd,22005473,531.42
Borough Council of Kings Lynn and West Norfolk,E07000146,21/06/2021,Careline,Postages,Royal Mail Group Ltd,22005447,531.42
Borough Council of Kings Lynn and West Norfolk,E07000146,21/06/2021,Postage Services K Court,Postages,Royal Mail Group Ltd,22005448,"1,104.42"
Borough Council of Kings Lynn and West Norfolk,E07000146,21/06/2021,Public Cleansing,Cleaning Material & Equip,V & J Knitwear Ltd,21007642,728.42
Borough Council of Kings Lynn and West Norfolk,E07000146,21/06/2021,Public Cleansing,Cleaning Material & Equip,V & J Knitwear Ltd,21007650,571.33
Borough Council of Kings Lynn and West Norfolk,E07000146,21/06/2021,Street Sweeping,Hazardous Waste Disposal,WEAAR Ltd,21006312,"1,200.00"
Borough Council of Kings Lynn and West Norfolk,E07000146,21/06/2021,Street Sweeping,Hazardous Waste Disposal,WEAAR Ltd,21006165,"1,650.00"
Borough Council of Kings Lynn and West Norfolk,E07000146,21/06/2021,Careline,Tools And Equipment,Supra UK Ltd T/A The Key Safe Company,21007254,"1,698.00"
Borough Council of Kings Lynn and West Norfolk,E07000146,21/06/2021,Financial Services,Agency Staff,Hays Specialist Recruitment,21007623,"2,655.00"
Borough Council of Kings Lynn and West Norfolk,E07000146,21/06/2021,Public Cleansing,Sweeper Consumables,Welding Centre,22005276,"1,037.76"
Borough Council of Kings Lynn and West Norfolk,E07000146,21/06/2021,Parks & Open Spaces,Tree Surgery,Golden Tree Surgeons Ltd,22005454,880.00
Borough Council of Kings Lynn and West Norfolk,E07000146,21/06/2021,Cashless Pk JG (Bk on St),Transaction Fee,Chipside Ltd,21007608,2.00
Borough Council of Kings Lynn and West Norfolk,E07000146,21/06/2021,Cashless Pk JE(NN on St),Transaction Fee,Chipside Ltd,21007608,128.00
Borough Council of Kings Lynn and West Norfolk,E07000146,21/06/2021,Cashless Park KR (KLWN on ST),Transaction Fee,Chipside Ltd,21007608,278.08
Borough Council of Kings Lynn and West Norfolk,E07000146,21/06/2021,Cashless Pk JI(GYon St),Transaction Fee,Chipside Ltd,21007608,528.25
Borough Council of Kings Lynn and West Norfolk,E07000146,21/06/2021,Cashless Pk JF(NN on St),Transaction Fee,Chipside Ltd,21007608,970.00
Borough Council of Kings Lynn and West Norfolk,E07000146,21/06/2021,Cashless Pk YT(GY off St),Transaction Fee,Chipside Ltd,21007608,984.25
Borough Council of Kings Lynn and West Norfolk,E07000146,21/06/2021,Cashless Park KZ (KLWN off ST),Transaction Fee,Chipside Ltd,21007608,"3,123.00"
Borough Council of Kings Lynn and West Norfolk,E07000146,21/06/2021,North Lynn Managed Workshops,Repairs & Maintenance,Browns Storage & Removals Ltd,21007559,700.00
Borough Council of Kings Lynn and West Norfolk,E07000146,21/06/2021,CCTV,Rental CCTV - BT,BT Redcare,22005467,"1,200.00"
Borough Council of Kings Lynn and West Norfolk,E07000146,24/06/2021,Rough Sleeper Fund,Covid 19,BACO-Compak (Norfolk) Ltd,21007726,440.00
Borough Council of Kings Lynn and West Norfolk,E07000146,24/06/2021,Public conveniences,Sewerage/Cesspool Empty,BACO-Compak (Norfolk) Ltd,22005492,"1,075.00"
Borough Council of Kings Lynn and West Norfolk,E07000146,24/06/2021,COWA School of Nursing,Equipment/Materials,College of West Anglia,21007712,"29,946.29"
Borough Council of Kings Lynn and West Norfolk,E07000146,24/06/2021,Sth Quay Sommerfield & Thomas CRF,Works,G C Baxter & Associates Ltd,21007580,742.50
Borough Council of Kings Lynn and West Norfolk,E07000146,24/06/2021,Home Improvements Agency,Agency Staff,Seven Resourcing Ltd,21007634,"1,507.90"
Borough Council of Kings Lynn and West Norfolk,E07000146,24/06/2021,Home Improvements Agency,Agency Staff,Seven Resourcing Ltd,21007635,"1,081.90"
Borough Council of Kings Lynn and West Norfolk,E07000146,24/06/2021,Parks & Open Spaces,Tree Surgery,Golden Tree Surgeons Ltd,22005509,"1,130.00"
Borough Council of Kings Lynn and West Norfolk,E07000146,24/06/2021,West Winch Growth Area,Professional Fees,Gerald Eve LLP,21007734,"2,323.00"
Borough Council of Kings Lynn and West Norfolk,E07000146,24/06/2021,West Winch Growth Area,Professional Fees,Gerald Eve LLP,21007735,"3,090.00"
Borough Council of Kings Lynn and West Norfolk,E07000146,24/06/2021,Food Hygiene/H&S Sals/Sup,Recruitment,TMP (UK) Ltd,22005374,950.00
Borough Council of Kings Lynn and West Norfolk,E07000146,24/06/2021,Food Hygiene/H&S Sals/Sup,Agency Staff,G2 Recruitment Ltd,21007291,"1,322.40"
Borough Council of Kings Lynn and West Norfolk,E07000146,24/06/2021,Food Hygiene/H&S Sals/Sup,Agency Staff,G2 Recruitment Ltd,21007292,"1,493.70"
Borough Council of Kings Lynn and West Norfolk,E07000146,24/06/2021,Covid 19- LA Compliance and Enforcement,Covid 19 Marshalls,Excaliber Security Services Ltd,21007714,"4,396.45"
Borough Council of Kings Lynn and West Norfolk,E07000146,24/06/2021,Covid 19- LA Compliance and Enforcement,Covid 19 Marshalls,Excaliber Security Services Ltd,21007715,"3,812.10"
Borough Council of Kings Lynn and West Norfolk,E07000146,24/06/2021,West Winch Growth Area,Professional Fees,Clyde & Co LLP,21007731,"4,716.40"
Borough Council of Kings Lynn and West Norfolk,E07000146,24/06/2021,County Council Elections,Stationery & Office,Lyreco UK Ltd,21007514,"11,400.00"
Borough Council of Kings Lynn and West Norfolk,E07000146,24/06/2021,Recycling Composting,Covid 19,Enterprise Flex-E Rent,22005415,"1,978.00"
Borough Council of Kings Lynn and West Norfolk,E07000146,24/06/2021,Extra planning Income - 20%,Agency Staff,Carrington West Limited,21007272,"1,530.00"
Borough Council of Kings Lynn and West Norfolk,E07000146,24/06/2021,Planning Control,Professional Fees,Alder King LLP,21007554,950.00
Borough Council of Kings Lynn and West Norfolk,E07000146,24/06/2021,Housing Options Programme,Homeless Prevention Fund,M Reed,22005502,525.00
Borough Council of Kings Lynn and West Norfolk,E07000146,24/06/2021,KL Innovation Centre,Beverage Supplies,NVCS Ltd,21007721,479.81
Borough Council of Kings Lynn and West Norfolk,E07000146,24/06/2021,KL Innovation Centre,Beverage Supplies,NVCS Ltd,21007721,96.60
Borough Council of Kings Lynn and West Norfolk,E07000146,24/06/2021,Apprenticeship Scheme,Apprentice Levy,Bedford Borough Council,21007729,"4,684.00"
Borough Council of Kings Lynn and West Norfolk,E07000146,24/06/2021,Register of Electors,Stationery & Office,Civica Election Services Ltd,22005364,624.22
Borough Council of Kings Lynn and West Norfolk,E07000146,24/06/2021,Register of Electors,Stationery & Office,Kingsfield Computer Product Ltd,21007299,761.37
Borough Council of Kings Lynn and West Norfolk,E07000146,24/06/2021,Mintlyn Crematorium,Repairs & Maintenance,UPS Systems PLC,21007326,"2,340.00"
Borough Council of Kings Lynn and West Norfolk,E07000146,24/06/2021,CCTV,Repairs & Maintenance,Focus Security (East Anglia) Ltd,21007696,"1,100.94"
Borough Council of Kings Lynn and West Norfolk,E07000146,24/06/2021,Refuse & Recyc Mgmt,Computer Equipment,Whitespace Work Software  Ltd,21007315,"5,000.00"
Borough Council of Kings Lynn and West Norfolk,E07000146,24/06/2021,NNDC Carpark Operation,Contract Repairs,East Coast Motor Company Ltd,22005496,698.56
Borough Council of Kings Lynn and West Norfolk,E07000146,24/06/2021,Phase 5 Town Centre KL,Repairs & Maintenance,Axel-Elek Services Ltd t/a Curti Lifts,21007725,646.14
Borough Council of Kings Lynn and West Norfolk,E07000146,28/06/2021,Resort Seafront,Repairs & Maintenance,D Sayers,21007755,"3,840.00"
Borough Council of Kings Lynn and West Norfolk,E07000146,28/06/2021,Resort Seafront,Repairs & Maintenance,D Sayers,21007755,900.00
Borough Council of Kings Lynn and West Norfolk,E07000146,28/06/2021,Resort Seafront,Repairs & Maintenance,D Sayers,21007756,"1,170.00"
Borough Council of Kings Lynn and West Norfolk,E07000146,28/06/2021,Home Improvements Agency,Agency Staff,Seven Resourcing Ltd,21007778,"1,077.85"
Borough Council of Kings Lynn and West Norfolk,E07000146,28/06/2021,Home Improvements Agency,Agency Staff,Seven Resourcing Ltd,21007779,840.73
Borough Council of Kings Lynn and West Norfolk,E07000146,28/06/2021,Crematorium Trading Account,Webcasts/Tributes/Recordings,Vivedia Ltd,21007340,"2,878.00"
Borough Council of Kings Lynn and West Norfolk,E07000146,28/06/2021,Rough Sleeper Fund,Covid 19,Excaliber Security Services Ltd,21007761,"5,107.20"
Borough Council of Kings Lynn and West Norfolk,E07000146,28/06/2021,Norfolk Tourism Package,Works,aAFD Services Ltd,21007461,"7,790.25"
Borough Council of Kings Lynn and West Norfolk,E07000146,28/06/2021,Day visitor awareness,Advertising & Marketing,Bauer Radio Ltd,21007466,"3,350.00"
Borough Council of Kings Lynn and West Norfolk,E07000146,28/06/2021,Reopening High Streets Safely Fund,Marketing / Tourism,Bauer Radio Ltd,21007519,999.00
Borough Council of Kings Lynn and West Norfolk,E07000146,28/06/2021,EZ- Roads/Infrastructure,External Fees/Consultancy,Ground Technology Services Ltd,21007799,"34,669.40"
Borough Council of Kings Lynn and West Norfolk,E07000146,28/06/2021,Balance Sheet,VAT Input - VAT Only Purchases,Marston (Holdings) Ltd,22005491,"2,830.11"
Borough Council of Kings Lynn and West Norfolk,E07000146,28/06/2021,CCTV,Repairs & Maintenance,E Akers,21007675,875.00
Borough Council of Kings Lynn and West Norfolk,E07000146,28/06/2021,CCTV,Repairs & Maintenance,E Akers,21007675,184.40
Borough Council of Kings Lynn and West Norfolk,E07000146,28/06/2021,KL Innovation Centre,Repairs & Maintenance,Mr Brights Ltd,21007719,"1,693.84"
Borough Council of Kings Lynn and West Norfolk,E07000146,28/06/2021,Car Park - Great Yarmouth,Repairs & Maintenance,Metric Group Ltd,21007565,"4,095.00"
Borough Council of Kings Lynn and West Norfolk,E07000146,28/06/2021,NNDC Carpark Operation,Repairs & Maintenance,Metric Group Ltd,21007436,132.04
Borough Council of Kings Lynn and West Norfolk,E07000146,28/06/2021,Burnham Market Car Park,Repairs & Maintenance,Metric Group Ltd,21007436,239.76
Borough Council of Kings Lynn and West Norfolk,E07000146,28/06/2021,On Street Pay and Display,Repairs & Maintenance,Metric Group Ltd,21007436,319.68
Borough Council of Kings Lynn and West Norfolk,E07000146,28/06/2021,Breckland Carpark operation,Repairs & Maintenance,Metric Group Ltd,21007436,559.44
Borough Council of Kings Lynn and West Norfolk,E07000146,28/06/2021,Parking Operations - Brgh,Repairs & Maintenance,Metric Group Ltd,21007436,"5,354.64"
Borough Council of Kings Lynn and West Norfolk,E07000146,28/06/2021,Resort Seafront,Tools And Equipment,Owens DIY Ltd,21007775,515.83
Borough Council of Kings Lynn and West Norfolk,E07000146,28/06/2021,Kings Lynn Bus Station,Repairs & Maintenance,Penty Contractors Ltd,21007800,"1,100.00"
Borough Council of Kings Lynn and West Norfolk,E07000146,28/06/2021,Financial Services,Postages,Royal Mail Group Ltd,22005528,44.44
Borough Council of Kings Lynn and West Norfolk,E07000146,28/06/2021,Benefit Administration,Postages,Royal Mail Group Ltd,22005528,372.74
Borough Council of Kings Lynn and West Norfolk,E07000146,28/06/2021,Cost of Collection - CTax,Postages,Royal Mail Group Ltd,22005528,"1,495.77"
Borough Council of Kings Lynn and West Norfolk,E07000146,28/06/2021,Cost of Collection - NDR,Postages,Royal Mail Group Ltd,22005528,70.84
Borough Council of Kings Lynn and West Norfolk,E07000146,28/06/2021,Pub & Tourism int charges,Postages,Royal Mail Group Ltd,22005528,46.77
Borough Council of Kings Lynn and West Norfolk,E07000146,28/06/2021,Benefit Administration,Postages,Royal Mail Group Ltd,22005528,11.59
Borough Council of Kings Lynn and West Norfolk,E07000146,28/06/2021,Cost of Collection - CTax,Postages,Royal Mail Group Ltd,22005528,2.32
Borough Council of Kings Lynn and West Norfolk,E07000146,28/06/2021,Kings Lynn Bid,Postages,Royal Mail Group Ltd,22005528,1.35
Borough Council of Kings Lynn and West Norfolk,E07000146,28/06/2021,Pub & Tourism int charges,Postages,Royal Mail Group Ltd,22005528,18.11
Borough Council of Kings Lynn and West Norfolk,E07000146,28/06/2021,Financial Services,Postages,Royal Mail Group Ltd,22005522,707.89
Borough Council of Kings Lynn and West Norfolk,E07000146,28/06/2021,Benefit Administration,Postages,Royal Mail Group Ltd,22005522,331.76
Borough Council of Kings Lynn and West Norfolk,E07000146,28/06/2021,Cost of Collection - CTax,Postages,Royal Mail Group Ltd,22005522,636.24
Borough Council of Kings Lynn and West Norfolk,E07000146,28/06/2021,Pub & Tourism int charges,Postages,Royal Mail Group Ltd,22005522,52.06
Borough Council of Kings Lynn and West Norfolk,E07000146,28/06/2021,Financial Services,Postages,Royal Mail Group Ltd,22005522,1.80
Borough Council of Kings Lynn and West Norfolk,E07000146,28/06/2021,Benefit Administration,Postages,Royal Mail Group Ltd,22005522,3.86
Borough Council of Kings Lynn and West Norfolk,E07000146,28/06/2021,Cost of Collection - CTax,Postages,Royal Mail Group Ltd,22005522,891.05
Borough Council of Kings Lynn and West Norfolk,E07000146,28/06/2021,Dry Box Collection Scheme,Waste Processing Cost,Norse Environmental Services,21007501,"42,763.15"
Borough Council of Kings Lynn and West Norfolk,E07000146,28/06/2021,Cafe in the Park,Confectionery - Supplies,Eden Farm Hulleys Ltd,21007760,700.43
Borough Council of Kings Lynn and West Norfolk,E07000146,28/06/2021,Radios,Radio / Airwave,Direct Communications Radio Services Ltd,21007365,965.00
Borough Council of Kings Lynn and West Norfolk,E07000146,28/06/2021,Heacham Beach,Repairs & Maintenance,Scrimsign Micro Electronics Ltd,21007810,490.00
Borough Council of Kings Lynn and West Norfolk,E07000146,28/06/2021,Corporate Communitcations,Publications & Newspapers,KL Publications Ltd,21007769,576.00
Borough Council of Kings Lynn and West Norfolk,E07000146,28/06/2021,Mintlyn Crematorium,Tools And Equipment,East Coast Signs Ltd,21007759,440.00
Borough Council of Kings Lynn and West Norfolk,E07000146,28/06/2021,NNDC Carpark Operation,Security Services Charge,LOOMIS UK Ltd,21007717,239.96
Borough Council of Kings Lynn and West Norfolk,E07000146,28/06/2021,Parking Operations - Brgh,Security Services Charge,LOOMIS UK Ltd,21007717,423.91
Borough Council of Kings Lynn and West Norfolk,E07000146,28/06/2021,Leisure Management Costs,Security Services Charge,LOOMIS UK Ltd,21007717,309.91
Borough Council of Kings Lynn and West Norfolk,E07000146,28/06/2021,Resort Seafront,Professional Fees,MED PTS Ambulance Services,21007808,"1,188.00"
Borough Council of Kings Lynn and West Norfolk,E07000146,28/06/2021,Kings Court Service Charges,Repairs & Maintenance,Cooler Sense Ltd,21007368,530.66
